Organisation Name,Organisation Code,Unique Ref No,Effective Date,Directorate where expenditure incurred, Supplier Name ,Payment Date, Net Amount ,Purpose of Spend,"Procurement Classification
(Higher Level)","Procurement Classification 
(Lower Level)",CAPITAL / REVENUE
Walsall Council,http://opendatacommunities.org/id/metropolitan-district-council/walsall ,WC145-1,31.12.2022,"ECONOMY, ENVIRONMENT & COMMUNITIES",11KBW,07/12/2022," 1,800.00 ",6440-School Only Payments - Catering,THIRD PARTY PAYMENTS,INDEPENDENT UNIT WITHIN COUNCIL,REVENUE
Walsall Council,http://opendatacommunities.org/id/metropolitan-district-council/walsall ,WC145-2,31.12.2022,CHILDRENS,247 CARS (WILLENHALL) LIMITED,06/12/2022," 1,590.40 ",6241-Hire of Vehicle with Driver,TRANSPORT,DIRECT TRANSPORT COSTS,REVENUE
Walsall Council,http://opendatacommunities.org/id/metropolitan-district-council/walsall ,WC145-3,31.12.2022,CHILDRENS,247 CARS (WILLENHALL) LIMITED,06/12/2022," 1,118.70 ",6241-Hire of Vehicle with Driver,TRANSPORT,DIRECT TRANSPORT COSTS,REVENUE
Walsall Council,http://opendatacommunities.org/id/metropolitan-district-council/walsall ,WC145-4,31.12.2022,CHILDRENS,247 CARS (WILLENHALL) LIMITED,06/12/2022," 1,800.45 ",6241-Hire of Vehicle with Driver,TRANSPORT,DIRECT TRANSPORT COSTS,REVENUE
Walsall Council,http://opendatacommunities.org/id/metropolitan-district-council/walsall ,WC145-5,31.12.2022,CHILDRENS,247 CARS (WILLENHALL) LIMITED,06/12/2022, 823.20 ,6241-Hire of Vehicle with Driver,TRANSPORT,DIRECT TRANSPORT COSTS,REVENUE
Walsall Council,http://opendatacommunities.org/id/metropolitan-district-council/walsall ,WC145-6,31.12.2022,CHILDRENS,247 CARS (WILLENHALL) LIMITED,06/12/2022, 997.50 ,6241-Hire of Vehicle with Driver,TRANSPORT,DIRECT TRANSPORT COSTS,REVENUE
Walsall Council,http://opendatacommunities.org/id/metropolitan-district-council/walsall ,WC145-7,31.12.2022,CHILDRENS,247 CARS (WILLENHALL) LIMITED,06/12/2022," 1,605.00 ",6241-Hire of Vehicle with Driver,TRANSPORT,DIRECT TRANSPORT COSTS,REVENUE
Walsall Council,http://opendatacommunities.org/id/metropolitan-district-council/walsall ,WC145-8,31.12.2022,CHILDRENS,247 CARS (WILLENHALL) LIMITED,06/12/2022," 1,590.40 ",6241-Hire of Vehicle with Driver,TRANSPORT,DIRECT TRANSPORT COSTS,REVENUE
Walsall Council,http://opendatacommunities.org/id/metropolitan-district-council/walsall ,WC145-9,31.12.2022,CHILDRENS,247 CARS (WILLENHALL) LIMITED,06/12/2022," 1,020.00 ",6241-Hire of Vehicle with Driver,TRANSPORT,DIRECT TRANSPORT COSTS,REVENUE
Walsall Council,http://opendatacommunities.org/id/metropolitan-district-council/walsall ,WC145-10,31.12.2022,CHILDRENS,247 CARS (WILLENHALL) LIMITED,06/12/2022," 2,040.00 ",6241-Hire of Vehicle with Driver,TRANSPORT,DIRECT TRANSPORT COSTS,REVENUE
Walsall Council,http://opendatacommunities.org/id/metropolitan-district-council/walsall ,WC145-11,31.12.2022,CHILDRENS,247 CARS (WILLENHALL) LIMITED,06/12/2022," 1,590.40 ",6241-Hire of Vehicle with Driver,TRANSPORT,DIRECT TRANSPORT COSTS,REVENUE
Walsall Council,http://opendatacommunities.org/id/metropolitan-district-council/walsall ,WC145-12,31.12.2022,CHILDRENS,247 CARS (WILLENHALL) LIMITED,06/12/2022," 1,590.40 ",6241-Hire of Vehicle with Driver,TRANSPORT,DIRECT TRANSPORT COSTS,REVENUE
Walsall Council,http://opendatacommunities.org/id/metropolitan-district-council/walsall ,WC145-13,31.12.2022,CHILDRENS,247 CARS (WILLENHALL) LIMITED,06/12/2022," 1,387.50 ",6241-Hire of Vehicle with Driver,TRANSPORT,DIRECT TRANSPORT COSTS,REVENUE
Walsall Council,http://opendatacommunities.org/id/metropolitan-district-council/walsall ,WC145-14,31.12.2022,CHILDRENS,247 CARS (WILLENHALL) LIMITED,06/12/2022," 1,520.90 ",6241-Hire of Vehicle with Driver,TRANSPORT,DIRECT TRANSPORT COSTS,REVENUE
Walsall Council,http://opendatacommunities.org/id/metropolitan-district-council/walsall ,WC145-15,31.12.2022,CHILDRENS,247 CARS (WILLENHALL) LIMITED,06/12/2022," 1,096.20 ",6241-Hire of Vehicle with Driver,TRANSPORT,DIRECT TRANSPORT COSTS,REVENUE
Walsall Council,http://opendatacommunities.org/id/metropolitan-district-council/walsall ,WC145-16,31.12.2022,CHILDRENS,247 CARS (WILLENHALL) LIMITED,06/12/2022," 1,897.50 ",6241-Hire of Vehicle with Driver,TRANSPORT,DIRECT TRANSPORT COSTS,REVENUE
Walsall Council,http://opendatacommunities.org/id/metropolitan-district-council/walsall ,WC145-17,31.12.2022,CHILDRENS,247 CARS (WILLENHALL) LIMITED,06/12/2022," 1,387.50 ",6241-Hire of Vehicle with Driver,TRANSPORT,DIRECT TRANSPORT COSTS,REVENUE
Walsall Council,http://opendatacommunities.org/id/metropolitan-district-council/walsall ,WC145-18,31.12.2022,CHILDRENS,247 CARS (WILLENHALL) LIMITED,06/12/2022," 1,387.50 ",6241-Hire of Vehicle with Driver,TRANSPORT,DIRECT TRANSPORT COSTS,REVENUE
Walsall Council,http://opendatacommunities.org/id/metropolitan-district-council/walsall ,WC145-19,31.12.2022,CHILDRENS,247 CARS (WILLENHALL) LIMITED,06/12/2022," 1,387.50 ",6241-Hire of Vehicle with Driver,TRANSPORT,DIRECT TRANSPORT COSTS,REVENUE
Walsall Council,http://opendatacommunities.org/id/metropolitan-district-council/walsall ,WC145-20,31.12.2022,CHILDRENS,247 CARS (WILLENHALL) LIMITED,06/12/2022," 2,895.00 ",6241-Hire of Vehicle with Driver,TRANSPORT,DIRECT TRANSPORT COSTS,REVENUE
Walsall Council,http://opendatacommunities.org/id/metropolitan-district-council/walsall ,WC145-21,31.12.2022,CHILDRENS,247 CARS (WILLENHALL) LIMITED,06/12/2022," 1,734.60 ",6241-Hire of Vehicle with Driver,TRANSPORT,DIRECT TRANSPORT COSTS,REVENUE
Walsall Council,http://opendatacommunities.org/id/metropolitan-district-council/walsall ,WC145-22,31.12.2022,CHILDRENS,247 CARS (WILLENHALL) LIMITED,06/12/2022," 1,387.50 ",6241-Hire of Vehicle with Driver,TRANSPORT,DIRECT TRANSPORT COSTS,REVENUE
Walsall Council,http://opendatacommunities.org/id/metropolitan-district-council/walsall ,WC145-23,31.12.2022,CHILDRENS,247 CARS (WILLENHALL) LIMITED,06/12/2022," 2,250.00 ",6241-Hire of Vehicle with Driver,TRANSPORT,DIRECT TRANSPORT COSTS,REVENUE
Walsall Council,http://opendatacommunities.org/id/metropolitan-district-council/walsall ,WC145-24,31.12.2022,CHILDRENS,247 CARS (WILLENHALL) LIMITED,06/12/2022," 1,120.00 ",6241-Hire of Vehicle with Driver,TRANSPORT,DIRECT TRANSPORT COSTS,REVENUE
Walsall Council,http://opendatacommunities.org/id/metropolitan-district-council/walsall ,WC145-25,31.12.2022,CHILDRENS,247 CARS (WILLENHALL) LIMITED,06/12/2022," 2,158.40 ",6241-Hire of Vehicle with Driver,TRANSPORT,DIRECT TRANSPORT COSTS,REVENUE
Walsall Council,http://opendatacommunities.org/id/metropolitan-district-council/walsall ,WC145-26,31.12.2022,CHILDRENS,247 CARS (WILLENHALL) LIMITED,06/12/2022," 1,915.50 ",6241-Hire of Vehicle with Driver,TRANSPORT,DIRECT TRANSPORT COSTS,REVENUE
Walsall Council,http://opendatacommunities.org/id/metropolitan-district-council/walsall ,WC145-27,31.12.2022,CHILDRENS,247 CARS (WILLENHALL) LIMITED,06/12/2022, 640.00 ,6241-Hire of Vehicle with Driver,TRANSPORT,DIRECT TRANSPORT COSTS,REVENUE
Walsall Council,http://opendatacommunities.org/id/metropolitan-district-council/walsall ,WC145-28,31.12.2022,CHILDRENS,247 CARS (WILLENHALL) LIMITED,29/12/2022," 1,757.50 ",6241-Hire of Vehicle with Driver,TRANSPORT,DIRECT TRANSPORT COSTS,REVENUE
Walsall Council,http://opendatacommunities.org/id/metropolitan-district-council/walsall ,WC145-29,31.12.2022,CHILDRENS,247 CARS (WILLENHALL) LIMITED,29/12/2022," 1,757.50 ",6241-Hire of Vehicle with Driver,TRANSPORT,DIRECT TRANSPORT COSTS,REVENUE
Walsall Council,http://opendatacommunities.org/id/metropolitan-district-council/walsall ,WC145-30,31.12.2022,CHILDRENS,247 CARS (WILLENHALL) LIMITED,29/12/2022," 1,850.00 ",6241-Hire of Vehicle with Driver,TRANSPORT,DIRECT TRANSPORT COSTS,REVENUE
Walsall Council,http://opendatacommunities.org/id/metropolitan-district-council/walsall ,WC145-31,31.12.2022,CHILDRENS,247 CARS (WILLENHALL) LIMITED,29/12/2022," 1,757.50 ",6241-Hire of Vehicle with Driver,TRANSPORT,DIRECT TRANSPORT COSTS,REVENUE
Walsall Council,http://opendatacommunities.org/id/metropolitan-district-council/walsall ,WC145-32,31.12.2022,CHILDRENS,247 CARS (WILLENHALL) LIMITED,29/12/2022," 3,900.00 ",6241-Hire of Vehicle with Driver,TRANSPORT,DIRECT TRANSPORT COSTS,REVENUE
Walsall Council,http://opendatacommunities.org/id/metropolitan-district-council/walsall ,WC145-33,31.12.2022,CHILDRENS,247 CARS (WILLENHALL) LIMITED,29/12/2022," 1,761.20 ",6241-Hire of Vehicle with Driver,TRANSPORT,DIRECT TRANSPORT COSTS,REVENUE
Walsall Council,http://opendatacommunities.org/id/metropolitan-district-council/walsall ,WC145-34,31.12.2022,CHILDRENS,247 CARS (WILLENHALL) LIMITED,29/12/2022," 1,708.86 ",6241-Hire of Vehicle with Driver,TRANSPORT,DIRECT TRANSPORT COSTS,REVENUE
Walsall Council,http://opendatacommunities.org/id/metropolitan-district-council/walsall ,WC145-35,31.12.2022,CHILDRENS,247 CARS (WILLENHALL) LIMITED,29/12/2022," 1,330.00 ",6241-Hire of Vehicle with Driver,TRANSPORT,DIRECT TRANSPORT COSTS,REVENUE
Walsall Council,http://opendatacommunities.org/id/metropolitan-district-council/walsall ,WC145-36,31.12.2022,CHILDRENS,247 CARS (WILLENHALL) LIMITED,29/12/2022," 2,033.00 ",6241-Hire of Vehicle with Driver,TRANSPORT,DIRECT TRANSPORT COSTS,REVENUE
Walsall Council,http://opendatacommunities.org/id/metropolitan-district-council/walsall ,WC145-37,31.12.2022,CHILDRENS,247 CARS (WILLENHALL) LIMITED,29/12/2022," 2,272.00 ",6241-Hire of Vehicle with Driver,TRANSPORT,DIRECT TRANSPORT COSTS,REVENUE
Walsall Council,http://opendatacommunities.org/id/metropolitan-district-council/walsall ,WC145-38,31.12.2022,CHILDRENS,247 CARS (WILLENHALL) LIMITED,29/12/2022," 2,272.00 ",6241-Hire of Vehicle with Driver,TRANSPORT,DIRECT TRANSPORT COSTS,REVENUE
Walsall Council,http://opendatacommunities.org/id/metropolitan-district-council/walsall ,WC145-39,31.12.2022,CHILDRENS,247 CARS (WILLENHALL) LIMITED,29/12/2022," 1,500.00 ",6241-Hire of Vehicle with Driver,TRANSPORT,DIRECT TRANSPORT COSTS,REVENUE
Walsall Council,http://opendatacommunities.org/id/metropolitan-district-council/walsall ,WC145-40,31.12.2022,CHILDRENS,247 CARS (WILLENHALL) LIMITED,29/12/2022," 2,554.00 ",6241-Hire of Vehicle with Driver,TRANSPORT,DIRECT TRANSPORT COSTS,REVENUE
Walsall Council,http://opendatacommunities.org/id/metropolitan-district-council/walsall ,WC145-41,31.12.2022,CHILDRENS,247 CARS (WILLENHALL) LIMITED,29/12/2022," 1,600.00 ",6241-Hire of Vehicle with Driver,TRANSPORT,DIRECT TRANSPORT COSTS,REVENUE
Walsall Council,http://opendatacommunities.org/id/metropolitan-district-council/walsall ,WC145-42,31.12.2022,CHILDRENS,247 CARS (WILLENHALL) LIMITED,29/12/2022," 2,478.00 ",6241-Hire of Vehicle with Driver,TRANSPORT,DIRECT TRANSPORT COSTS,REVENUE
Walsall Council,http://opendatacommunities.org/id/metropolitan-district-council/walsall ,WC145-43,31.12.2022,CHILDRENS,247 CARS (WILLENHALL) LIMITED,29/12/2022," 1,757.50 ",6241-Hire of Vehicle with Driver,TRANSPORT,DIRECT TRANSPORT COSTS,REVENUE
Walsall Council,http://opendatacommunities.org/id/metropolitan-district-council/walsall ,WC145-44,31.12.2022,CHILDRENS,247 CARS (WILLENHALL) LIMITED,29/12/2022," 2,720.00 ",6241-Hire of Vehicle with Driver,TRANSPORT,DIRECT TRANSPORT COSTS,REVENUE
Walsall Council,http://opendatacommunities.org/id/metropolitan-district-council/walsall ,WC145-45,31.12.2022,CHILDRENS,247 CARS (WILLENHALL) LIMITED,29/12/2022," 3,000.00 ",6241-Hire of Vehicle with Driver,TRANSPORT,DIRECT TRANSPORT COSTS,REVENUE
Walsall Council,http://opendatacommunities.org/id/metropolitan-district-council/walsall ,WC145-46,31.12.2022,CHILDRENS,247 CARS (WILLENHALL) LIMITED,29/12/2022," 2,272.00 ",6241-Hire of Vehicle with Driver,TRANSPORT,DIRECT TRANSPORT COSTS,REVENUE
Walsall Council,http://opendatacommunities.org/id/metropolitan-district-council/walsall ,WC145-47,31.12.2022,CHILDRENS,247 CARS (WILLENHALL) LIMITED,29/12/2022," 2,272.00 ",6241-Hire of Vehicle with Driver,TRANSPORT,DIRECT TRANSPORT COSTS,REVENUE
Walsall Council,http://opendatacommunities.org/id/metropolitan-district-council/walsall ,WC145-48,31.12.2022,CHILDRENS,247 CARS (WILLENHALL) LIMITED,29/12/2022, 960.00 ,6241-Hire of Vehicle with Driver,TRANSPORT,DIRECT TRANSPORT COSTS,REVENUE
Walsall Council,http://opendatacommunities.org/id/metropolitan-district-council/walsall ,WC145-49,31.12.2022,CHILDRENS,247 CARS (WILLENHALL) LIMITED,29/12/2022," 1,461.60 ",6241-Hire of Vehicle with Driver,TRANSPORT,DIRECT TRANSPORT COSTS,REVENUE
Walsall Council,http://opendatacommunities.org/id/metropolitan-district-council/walsall ,WC145-50,31.12.2022,CHILDRENS,247 CARS (WILLENHALL) LIMITED,29/12/2022," 2,530.00 ",6241-Hire of Vehicle with Driver,TRANSPORT,DIRECT TRANSPORT COSTS,REVENUE
Walsall Council,http://opendatacommunities.org/id/metropolitan-district-council/walsall ,WC145-51,31.12.2022,CHILDRENS,247 CARS (WILLENHALL) LIMITED,29/12/2022," 2,272.00 ",6241-Hire of Vehicle with Driver,TRANSPORT,DIRECT TRANSPORT COSTS,REVENUE
Walsall Council,http://opendatacommunities.org/id/metropolitan-district-council/walsall ,WC145-52,31.12.2022,CHILDRENS,247 CARS (WILLENHALL) LIMITED,29/12/2022," 1,491.60 ",6241-Hire of Vehicle with Driver,TRANSPORT,DIRECT TRANSPORT COSTS,REVENUE
Walsall Council,http://opendatacommunities.org/id/metropolitan-district-council/walsall ,WC145-53,31.12.2022,CHILDRENS,247 CARS (WILLENHALL) LIMITED,29/12/2022," 2,280.57 ",6241-Hire of Vehicle with Driver,TRANSPORT,DIRECT TRANSPORT COSTS,REVENUE
Walsall Council,http://opendatacommunities.org/id/metropolitan-district-council/walsall ,WC145-54,31.12.2022,CHILDRENS,247 CARS (WILLENHALL) LIMITED,29/12/2022," 1,097.60 ",6241-Hire of Vehicle with Driver,TRANSPORT,DIRECT TRANSPORT COSTS,REVENUE
Walsall Council,http://opendatacommunities.org/id/metropolitan-district-council/walsall ,WC145-55,31.12.2022,ADULT SOCIAL CARE,5 CARE SERVICES LTD,05/12/2022, 294.92 ,6541-Domiciliary Care,THIRD PARTY PAYMENTS,PRIVATE CONTRACTOR,REVENUE
Walsall Council,http://opendatacommunities.org/id/metropolitan-district-council/walsall ,WC145-56,31.12.2022,ADULT SOCIAL CARE,5 CARE SERVICES LTD,05/12/2022, 565.60 ,6541-Domiciliary Care,THIRD PARTY PAYMENTS,PRIVATE CONTRACTOR,REVENUE
Walsall Council,http://opendatacommunities.org/id/metropolitan-district-council/walsall ,WC145-57,31.12.2022,ADULT SOCIAL CARE,5 CARE SERVICES LTD,05/12/2022, 581.76 ,6541-Domiciliary Care,THIRD PARTY PAYMENTS,PRIVATE CONTRACTOR,REVENUE
Walsall Council,http://opendatacommunities.org/id/metropolitan-district-council/walsall ,WC145-58,31.12.2022,ADULT SOCIAL CARE,5 CARE SERVICES LTD,05/12/2022, 254.52 ,6541-Domiciliary Care,THIRD PARTY PAYMENTS,PRIVATE CONTRACTOR,REVENUE
Walsall Council,http://opendatacommunities.org/id/metropolitan-district-council/walsall ,WC145-59,31.12.2022,ADULT SOCIAL CARE,5 CARE SERVICES LTD,05/12/2022, 536.02 ,6541-Domiciliary Care,THIRD PARTY PAYMENTS,PRIVATE CONTRACTOR,REVENUE
Walsall Council,http://opendatacommunities.org/id/metropolitan-district-council/walsall ,WC145-60,31.12.2022,ADULT SOCIAL CARE,5 CARE SERVICES LTD,05/12/2022, 711.04 ,6541-Domiciliary Care,THIRD PARTY PAYMENTS,PRIVATE CONTRACTOR,REVENUE
Walsall Council,http://opendatacommunities.org/id/metropolitan-district-council/walsall ,WC145-61,31.12.2022,ADULT SOCIAL CARE,5 CARE SERVICES LTD,05/12/2022," 1,418.12 ",6541-Domiciliary Care,THIRD PARTY PAYMENTS,PRIVATE CONTRACTOR,REVENUE
Walsall Council,http://opendatacommunities.org/id/metropolitan-district-council/walsall ,WC145-62,31.12.2022,ADULT SOCIAL CARE,5 CARE SERVICES LTD,05/12/2022, 319.16 ,6541-Domiciliary Care,THIRD PARTY PAYMENTS,PRIVATE CONTRACTOR,REVENUE
Walsall Council,http://opendatacommunities.org/id/metropolitan-district-council/walsall ,WC145-63,31.12.2022,ADULT SOCIAL CARE,5 CARE SERVICES LTD,05/12/2022, 436.32 ,6541-Domiciliary Care,THIRD PARTY PAYMENTS,PRIVATE CONTRACTOR,REVENUE
Walsall Council,http://opendatacommunities.org/id/metropolitan-district-council/walsall ,WC145-64,31.12.2022,ADULT SOCIAL CARE,5 CARE SERVICES LTD,05/12/2022, 509.04 ,6541-Domiciliary Care,THIRD PARTY PAYMENTS,PRIVATE CONTRACTOR,REVENUE
Walsall Council,http://opendatacommunities.org/id/metropolitan-district-council/walsall ,WC145-65,31.12.2022,ADULT SOCIAL CARE,5 CARE SERVICES LTD,05/12/2022, 509.04 ,6541-Domiciliary Care,THIRD PARTY PAYMENTS,PRIVATE CONTRACTOR,REVENUE
Walsall Council,http://opendatacommunities.org/id/metropolitan-district-council/walsall ,WC145-66,31.12.2022,ADULT SOCIAL CARE,5 CARE SERVICES LTD,05/12/2022, 904.96 ,6541-Domiciliary Care,THIRD PARTY PAYMENTS,PRIVATE CONTRACTOR,REVENUE
Walsall Council,http://opendatacommunities.org/id/metropolitan-district-council/walsall ,WC145-67,31.12.2022,ADULT SOCIAL CARE,5 CARE SERVICES LTD,05/12/2022, 254.52 ,6541-Domiciliary Care,THIRD PARTY PAYMENTS,PRIVATE CONTRACTOR,REVENUE
Walsall Council,http://opendatacommunities.org/id/metropolitan-district-council/walsall ,WC145-68,31.12.2022,ADULT SOCIAL CARE,5 CARE SERVICES LTD,05/12/2022, 258.56 ,6541-Domiciliary Care,THIRD PARTY PAYMENTS,PRIVATE CONTRACTOR,REVENUE
Walsall Council,http://opendatacommunities.org/id/metropolitan-district-council/walsall ,WC145-69,31.12.2022,ADULT SOCIAL CARE,5 CARE SERVICES LTD,05/12/2022, 509.04 ,6541-Domiciliary Care,THIRD PARTY PAYMENTS,PRIVATE CONTRACTOR,REVENUE
Walsall Council,http://opendatacommunities.org/id/metropolitan-district-council/walsall ,WC145-70,31.12.2022,ADULT SOCIAL CARE,5 CARE SERVICES LTD,05/12/2022, 339.36 ,6541-Domiciliary Care,THIRD PARTY PAYMENTS,PRIVATE CONTRACTOR,REVENUE
Walsall Council,http://opendatacommunities.org/id/metropolitan-district-council/walsall ,WC145-71,31.12.2022,ADULT SOCIAL CARE,5 CARE SERVICES LTD,05/12/2022, 969.60 ,6541-Domiciliary Care,THIRD PARTY PAYMENTS,PRIVATE CONTRACTOR,REVENUE
Walsall Council,http://opendatacommunities.org/id/metropolitan-district-council/walsall ,WC145-72,31.12.2022,ADULT SOCIAL CARE,5 CARE SERVICES LTD,05/12/2022, 339.36 ,6541-Domiciliary Care,THIRD PARTY PAYMENTS,PRIVATE CONTRACTOR,REVENUE
Walsall Council,http://opendatacommunities.org/id/metropolitan-district-council/walsall ,WC145-73,31.12.2022,ADULT SOCIAL CARE,5 CARE SERVICES LTD,05/12/2022, 622.16 ,6541-Domiciliary Care,THIRD PARTY PAYMENTS,PRIVATE CONTRACTOR,REVENUE
Walsall Council,http://opendatacommunities.org/id/metropolitan-district-council/walsall ,WC145-74,31.12.2022,ADULT SOCIAL CARE,5 CARE SERVICES LTD,05/12/2022,-363.60 ,6541-Domiciliary Care,THIRD PARTY PAYMENTS,PRIVATE CONTRACTOR,REVENUE
Walsall Council,http://opendatacommunities.org/id/metropolitan-district-council/walsall ,WC145-75,31.12.2022,ADULT SOCIAL CARE,5 CARE SERVICES LTD,05/12/2022, 678.72 ,6541-Domiciliary Care,THIRD PARTY PAYMENTS,PRIVATE CONTRACTOR,REVENUE
Walsall Council,http://opendatacommunities.org/id/metropolitan-district-council/walsall ,WC145-76,31.12.2022,ADULT SOCIAL CARE,5 CARE SERVICES LTD,05/12/2022, 659.89 ,6541-Domiciliary Care,THIRD PARTY PAYMENTS,PRIVATE CONTRACTOR,REVENUE
Walsall Council,http://opendatacommunities.org/id/metropolitan-district-council/walsall ,WC145-77,31.12.2022,ADULT SOCIAL CARE,5 CARE SERVICES LTD,05/12/2022, 765.00 ,6541-Domiciliary Care,THIRD PARTY PAYMENTS,PRIVATE CONTRACTOR,REVENUE
Walsall Council,http://opendatacommunities.org/id/metropolitan-district-council/walsall ,WC145-78,31.12.2022,ADULT SOCIAL CARE,5 CARE SERVICES LTD,05/12/2022, 509.04 ,6541-Domiciliary Care,THIRD PARTY PAYMENTS,PRIVATE CONTRACTOR,REVENUE
Walsall Council,http://opendatacommunities.org/id/metropolitan-district-council/walsall ,WC145-79,31.12.2022,ADULT SOCIAL CARE,5 CARE SERVICES LTD,05/12/2022, 258.56 ,6541-Domiciliary Care,THIRD PARTY PAYMENTS,PRIVATE CONTRACTOR,REVENUE
Walsall Council,http://opendatacommunities.org/id/metropolitan-district-council/walsall ,WC145-80,31.12.2022,ADULT SOCIAL CARE,5 CARE SERVICES LTD,05/12/2022, 339.36 ,6541-Domiciliary Care,THIRD PARTY PAYMENTS,PRIVATE CONTRACTOR,REVENUE
Walsall Council,http://opendatacommunities.org/id/metropolitan-district-council/walsall ,WC145-81,31.12.2022,ADULT SOCIAL CARE,5 CARE SERVICES LTD,05/12/2022, 509.04 ,6541-Domiciliary Care,THIRD PARTY PAYMENTS,PRIVATE CONTRACTOR,REVENUE
Walsall Council,http://opendatacommunities.org/id/metropolitan-district-council/walsall ,WC145-82,31.12.2022,ADULT SOCIAL CARE,5 CARE SERVICES LTD,05/12/2022, 565.60 ,6541-Domiciliary Care,THIRD PARTY PAYMENTS,PRIVATE CONTRACTOR,REVENUE
Walsall Council,http://opendatacommunities.org/id/metropolitan-district-council/walsall ,WC145-83,31.12.2022,ADULT SOCIAL CARE,5 CARE SERVICES LTD,05/12/2022, 735.28 ,6541-Domiciliary Care,THIRD PARTY PAYMENTS,PRIVATE CONTRACTOR,REVENUE
Walsall Council,http://opendatacommunities.org/id/metropolitan-district-council/walsall ,WC145-84,31.12.2022,ADULT SOCIAL CARE,5 CARE SERVICES LTD,05/12/2022, 254.52 ,6541-Domiciliary Care,THIRD PARTY PAYMENTS,PRIVATE CONTRACTOR,REVENUE
Walsall Council,http://opendatacommunities.org/id/metropolitan-district-council/walsall ,WC145-85,31.12.2022,ADULT SOCIAL CARE,5 CARE SERVICES LTD,05/12/2022, 263.97 ,6541-Domiciliary Care,THIRD PARTY PAYMENTS,PRIVATE CONTRACTOR,REVENUE
Walsall Council,http://opendatacommunities.org/id/metropolitan-district-council/walsall ,WC145-86,31.12.2022,ADULT SOCIAL CARE,5 CARE SERVICES LTD,05/12/2022, 509.04 ,6541-Domiciliary Care,THIRD PARTY PAYMENTS,PRIVATE CONTRACTOR,REVENUE
Walsall Council,http://opendatacommunities.org/id/metropolitan-district-council/walsall ,WC145-87,31.12.2022,ADULT SOCIAL CARE,5 CARE SERVICES LTD,05/12/2022, 509.04 ,6541-Domiciliary Care,THIRD PARTY PAYMENTS,PRIVATE CONTRACTOR,REVENUE
Walsall Council,http://opendatacommunities.org/id/metropolitan-district-council/walsall ,WC145-88,31.12.2022,ADULT SOCIAL CARE,5 CARE SERVICES LTD,05/12/2022, 581.76 ,6541-Domiciliary Care,THIRD PARTY PAYMENTS,PRIVATE CONTRACTOR,REVENUE
Walsall Council,http://opendatacommunities.org/id/metropolitan-district-council/walsall ,WC145-89,31.12.2022,ADULT SOCIAL CARE,5 CARE SERVICES LTD,05/12/2022, 254.52 ,6541-Domiciliary Care,THIRD PARTY PAYMENTS,PRIVATE CONTRACTOR,REVENUE
Walsall Council,http://opendatacommunities.org/id/metropolitan-district-council/walsall ,WC145-90,31.12.2022,ADULT SOCIAL CARE,5 CARE SERVICES LTD,05/12/2022, 258.56 ,6541-Domiciliary Care,THIRD PARTY PAYMENTS,PRIVATE CONTRACTOR,REVENUE
Walsall Council,http://opendatacommunities.org/id/metropolitan-district-council/walsall ,WC145-91,31.12.2022,ADULT SOCIAL CARE,5 CARE SERVICES LTD,05/12/2022, 294.92 ,6541-Domiciliary Care,THIRD PARTY PAYMENTS,PRIVATE CONTRACTOR,REVENUE
Walsall Council,http://opendatacommunities.org/id/metropolitan-district-council/walsall ,WC145-92,31.12.2022,ADULT SOCIAL CARE,5 CARE SERVICES LTD,05/12/2022, 509.04 ,6541-Domiciliary Care,THIRD PARTY PAYMENTS,PRIVATE CONTRACTOR,REVENUE
Walsall Council,http://opendatacommunities.org/id/metropolitan-district-council/walsall ,WC145-93,31.12.2022,ADULT SOCIAL CARE,5 CARE SERVICES LTD,05/12/2022, 904.96 ,6541-Domiciliary Care,THIRD PARTY PAYMENTS,PRIVATE CONTRACTOR,REVENUE
Walsall Council,http://opendatacommunities.org/id/metropolitan-district-council/walsall ,WC145-94,31.12.2022,ADULT SOCIAL CARE,5 CARE SERVICES LTD,05/12/2022, 565.60 ,6541-Domiciliary Care,THIRD PARTY PAYMENTS,PRIVATE CONTRACTOR,REVENUE
Walsall Council,http://opendatacommunities.org/id/metropolitan-district-council/walsall ,WC145-95,31.12.2022,ADULT SOCIAL CARE,5 CARE SERVICES LTD,05/12/2022, 735.28 ,6541-Domiciliary Care,THIRD PARTY PAYMENTS,PRIVATE CONTRACTOR,REVENUE
Walsall Council,http://opendatacommunities.org/id/metropolitan-district-council/walsall ,WC145-96,31.12.2022,ADULT SOCIAL CARE,5 CARE SERVICES LTD,05/12/2022," 1,163.52 ",6541-Domiciliary Care,THIRD PARTY PAYMENTS,PRIVATE CONTRACTOR,REVENUE
Walsall Council,http://opendatacommunities.org/id/metropolitan-district-council/walsall ,WC145-97,31.12.2022,ADULT SOCIAL CARE,5 CARE SERVICES LTD,05/12/2022, 678.72 ,6541-Domiciliary Care,THIRD PARTY PAYMENTS,PRIVATE CONTRACTOR,REVENUE
Walsall Council,http://opendatacommunities.org/id/metropolitan-district-council/walsall ,WC145-98,31.12.2022,ADULT SOCIAL CARE,5 CARE SERVICES LTD,05/12/2022, 659.89 ,6541-Domiciliary Care,THIRD PARTY PAYMENTS,PRIVATE CONTRACTOR,REVENUE
Walsall Council,http://opendatacommunities.org/id/metropolitan-district-council/walsall ,WC145-99,31.12.2022,ADULT SOCIAL CARE,5 CARE SERVICES LTD,05/12/2022, 509.04 ,6541-Domiciliary Care,THIRD PARTY PAYMENTS,PRIVATE CONTRACTOR,REVENUE
Walsall Council,http://opendatacommunities.org/id/metropolitan-district-council/walsall ,WC145-100,31.12.2022,ADULT SOCIAL CARE,5 CARE SERVICES LTD,05/12/2022, 339.36 ,6541-Domiciliary Care,THIRD PARTY PAYMENTS,PRIVATE CONTRACTOR,REVENUE
Walsall Council,http://opendatacommunities.org/id/metropolitan-district-council/walsall ,WC145-101,31.12.2022,ADULT SOCIAL CARE,5 CARE SERVICES LTD,05/12/2022, 765.00 ,6541-Domiciliary Care,THIRD PARTY PAYMENTS,PRIVATE CONTRACTOR,REVENUE
Walsall Council,http://opendatacommunities.org/id/metropolitan-district-council/walsall ,WC145-102,31.12.2022,ADULT SOCIAL CARE,5 CARE SERVICES LTD,05/12/2022, 254.52 ,6541-Domiciliary Care,THIRD PARTY PAYMENTS,PRIVATE CONTRACTOR,REVENUE
Walsall Council,http://opendatacommunities.org/id/metropolitan-district-council/walsall ,WC145-103,31.12.2022,ADULT SOCIAL CARE,5 CARE SERVICES LTD,05/12/2022, 452.48 ,6541-Domiciliary Care,THIRD PARTY PAYMENTS,PRIVATE CONTRACTOR,REVENUE
Walsall Council,http://opendatacommunities.org/id/metropolitan-district-council/walsall ,WC145-104,31.12.2022,ADULT SOCIAL CARE,5 CARE SERVICES LTD,05/12/2022, 565.60 ,6541-Domiciliary Care,THIRD PARTY PAYMENTS,PRIVATE CONTRACTOR,REVENUE
Walsall Council,http://opendatacommunities.org/id/metropolitan-district-council/walsall ,WC145-105,31.12.2022,ADULT SOCIAL CARE,5 CARE SERVICES LTD,05/12/2022, 319.16 ,6541-Domiciliary Care,THIRD PARTY PAYMENTS,PRIVATE CONTRACTOR,REVENUE
Walsall Council,http://opendatacommunities.org/id/metropolitan-district-council/walsall ,WC145-106,31.12.2022,ADULT SOCIAL CARE,5 CARE SERVICES LTD,05/12/2022, 452.48 ,6541-Domiciliary Care,THIRD PARTY PAYMENTS,PRIVATE CONTRACTOR,REVENUE
Walsall Council,http://opendatacommunities.org/id/metropolitan-district-council/walsall ,WC145-107,31.12.2022,ADULT SOCIAL CARE,5 CARE SERVICES LTD,05/12/2022, 254.52 ,6541-Domiciliary Care,THIRD PARTY PAYMENTS,PRIVATE CONTRACTOR,REVENUE
Walsall Council,http://opendatacommunities.org/id/metropolitan-district-council/walsall ,WC145-108,31.12.2022,ADULT SOCIAL CARE,5 CARE SERVICES LTD,05/12/2022, 536.02 ,6541-Domiciliary Care,THIRD PARTY PAYMENTS,PRIVATE CONTRACTOR,REVENUE
Walsall Council,http://opendatacommunities.org/id/metropolitan-district-council/walsall ,WC145-109,31.12.2022,ADULT SOCIAL CARE,5 CARE SERVICES LTD,05/12/2022, 654.48 ,6541-Domiciliary Care,THIRD PARTY PAYMENTS,PRIVATE CONTRACTOR,REVENUE
Walsall Council,http://opendatacommunities.org/id/metropolitan-district-council/walsall ,WC145-110,31.12.2022,ADULT SOCIAL CARE,5 CARE SERVICES LTD,05/12/2022," 1,244.32 ",6541-Domiciliary Care,THIRD PARTY PAYMENTS,PRIVATE CONTRACTOR,REVENUE
Walsall Council,http://opendatacommunities.org/id/metropolitan-district-council/walsall ,WC145-111,31.12.2022,ADULT SOCIAL CARE,5 CARE SERVICES LTD,05/12/2022, 509.04 ,6541-Domiciliary Care,THIRD PARTY PAYMENTS,PRIVATE CONTRACTOR,REVENUE
Walsall Council,http://opendatacommunities.org/id/metropolitan-district-council/walsall ,WC145-112,31.12.2022,ADULT SOCIAL CARE,5 CARE SERVICES LTD,05/12/2022, 339.36 ,6541-Domiciliary Care,THIRD PARTY PAYMENTS,PRIVATE CONTRACTOR,REVENUE
Walsall Council,http://opendatacommunities.org/id/metropolitan-district-council/walsall ,WC145-113,31.12.2022,ADULT SOCIAL CARE,5 CARE SERVICES LTD,05/12/2022, 254.52 ,6541-Domiciliary Care,THIRD PARTY PAYMENTS,PRIVATE CONTRACTOR,REVENUE
Walsall Council,http://opendatacommunities.org/id/metropolitan-district-council/walsall ,WC145-114,31.12.2022,ADULT SOCIAL CARE,5 CARE SERVICES LTD,05/12/2022, 263.97 ,6541-Domiciliary Care,THIRD PARTY PAYMENTS,PRIVATE CONTRACTOR,REVENUE
Walsall Council,http://opendatacommunities.org/id/metropolitan-district-council/walsall ,WC145-115,31.12.2022,ADULT SOCIAL CARE,5 CARE SERVICES LTD,05/12/2022, 509.04 ,6541-Domiciliary Care,THIRD PARTY PAYMENTS,PRIVATE CONTRACTOR,REVENUE
Walsall Council,http://opendatacommunities.org/id/metropolitan-district-council/walsall ,WC145-116,31.12.2022,ADULT SOCIAL CARE,5 CARE SERVICES LTD,05/12/2022, 323.20 ,6541-Domiciliary Care,THIRD PARTY PAYMENTS,PRIVATE CONTRACTOR,REVENUE
Walsall Council,http://opendatacommunities.org/id/metropolitan-district-council/walsall ,WC145-117,31.12.2022,ADULT SOCIAL CARE,5 CARE SERVICES LTD,05/12/2022, 339.36 ,6541-Domiciliary Care,THIRD PARTY PAYMENTS,PRIVATE CONTRACTOR,REVENUE
Walsall Council,http://opendatacommunities.org/id/metropolitan-district-council/walsall ,WC145-118,31.12.2022,ADULT SOCIAL CARE,5 CARE SERVICES LTD,05/12/2022, 509.04 ,6541-Domiciliary Care,THIRD PARTY PAYMENTS,PRIVATE CONTRACTOR,REVENUE
Walsall Council,http://opendatacommunities.org/id/metropolitan-district-council/walsall ,WC145-119,31.12.2022,ADULT SOCIAL CARE,5 CARE SERVICES LTD,05/12/2022, 509.04 ,6541-Domiciliary Care,THIRD PARTY PAYMENTS,PRIVATE CONTRACTOR,REVENUE
Walsall Council,http://opendatacommunities.org/id/metropolitan-district-council/walsall ,WC145-120,31.12.2022,ADULT SOCIAL CARE,5 CARE SERVICES LTD,05/12/2022, 509.04 ,6541-Domiciliary Care,THIRD PARTY PAYMENTS,PRIVATE CONTRACTOR,REVENUE
Walsall Council,http://opendatacommunities.org/id/metropolitan-district-council/walsall ,WC145-121,31.12.2022,ADULT SOCIAL CARE,5 CARE SERVICES LTD,14/12/2022, 909.00 ,6541-Domiciliary Care,THIRD PARTY PAYMENTS,PRIVATE CONTRACTOR,REVENUE
Walsall Council,http://opendatacommunities.org/id/metropolitan-district-council/walsall ,WC145-122,31.12.2022,ADULT SOCIAL CARE,5 CARE SERVICES LTD,14/12/2022," 2,036.16 ",6554-Professional Services-Priv Contractor & Other Agencies,THIRD PARTY PAYMENTS,PRIVATE CONTRACTOR,REVENUE
Walsall Council,http://opendatacommunities.org/id/metropolitan-district-council/walsall ,WC145-123,31.12.2022,ADULT SOCIAL CARE,5 CARE SERVICES LTD,14/12/2022, 290.88 ,6554-Professional Services-Priv Contractor & Other Agencies,THIRD PARTY PAYMENTS,PRIVATE CONTRACTOR,REVENUE
Walsall Council,http://opendatacommunities.org/id/metropolitan-district-council/walsall ,WC145-124,31.12.2022,ADULT SOCIAL CARE,5 CARE SERVICES LTD,14/12/2022," 2,036.16 ",6554-Professional Services-Priv Contractor & Other Agencies,THIRD PARTY PAYMENTS,PRIVATE CONTRACTOR,REVENUE
Walsall Council,http://opendatacommunities.org/id/metropolitan-district-council/walsall ,WC145-125,31.12.2022,ADULT SOCIAL CARE,5 CARE SERVICES LTD,14/12/2022, 327.24 ,6554-Professional Services-Priv Contractor & Other Agencies,THIRD PARTY PAYMENTS,PRIVATE CONTRACTOR,REVENUE
Walsall Council,http://opendatacommunities.org/id/metropolitan-district-council/walsall ,WC145-126,31.12.2022,ADULT SOCIAL CARE,5 CARE SERVICES LTD,14/12/2022, 343.40 ,6554-Professional Services-Priv Contractor & Other Agencies,THIRD PARTY PAYMENTS,PRIVATE CONTRACTOR,REVENUE
Walsall Council,http://opendatacommunities.org/id/metropolitan-district-council/walsall ,WC145-127,31.12.2022,ADULT SOCIAL CARE,5 CARE SERVICES LTD,14/12/2022," 1,734.88 ",6554-Professional Services-Priv Contractor & Other Agencies,THIRD PARTY PAYMENTS,PRIVATE CONTRACTOR,REVENUE
Walsall Council,http://opendatacommunities.org/id/metropolitan-district-council/walsall ,WC145-128,31.12.2022,ADULT SOCIAL CARE,5 CARE SERVICES LTD,14/12/2022, 525.20 ,6554-Professional Services-Priv Contractor & Other Agencies,THIRD PARTY PAYMENTS,PRIVATE CONTRACTOR,REVENUE
Walsall Council,http://opendatacommunities.org/id/metropolitan-district-council/walsall ,WC145-129,31.12.2022,ADULT SOCIAL CARE,5 CARE SERVICES LTD,14/12/2022," 1,203.92 ",6554-Professional Services-Priv Contractor & Other Agencies,THIRD PARTY PAYMENTS,PRIVATE CONTRACTOR,REVENUE
Walsall Council,http://opendatacommunities.org/id/metropolitan-district-council/walsall ,WC145-130,31.12.2022,ADULT SOCIAL CARE,5 CARE SERVICES LTD,14/12/2022, 993.84 ,6554-Professional Services-Priv Contractor & Other Agencies,THIRD PARTY PAYMENTS,PRIVATE CONTRACTOR,REVENUE
Walsall Council,http://opendatacommunities.org/id/metropolitan-district-council/walsall ,WC145-131,31.12.2022,ADULT SOCIAL CARE,5 CARE SERVICES LTD,14/12/2022, 791.84 ,6554-Professional Services-Priv Contractor & Other Agencies,THIRD PARTY PAYMENTS,PRIVATE CONTRACTOR,REVENUE
Walsall Council,http://opendatacommunities.org/id/metropolitan-district-council/walsall ,WC145-132,31.12.2022,ADULT SOCIAL CARE,5 CARE SERVICES LTD,14/12/2022," 1,163.52 ",6554-Professional Services-Priv Contractor & Other Agencies,THIRD PARTY PAYMENTS,PRIVATE CONTRACTOR,REVENUE
Walsall Council,http://opendatacommunities.org/id/metropolitan-district-council/walsall ,WC145-133,31.12.2022,ADULT SOCIAL CARE,5 CARE SERVICES LTD,14/12/2022," 1,139.28 ",6554-Professional Services-Priv Contractor & Other Agencies,THIRD PARTY PAYMENTS,PRIVATE CONTRACTOR,REVENUE
Walsall Council,http://opendatacommunities.org/id/metropolitan-district-council/walsall ,WC145-134,31.12.2022,ADULT SOCIAL CARE,5 CARE SERVICES LTD,14/12/2022, 274.72 ,6554-Professional Services-Priv Contractor & Other Agencies,THIRD PARTY PAYMENTS,PRIVATE CONTRACTOR,REVENUE
Walsall Council,http://opendatacommunities.org/id/metropolitan-district-council/walsall ,WC145-135,31.12.2022,ADULT SOCIAL CARE,5 CARE SERVICES LTD,14/12/2022, 412.08 ,6554-Professional Services-Priv Contractor & Other Agencies,THIRD PARTY PAYMENTS,PRIVATE CONTRACTOR,REVENUE
Walsall Council,http://opendatacommunities.org/id/metropolitan-district-council/walsall ,WC145-136,31.12.2022,ADULT SOCIAL CARE,5 CARE SERVICES LTD,14/12/2022," 1,704.88 ",6554-Professional Services-Priv Contractor & Other Agencies,THIRD PARTY PAYMENTS,PRIVATE CONTRACTOR,REVENUE
Walsall Council,http://opendatacommunities.org/id/metropolitan-district-council/walsall ,WC145-137,31.12.2022,ADULT SOCIAL CARE,5 CARE SERVICES LTD,14/12/2022, 339.36 ,6554-Professional Services-Priv Contractor & Other Agencies,THIRD PARTY PAYMENTS,PRIVATE CONTRACTOR,REVENUE
Walsall Council,http://opendatacommunities.org/id/metropolitan-district-council/walsall ,WC145-138,31.12.2022,ADULT SOCIAL CARE,5 CARE SERVICES LTD,14/12/2022, 343.40 ,6554-Professional Services-Priv Contractor & Other Agencies,THIRD PARTY PAYMENTS,PRIVATE CONTRACTOR,REVENUE
Walsall Council,http://opendatacommunities.org/id/metropolitan-district-council/walsall ,WC145-139,31.12.2022,ADULT SOCIAL CARE,5 CARE SERVICES LTD,14/12/2022, 404.00 ,6554-Professional Services-Priv Contractor & Other Agencies,THIRD PARTY PAYMENTS,PRIVATE CONTRACTOR,REVENUE
Walsall Council,http://opendatacommunities.org/id/metropolitan-district-council/walsall ,WC145-140,31.12.2022,ADULT SOCIAL CARE,5 CARE SERVICES LTD,14/12/2022," 1,527.12 ",6554-Professional Services-Priv Contractor & Other Agencies,THIRD PARTY PAYMENTS,PRIVATE CONTRACTOR,REVENUE
Walsall Council,http://opendatacommunities.org/id/metropolitan-district-council/walsall ,WC145-141,31.12.2022,ADULT SOCIAL CARE,5 CARE SERVICES LTD,14/12/2022," 7,671.96 ",6554-Professional Services-Priv Contractor & Other Agencies,THIRD PARTY PAYMENTS,PRIVATE CONTRACTOR,REVENUE
Walsall Council,http://opendatacommunities.org/id/metropolitan-district-council/walsall ,WC145-142,31.12.2022,ADULT SOCIAL CARE,5 CARE SERVICES LTD,14/12/2022, 363.60 ,6554-Professional Services-Priv Contractor & Other Agencies,THIRD PARTY PAYMENTS,PRIVATE CONTRACTOR,REVENUE
Walsall Council,http://opendatacommunities.org/id/metropolitan-district-council/walsall ,WC145-143,31.12.2022,ADULT SOCIAL CARE,5 CARE SERVICES LTD,14/12/2022," 1,252.40 ",6554-Professional Services-Priv Contractor & Other Agencies,THIRD PARTY PAYMENTS,PRIVATE CONTRACTOR,REVENUE
Walsall Council,http://opendatacommunities.org/id/metropolitan-district-council/walsall ,WC145-144,31.12.2022,ADULT SOCIAL CARE,5 CARE SERVICES LTD,14/12/2022, 258.56 ,6554-Professional Services-Priv Contractor & Other Agencies,THIRD PARTY PAYMENTS,PRIVATE CONTRACTOR,REVENUE
Walsall Council,http://opendatacommunities.org/id/metropolitan-district-council/walsall ,WC145-145,31.12.2022,ADULT SOCIAL CARE,5 CARE SERVICES LTD,14/12/2022," 2,391.68 ",6554-Professional Services-Priv Contractor & Other Agencies,THIRD PARTY PAYMENTS,PRIVATE CONTRACTOR,REVENUE
Walsall Council,http://opendatacommunities.org/id/metropolitan-district-council/walsall ,WC145-146,31.12.2022,ADULT SOCIAL CARE,5 CARE SERVICES LTD,14/12/2022, 424.20 ,6554-Professional Services-Priv Contractor & Other Agencies,THIRD PARTY PAYMENTS,PRIVATE CONTRACTOR,REVENUE
Walsall Council,http://opendatacommunities.org/id/metropolitan-district-council/walsall ,WC145-147,31.12.2022,ADULT SOCIAL CARE,5 CARE SERVICES LTD,14/12/2022, 452.48 ,6554-Professional Services-Priv Contractor & Other Agencies,THIRD PARTY PAYMENTS,PRIVATE CONTRACTOR,REVENUE
Walsall Council,http://opendatacommunities.org/id/metropolitan-district-council/walsall ,WC145-148,31.12.2022,ADULT SOCIAL CARE,5 CARE SERVICES LTD,14/12/2022, 618.12 ,6554-Professional Services-Priv Contractor & Other Agencies,THIRD PARTY PAYMENTS,PRIVATE CONTRACTOR,REVENUE
Walsall Council,http://opendatacommunities.org/id/metropolitan-district-council/walsall ,WC145-149,31.12.2022,ADULT SOCIAL CARE,5 CARE SERVICES LTD,14/12/2022, 278.76 ,6554-Professional Services-Priv Contractor & Other Agencies,THIRD PARTY PAYMENTS,PRIVATE CONTRACTOR,REVENUE
Walsall Council,http://opendatacommunities.org/id/metropolitan-district-council/walsall ,WC145-150,31.12.2022,ADULT SOCIAL CARE,5 CARE SERVICES LTD,14/12/2022," 1,943.24 ",6554-Professional Services-Priv Contractor & Other Agencies,THIRD PARTY PAYMENTS,PRIVATE CONTRACTOR,REVENUE
Walsall Council,http://opendatacommunities.org/id/metropolitan-district-council/walsall ,WC145-151,31.12.2022,ADULT SOCIAL CARE,5 CARE SERVICES LTD,14/12/2022," 5,720.64 ",6554-Professional Services-Priv Contractor & Other Agencies,THIRD PARTY PAYMENTS,PRIVATE CONTRACTOR,REVENUE
Walsall Council,http://opendatacommunities.org/id/metropolitan-district-council/walsall ,WC145-152,31.12.2022,ADULT SOCIAL CARE,5 CARE SERVICES LTD,14/12/2022," 1,252.40 ",6554-Professional Services-Priv Contractor & Other Agencies,THIRD PARTY PAYMENTS,PRIVATE CONTRACTOR,REVENUE
Walsall Council,http://opendatacommunities.org/id/metropolitan-district-council/walsall ,WC145-153,31.12.2022,ADULT SOCIAL CARE,5 CARE SERVICES LTD,14/12/2022," 2,032.12 ",6554-Professional Services-Priv Contractor & Other Agencies,THIRD PARTY PAYMENTS,PRIVATE CONTRACTOR,REVENUE
Walsall Council,http://opendatacommunities.org/id/metropolitan-district-council/walsall ,WC145-154,31.12.2022,ADULT SOCIAL CARE,5 CARE SERVICES LTD,14/12/2022," 1,377.64 ",6554-Professional Services-Priv Contractor & Other Agencies,THIRD PARTY PAYMENTS,PRIVATE CONTRACTOR,REVENUE
Walsall Council,http://opendatacommunities.org/id/metropolitan-district-council/walsall ,WC145-155,31.12.2022,ADULT SOCIAL CARE,5 CARE SERVICES LTD,14/12/2022, 775.68 ,6554-Professional Services-Priv Contractor & Other Agencies,THIRD PARTY PAYMENTS,PRIVATE CONTRACTOR,REVENUE
Walsall Council,http://opendatacommunities.org/id/metropolitan-district-council/walsall ,WC145-156,31.12.2022,ADULT SOCIAL CARE,5 CARE SERVICES LTD,19/12/2022, 678.72 ,6541-Domiciliary Care,THIRD PARTY PAYMENTS,PRIVATE CONTRACTOR,REVENUE
Walsall Council,http://opendatacommunities.org/id/metropolitan-district-council/walsall ,WC145-157,31.12.2022,ADULT SOCIAL CARE,5 CARE SERVICES LTD,19/12/2022, 294.92 ,6541-Domiciliary Care,THIRD PARTY PAYMENTS,PRIVATE CONTRACTOR,REVENUE
Walsall Council,http://opendatacommunities.org/id/metropolitan-district-council/walsall ,WC145-158,31.12.2022,ADULT SOCIAL CARE,5 CARE SERVICES LTD,19/12/2022, 659.89 ,6541-Domiciliary Care,THIRD PARTY PAYMENTS,PRIVATE CONTRACTOR,REVENUE
Walsall Council,http://opendatacommunities.org/id/metropolitan-district-council/walsall ,WC145-159,31.12.2022,ADULT SOCIAL CARE,5 CARE SERVICES LTD,19/12/2022, 387.84 ,6541-Domiciliary Care,THIRD PARTY PAYMENTS,PRIVATE CONTRACTOR,REVENUE
Walsall Council,http://opendatacommunities.org/id/metropolitan-district-council/walsall ,WC145-160,31.12.2022,ADULT SOCIAL CARE,5 CARE SERVICES LTD,19/12/2022, 339.36 ,6541-Domiciliary Care,THIRD PARTY PAYMENTS,PRIVATE CONTRACTOR,REVENUE
Walsall Council,http://opendatacommunities.org/id/metropolitan-district-council/walsall ,WC145-161,31.12.2022,ADULT SOCIAL CARE,5 CARE SERVICES LTD,19/12/2022, 509.04 ,6541-Domiciliary Care,THIRD PARTY PAYMENTS,PRIVATE CONTRACTOR,REVENUE
Walsall Council,http://opendatacommunities.org/id/metropolitan-district-council/walsall ,WC145-162,31.12.2022,ADULT SOCIAL CARE,5 CARE SERVICES LTD,19/12/2022, 565.60 ,6541-Domiciliary Care,THIRD PARTY PAYMENTS,PRIVATE CONTRACTOR,REVENUE
Walsall Council,http://opendatacommunities.org/id/metropolitan-district-council/walsall ,WC145-163,31.12.2022,ADULT SOCIAL CARE,5 CARE SERVICES LTD,19/12/2022, 581.76 ,6541-Domiciliary Care,THIRD PARTY PAYMENTS,PRIVATE CONTRACTOR,REVENUE
Walsall Council,http://opendatacommunities.org/id/metropolitan-district-council/walsall ,WC145-164,31.12.2022,ADULT SOCIAL CARE,5 CARE SERVICES LTD,19/12/2022, 904.96 ,6541-Domiciliary Care,THIRD PARTY PAYMENTS,PRIVATE CONTRACTOR,REVENUE
Walsall Council,http://opendatacommunities.org/id/metropolitan-district-council/walsall ,WC145-165,31.12.2022,ADULT SOCIAL CARE,5 CARE SERVICES LTD,19/12/2022, 254.52 ,6541-Domiciliary Care,THIRD PARTY PAYMENTS,PRIVATE CONTRACTOR,REVENUE
Walsall Council,http://opendatacommunities.org/id/metropolitan-district-council/walsall ,WC145-166,31.12.2022,ADULT SOCIAL CARE,5 CARE SERVICES LTD,19/12/2022," 1,163.52 ",6541-Domiciliary Care,THIRD PARTY PAYMENTS,PRIVATE CONTRACTOR,REVENUE
Walsall Council,http://opendatacommunities.org/id/metropolitan-district-council/walsall ,WC145-167,31.12.2022,ADULT SOCIAL CARE,5 CARE SERVICES LTD,19/12/2022, 565.60 ,6541-Domiciliary Care,THIRD PARTY PAYMENTS,PRIVATE CONTRACTOR,REVENUE
Walsall Council,http://opendatacommunities.org/id/metropolitan-district-council/walsall ,WC145-168,31.12.2022,ADULT SOCIAL CARE,5 CARE SERVICES LTD,19/12/2022, 735.28 ,6541-Domiciliary Care,THIRD PARTY PAYMENTS,PRIVATE CONTRACTOR,REVENUE
Walsall Council,http://opendatacommunities.org/id/metropolitan-district-council/walsall ,WC145-169,31.12.2022,ADULT SOCIAL CARE,5 CARE SERVICES LTD,19/12/2022, 254.52 ,6541-Domiciliary Care,THIRD PARTY PAYMENTS,PRIVATE CONTRACTOR,REVENUE
Walsall Council,http://opendatacommunities.org/id/metropolitan-district-council/walsall ,WC145-170,31.12.2022,ADULT SOCIAL CARE,5 CARE SERVICES LTD,19/12/2022, 536.02 ,6541-Domiciliary Care,THIRD PARTY PAYMENTS,PRIVATE CONTRACTOR,REVENUE
Walsall Council,http://opendatacommunities.org/id/metropolitan-district-council/walsall ,WC145-171,31.12.2022,ADULT SOCIAL CARE,5 CARE SERVICES LTD,19/12/2022, 638.32 ,6541-Domiciliary Care,THIRD PARTY PAYMENTS,PRIVATE CONTRACTOR,REVENUE
Walsall Council,http://opendatacommunities.org/id/metropolitan-district-council/walsall ,WC145-172,31.12.2022,ADULT SOCIAL CARE,5 CARE SERVICES LTD,19/12/2022," 1,244.32 ",6541-Domiciliary Care,THIRD PARTY PAYMENTS,PRIVATE CONTRACTOR,REVENUE
Walsall Council,http://opendatacommunities.org/id/metropolitan-district-council/walsall ,WC145-173,31.12.2022,ADULT SOCIAL CARE,5 CARE SERVICES LTD,19/12/2022, 258.56 ,6541-Domiciliary Care,THIRD PARTY PAYMENTS,PRIVATE CONTRACTOR,REVENUE
Walsall Council,http://opendatacommunities.org/id/metropolitan-district-council/walsall ,WC145-174,31.12.2022,ADULT SOCIAL CARE,5 CARE SERVICES LTD,19/12/2022,-900.60 ,6541-Domiciliary Care,THIRD PARTY PAYMENTS,PRIVATE CONTRACTOR,REVENUE
Walsall Council,http://opendatacommunities.org/id/metropolitan-district-council/walsall ,WC145-175,31.12.2022,ADULT SOCIAL CARE,5 CARE SERVICES LTD,19/12/2022, 509.04 ,6541-Domiciliary Care,THIRD PARTY PAYMENTS,PRIVATE CONTRACTOR,REVENUE
Walsall Council,http://opendatacommunities.org/id/metropolitan-district-council/walsall ,WC145-176,31.12.2022,ADULT SOCIAL CARE,5 CARE SERVICES LTD,19/12/2022, 263.97 ,6541-Domiciliary Care,THIRD PARTY PAYMENTS,PRIVATE CONTRACTOR,REVENUE
Walsall Council,http://opendatacommunities.org/id/metropolitan-district-council/walsall ,WC145-177,31.12.2022,ADULT SOCIAL CARE,5 CARE SERVICES LTD,19/12/2022, 678.72 ,6541-Domiciliary Care,THIRD PARTY PAYMENTS,PRIVATE CONTRACTOR,REVENUE
Walsall Council,http://opendatacommunities.org/id/metropolitan-district-council/walsall ,WC145-178,31.12.2022,ADULT SOCIAL CARE,5 CARE SERVICES LTD,19/12/2022, 254.52 ,6541-Domiciliary Care,THIRD PARTY PAYMENTS,PRIVATE CONTRACTOR,REVENUE
Walsall Council,http://opendatacommunities.org/id/metropolitan-district-council/walsall ,WC145-179,31.12.2022,ADULT SOCIAL CARE,5 CARE SERVICES LTD,19/12/2022, 452.48 ,6541-Domiciliary Care,THIRD PARTY PAYMENTS,PRIVATE CONTRACTOR,REVENUE
Walsall Council,http://opendatacommunities.org/id/metropolitan-district-council/walsall ,WC145-180,31.12.2022,ADULT SOCIAL CARE,5 CARE SERVICES LTD,19/12/2022, 452.48 ,6541-Domiciliary Care,THIRD PARTY PAYMENTS,PRIVATE CONTRACTOR,REVENUE
Walsall Council,http://opendatacommunities.org/id/metropolitan-district-council/walsall ,WC145-181,31.12.2022,ADULT SOCIAL CARE,5 CARE SERVICES LTD,19/12/2022, 484.80 ,6541-Domiciliary Care,THIRD PARTY PAYMENTS,PRIVATE CONTRACTOR,REVENUE
Walsall Council,http://opendatacommunities.org/id/metropolitan-district-council/walsall ,WC145-182,31.12.2022,ADULT SOCIAL CARE,5 CARE SERVICES LTD,19/12/2022, 339.36 ,6541-Domiciliary Care,THIRD PARTY PAYMENTS,PRIVATE CONTRACTOR,REVENUE
Walsall Council,http://opendatacommunities.org/id/metropolitan-district-council/walsall ,WC145-183,31.12.2022,ADULT SOCIAL CARE,5 CARE SERVICES LTD,19/12/2022, 509.04 ,6541-Domiciliary Care,THIRD PARTY PAYMENTS,PRIVATE CONTRACTOR,REVENUE
Walsall Council,http://opendatacommunities.org/id/metropolitan-district-council/walsall ,WC145-184,31.12.2022,ADULT SOCIAL CARE,5 CARE SERVICES LTD,19/12/2022, 509.04 ,6541-Domiciliary Care,THIRD PARTY PAYMENTS,PRIVATE CONTRACTOR,REVENUE
Walsall Council,http://opendatacommunities.org/id/metropolitan-district-council/walsall ,WC145-185,31.12.2022,ADULT SOCIAL CARE,5 CARE SERVICES LTD,19/12/2022, 254.52 ,6541-Domiciliary Care,THIRD PARTY PAYMENTS,PRIVATE CONTRACTOR,REVENUE
Walsall Council,http://opendatacommunities.org/id/metropolitan-district-council/walsall ,WC145-186,31.12.2022,ADULT SOCIAL CARE,5 CARE SERVICES LTD,19/12/2022, 509.04 ,6541-Domiciliary Care,THIRD PARTY PAYMENTS,PRIVATE CONTRACTOR,REVENUE
Walsall Council,http://opendatacommunities.org/id/metropolitan-district-council/walsall ,WC145-187,31.12.2022,ADULT SOCIAL CARE,5 CARE SERVICES LTD,19/12/2022, 765.00 ,6541-Domiciliary Care,THIRD PARTY PAYMENTS,PRIVATE CONTRACTOR,REVENUE
Walsall Council,http://opendatacommunities.org/id/metropolitan-district-council/walsall ,WC145-188,31.12.2022,ADULT SOCIAL CARE,5 CARE SERVICES LTD,19/12/2022, 339.36 ,6541-Domiciliary Care,THIRD PARTY PAYMENTS,PRIVATE CONTRACTOR,REVENUE
Walsall Council,http://opendatacommunities.org/id/metropolitan-district-council/walsall ,WC145-189,31.12.2022,ADULT SOCIAL CARE,5 CARE SERVICES LTD,19/12/2022, 509.04 ,6541-Domiciliary Care,THIRD PARTY PAYMENTS,PRIVATE CONTRACTOR,REVENUE
Walsall Council,http://opendatacommunities.org/id/metropolitan-district-council/walsall ,WC145-190,31.12.2022,ADULT SOCIAL CARE,5 CARE SERVICES LTD,19/12/2022, 565.60 ,6541-Domiciliary Care,THIRD PARTY PAYMENTS,PRIVATE CONTRACTOR,REVENUE
Walsall Council,http://opendatacommunities.org/id/metropolitan-district-council/walsall ,WC145-191,31.12.2022,ADULT SOCIAL CARE,5 CARE SERVICES LTD,19/12/2022, 581.76 ,6541-Domiciliary Care,THIRD PARTY PAYMENTS,PRIVATE CONTRACTOR,REVENUE
Walsall Council,http://opendatacommunities.org/id/metropolitan-district-council/walsall ,WC145-192,31.12.2022,ADULT SOCIAL CARE,5 CARE SERVICES LTD,19/12/2022, 254.52 ,6541-Domiciliary Care,THIRD PARTY PAYMENTS,PRIVATE CONTRACTOR,REVENUE
Walsall Council,http://opendatacommunities.org/id/metropolitan-district-council/walsall ,WC145-193,31.12.2022,ADULT SOCIAL CARE,5 CARE SERVICES LTD,19/12/2022," 1,115.04 ",6541-Domiciliary Care,THIRD PARTY PAYMENTS,PRIVATE CONTRACTOR,REVENUE
Walsall Council,http://opendatacommunities.org/id/metropolitan-district-council/walsall ,WC145-194,31.12.2022,ADULT SOCIAL CARE,5 CARE SERVICES LTD,19/12/2022, 258.56 ,6541-Domiciliary Care,THIRD PARTY PAYMENTS,PRIVATE CONTRACTOR,REVENUE
Walsall Council,http://opendatacommunities.org/id/metropolitan-district-council/walsall ,WC145-195,31.12.2022,ADULT SOCIAL CARE,5 CARE SERVICES LTD,19/12/2022, 509.04 ,6541-Domiciliary Care,THIRD PARTY PAYMENTS,PRIVATE CONTRACTOR,REVENUE
Walsall Council,http://opendatacommunities.org/id/metropolitan-district-council/walsall ,WC145-196,31.12.2022,ADULT SOCIAL CARE,5 CARE SERVICES LTD,19/12/2022, 765.00 ,6541-Domiciliary Care,THIRD PARTY PAYMENTS,PRIVATE CONTRACTOR,REVENUE
Walsall Council,http://opendatacommunities.org/id/metropolitan-district-council/walsall ,WC145-197,31.12.2022,ADULT SOCIAL CARE,5 CARE SERVICES LTD,19/12/2022, 735.28 ,6541-Domiciliary Care,THIRD PARTY PAYMENTS,PRIVATE CONTRACTOR,REVENUE
Walsall Council,http://opendatacommunities.org/id/metropolitan-district-council/walsall ,WC145-198,31.12.2022,ADULT SOCIAL CARE,5 CARE SERVICES LTD,19/12/2022, 339.36 ,6541-Domiciliary Care,THIRD PARTY PAYMENTS,PRIVATE CONTRACTOR,REVENUE
Walsall Council,http://opendatacommunities.org/id/metropolitan-district-council/walsall ,WC145-199,31.12.2022,ADULT SOCIAL CARE,5 CARE SERVICES LTD,19/12/2022, 254.52 ,6541-Domiciliary Care,THIRD PARTY PAYMENTS,PRIVATE CONTRACTOR,REVENUE
Walsall Council,http://opendatacommunities.org/id/metropolitan-district-council/walsall ,WC145-200,31.12.2022,ADULT SOCIAL CARE,5 CARE SERVICES LTD,19/12/2022, 536.02 ,6541-Domiciliary Care,THIRD PARTY PAYMENTS,PRIVATE CONTRACTOR,REVENUE
Walsall Council,http://opendatacommunities.org/id/metropolitan-district-council/walsall ,WC145-201,31.12.2022,ADULT SOCIAL CARE,5 CARE SERVICES LTD,19/12/2022, 662.56 ,6541-Domiciliary Care,THIRD PARTY PAYMENTS,PRIVATE CONTRACTOR,REVENUE
Walsall Council,http://opendatacommunities.org/id/metropolitan-district-council/walsall ,WC145-202,31.12.2022,ADULT SOCIAL CARE,5 CARE SERVICES LTD,19/12/2022," 1,244.32 ",6541-Domiciliary Care,THIRD PARTY PAYMENTS,PRIVATE CONTRACTOR,REVENUE
Walsall Council,http://opendatacommunities.org/id/metropolitan-district-council/walsall ,WC145-203,31.12.2022,ADULT SOCIAL CARE,5 CARE SERVICES LTD,19/12/2022, 678.72 ,6541-Domiciliary Care,THIRD PARTY PAYMENTS,PRIVATE CONTRACTOR,REVENUE
Walsall Council,http://opendatacommunities.org/id/metropolitan-district-council/walsall ,WC145-204,31.12.2022,ADULT SOCIAL CARE,5 CARE SERVICES LTD,19/12/2022, 294.92 ,6541-Domiciliary Care,THIRD PARTY PAYMENTS,PRIVATE CONTRACTOR,REVENUE
Walsall Council,http://opendatacommunities.org/id/metropolitan-district-council/walsall ,WC145-205,31.12.2022,ADULT SOCIAL CARE,5 CARE SERVICES LTD,19/12/2022, 659.89 ,6541-Domiciliary Care,THIRD PARTY PAYMENTS,PRIVATE CONTRACTOR,REVENUE
Walsall Council,http://opendatacommunities.org/id/metropolitan-district-council/walsall ,WC145-206,31.12.2022,ADULT SOCIAL CARE,5 CARE SERVICES LTD,19/12/2022, 509.04 ,6541-Domiciliary Care,THIRD PARTY PAYMENTS,PRIVATE CONTRACTOR,REVENUE
Walsall Council,http://opendatacommunities.org/id/metropolitan-district-council/walsall ,WC145-207,31.12.2022,ADULT SOCIAL CARE,5 CARE SERVICES LTD,19/12/2022, 339.36 ,6541-Domiciliary Care,THIRD PARTY PAYMENTS,PRIVATE CONTRACTOR,REVENUE
Walsall Council,http://opendatacommunities.org/id/metropolitan-district-council/walsall ,WC145-208,31.12.2022,ADULT SOCIAL CARE,5 CARE SERVICES LTD,19/12/2022, 509.04 ,6541-Domiciliary Care,THIRD PARTY PAYMENTS,PRIVATE CONTRACTOR,REVENUE
Walsall Council,http://opendatacommunities.org/id/metropolitan-district-council/walsall ,WC145-209,31.12.2022,ADULT SOCIAL CARE,5 CARE SERVICES LTD,19/12/2022, 509.04 ,6541-Domiciliary Care,THIRD PARTY PAYMENTS,PRIVATE CONTRACTOR,REVENUE
Walsall Council,http://opendatacommunities.org/id/metropolitan-district-council/walsall ,WC145-210,31.12.2022,ADULT SOCIAL CARE,5 CARE SERVICES LTD,19/12/2022, 638.32 ,6541-Domiciliary Care,THIRD PARTY PAYMENTS,PRIVATE CONTRACTOR,REVENUE
Walsall Council,http://opendatacommunities.org/id/metropolitan-district-council/walsall ,WC145-211,31.12.2022,ADULT SOCIAL CARE,5 CARE SERVICES LTD,19/12/2022, 263.97 ,6541-Domiciliary Care,THIRD PARTY PAYMENTS,PRIVATE CONTRACTOR,REVENUE
Walsall Council,http://opendatacommunities.org/id/metropolitan-district-council/walsall ,WC145-212,31.12.2022,ADULT SOCIAL CARE,5 CARE SERVICES LTD,19/12/2022, 678.72 ,6541-Domiciliary Care,THIRD PARTY PAYMENTS,PRIVATE CONTRACTOR,REVENUE
Walsall Council,http://opendatacommunities.org/id/metropolitan-district-council/walsall ,WC145-213,31.12.2022,ADULT SOCIAL CARE,5 CARE SERVICES LTD,19/12/2022, 565.60 ,6541-Domiciliary Care,THIRD PARTY PAYMENTS,PRIVATE CONTRACTOR,REVENUE
Walsall Council,http://opendatacommunities.org/id/metropolitan-district-council/walsall ,WC145-214,31.12.2022,ADULT SOCIAL CARE,5 CARE SERVICES LTD,19/12/2022, 254.52 ,6541-Domiciliary Care,THIRD PARTY PAYMENTS,PRIVATE CONTRACTOR,REVENUE
Walsall Council,http://opendatacommunities.org/id/metropolitan-district-council/walsall ,WC145-215,31.12.2022,ADULT SOCIAL CARE,5 CARE SERVICES LTD,19/12/2022, 452.48 ,6541-Domiciliary Care,THIRD PARTY PAYMENTS,PRIVATE CONTRACTOR,REVENUE
Walsall Council,http://opendatacommunities.org/id/metropolitan-district-council/walsall ,WC145-216,31.12.2022,ADULT SOCIAL CARE,5 CARE SERVICES LTD,19/12/2022, 452.48 ,6541-Domiciliary Care,THIRD PARTY PAYMENTS,PRIVATE CONTRACTOR,REVENUE
Walsall Council,http://opendatacommunities.org/id/metropolitan-district-council/walsall ,WC145-217,31.12.2022,ADULT SOCIAL CARE,5 CARE SERVICES LTD,19/12/2022, 509.04 ,6541-Domiciliary Care,THIRD PARTY PAYMENTS,PRIVATE CONTRACTOR,REVENUE
Walsall Council,http://opendatacommunities.org/id/metropolitan-district-council/walsall ,WC145-218,31.12.2022,ADULT SOCIAL CARE,5 CARE SERVICES LTD,19/12/2022, 904.96 ,6541-Domiciliary Care,THIRD PARTY PAYMENTS,PRIVATE CONTRACTOR,REVENUE
Walsall Council,http://opendatacommunities.org/id/metropolitan-district-council/walsall ,WC145-219,31.12.2022,ADULT SOCIAL CARE,5 CARE SERVICES LTD,19/12/2022, 339.36 ,6541-Domiciliary Care,THIRD PARTY PAYMENTS,PRIVATE CONTRACTOR,REVENUE
Walsall Council,http://opendatacommunities.org/id/metropolitan-district-council/walsall ,WC145-220,31.12.2022,ADULT SOCIAL CARE,5 CARE SERVICES LTD,19/12/2022, 509.04 ,6541-Domiciliary Care,THIRD PARTY PAYMENTS,PRIVATE CONTRACTOR,REVENUE
Walsall Council,http://opendatacommunities.org/id/metropolitan-district-council/walsall ,WC145-221,31.12.2022,ADULT SOCIAL CARE,5 CARE SERVICES LTD,19/12/2022, 509.04 ,6541-Domiciliary Care,THIRD PARTY PAYMENTS,PRIVATE CONTRACTOR,REVENUE
Walsall Council,http://opendatacommunities.org/id/metropolitan-district-council/walsall ,WC145-222,31.12.2022,ADULT SOCIAL CARE,5 CARE SERVICES LTD,19/12/2022, 254.52 ,6541-Domiciliary Care,THIRD PARTY PAYMENTS,PRIVATE CONTRACTOR,REVENUE
Walsall Council,http://opendatacommunities.org/id/metropolitan-district-council/walsall ,WC145-223,31.12.2022,ADULT SOCIAL CARE,5 CARE SERVICES LTD,14/12/2022," 2,275.20 ",6554-Professional Services-Priv Contractor & Other Agencies,THIRD PARTY PAYMENTS,PRIVATE CONTRACTOR,REVENUE
Walsall Council,http://opendatacommunities.org/id/metropolitan-district-council/walsall ,WC145-224,31.12.2022,ADULT SOCIAL CARE,5 CARE SERVICES LTD,12/12/2022," 2,182.28 ",6541-Domiciliary Care,THIRD PARTY PAYMENTS,PRIVATE CONTRACTOR,REVENUE
Walsall Council,http://opendatacommunities.org/id/metropolitan-district-council/walsall ,WC145-225,31.12.2022,"ECONOMY, ENVIRONMENT & COMMUNITIES",A D T FIRE AND SECURITY PLC,29/12/2022, 284.54 ,6410-Materials,SUPPLIES & SERVICES,EQUIPMENT FURNITURE & MATERIALS,REVENUE
Walsall Council,http://opendatacommunities.org/id/metropolitan-district-council/walsall ,WC145-226,31.12.2022,RESOURCES AND TRANSFORMATION,A D T FIRE AND SECURITY PLC,29/12/2022, 356.42 ,6310-Repair & Maintenance of Furniture & Equipment,SUPPLIES & SERVICES,EQUIPMENT FURNITURE & MATERIALS,REVENUE
Walsall Council,http://opendatacommunities.org/id/metropolitan-district-council/walsall ,WC145-227,31.12.2022,CHILDRENS,A D T FIRE AND SECURITY PLC,21/12/2022, 966.12 ,6223-Operational Maintenance,PREMISES,REPAIRS & MAINTENANCE,REVENUE
Walsall Council,http://opendatacommunities.org/id/metropolitan-district-council/walsall ,WC145-228,31.12.2022,RESOURCES AND TRANSFORMATION,A D T FIRE AND SECURITY PLC,20/12/2022, 364.00 ,6310-Security & Alarm Maintenance,PREMISES,REPAIRS & MAINTENANCE,REVENUE
Walsall Council,http://opendatacommunities.org/id/metropolitan-district-council/walsall ,WC145-229,31.12.2022,"ECONOMY, ENVIRONMENT & COMMUNITIES",A F BLAKEMORE & SON LTD,08/12/2022, 393.40 ,6413-Food & Drink Supplies,SUPPLIES & SERVICES,CATERING,REVENUE
Walsall Council,http://opendatacommunities.org/id/metropolitan-district-council/walsall ,WC145-230,31.12.2022,"ECONOMY, ENVIRONMENT & COMMUNITIES",A F BLAKEMORE & SON LTD,21/12/2022, 385.56 ,6413-Food & Drink Supplies,SUPPLIES & SERVICES,CATERING,REVENUE
Walsall Council,http://opendatacommunities.org/id/metropolitan-district-council/walsall ,WC145-231,31.12.2022,"ECONOMY, ENVIRONMENT & COMMUNITIES",A F BLAKEMORE & SON LTD,13/12/2022, 331.91 ,6413-Food & Drink Supplies,SUPPLIES & SERVICES,CATERING,REVENUE
Walsall Council,http://opendatacommunities.org/id/metropolitan-district-council/walsall ,WC145-232,31.12.2022,"ECONOMY, ENVIRONMENT & COMMUNITIES",A F BLAKEMORE & SON LTD,13/12/2022, 334.19 ,6413-Food & Drink Supplies,SUPPLIES & SERVICES,CATERING,REVENUE
Walsall Council,http://opendatacommunities.org/id/metropolitan-district-council/walsall ,WC145-233,31.12.2022,"ECONOMY, ENVIRONMENT & COMMUNITIES",A F BLAKEMORE & SON LTD,21/12/2022, 357.20 ,6413-Food & Drink Supplies,SUPPLIES & SERVICES,CATERING,REVENUE
Walsall Council,http://opendatacommunities.org/id/metropolitan-district-council/walsall ,WC145-234,31.12.2022,"ECONOMY, ENVIRONMENT & COMMUNITIES",A F BLAKEMORE & SON LTD,21/12/2022, 382.67 ,6413-Food & Drink Supplies,SUPPLIES & SERVICES,CATERING,REVENUE
Walsall Council,http://opendatacommunities.org/id/metropolitan-district-council/walsall ,WC145-235,31.12.2022,"ECONOMY, ENVIRONMENT & COMMUNITIES",A F BLAKEMORE & SON LTD,21/12/2022, 327.94 ,6413-Food & Drink Supplies,SUPPLIES & SERVICES,CATERING,REVENUE
Walsall Council,http://opendatacommunities.org/id/metropolitan-district-council/walsall ,WC145-236,31.12.2022,"ECONOMY, ENVIRONMENT & COMMUNITIES",A F BLAKEMORE & SON LTD,21/12/2022, 626.97 ,6413-Food & Drink Supplies,SUPPLIES & SERVICES,CATERING,REVENUE
Walsall Council,http://opendatacommunities.org/id/metropolitan-district-council/walsall ,WC145-237,31.12.2022,CHILDRENS,A1 WALSALL RADIO CARS,06/12/2022," 1,650.00 ",6241-Hire of Vehicle with Driver,TRANSPORT,DIRECT TRANSPORT COSTS,REVENUE
Walsall Council,http://opendatacommunities.org/id/metropolitan-district-council/walsall ,WC145-238,31.12.2022,CHILDRENS,A1 WALSALL RADIO CARS,06/12/2022,"-2,600.00 ",6241-Hire of Vehicle with Driver,TRANSPORT,DIRECT TRANSPORT COSTS,REVENUE
Walsall Council,http://opendatacommunities.org/id/metropolitan-district-council/walsall ,WC145-239,31.12.2022,CHILDRENS,A1 WALSALL RADIO CARS,06/12/2022," 1,500.00 ",6241-Hire of Vehicle with Driver,TRANSPORT,DIRECT TRANSPORT COSTS,REVENUE
Walsall Council,http://opendatacommunities.org/id/metropolitan-district-council/walsall ,WC145-240,31.12.2022,CHILDRENS,A1 WALSALL RADIO CARS,06/12/2022, 690.00 ,6241-Hire of Vehicle with Driver,TRANSPORT,DIRECT TRANSPORT COSTS,REVENUE
Walsall Council,http://opendatacommunities.org/id/metropolitan-district-council/walsall ,WC145-241,31.12.2022,CHILDRENS,A1 WALSALL RADIO CARS,06/12/2022, 855.00 ,6241-Hire of Vehicle with Driver,TRANSPORT,DIRECT TRANSPORT COSTS,REVENUE
Walsall Council,http://opendatacommunities.org/id/metropolitan-district-council/walsall ,WC145-242,31.12.2022,CHILDRENS,A1 WALSALL RADIO CARS,06/12/2022," 1,190.00 ",6241-Hire of Vehicle with Driver,TRANSPORT,DIRECT TRANSPORT COSTS,REVENUE
Walsall Council,http://opendatacommunities.org/id/metropolitan-district-council/walsall ,WC145-243,31.12.2022,CHILDRENS,A1 WALSALL RADIO CARS,06/12/2022," 2,600.00 ",6241-Hire of Vehicle with Driver,TRANSPORT,DIRECT TRANSPORT COSTS,REVENUE
Walsall Council,http://opendatacommunities.org/id/metropolitan-district-council/walsall ,WC145-244,31.12.2022,CHILDRENS,A1 WALSALL RADIO CARS,06/12/2022," 1,162.00 ",6241-Hire of Vehicle with Driver,TRANSPORT,DIRECT TRANSPORT COSTS,REVENUE
Walsall Council,http://opendatacommunities.org/id/metropolitan-district-council/walsall ,WC145-245,31.12.2022,CHILDRENS,A1 WALSALL RADIO CARS,06/12/2022," 1,200.00 ",6241-Hire of Vehicle with Driver,TRANSPORT,DIRECT TRANSPORT COSTS,REVENUE
Walsall Council,http://opendatacommunities.org/id/metropolitan-district-council/walsall ,WC145-246,31.12.2022,CHILDRENS,A1 WALSALL RADIO CARS,06/12/2022," 1,620.00 ",6241-Hire of Vehicle with Driver,TRANSPORT,DIRECT TRANSPORT COSTS,REVENUE
Walsall Council,http://opendatacommunities.org/id/metropolitan-district-council/walsall ,WC145-247,31.12.2022,CHILDRENS,A1 WALSALL RADIO CARS,06/12/2022," 1,152.00 ",6241-Hire of Vehicle with Driver,TRANSPORT,DIRECT TRANSPORT COSTS,REVENUE
Walsall Council,http://opendatacommunities.org/id/metropolitan-district-council/walsall ,WC145-248,31.12.2022,CHILDRENS,A1 WALSALL RADIO CARS,06/12/2022," 1,500.00 ",6241-Hire of Vehicle with Driver,TRANSPORT,DIRECT TRANSPORT COSTS,REVENUE
Walsall Council,http://opendatacommunities.org/id/metropolitan-district-council/walsall ,WC145-249,31.12.2022,CHILDRENS,A1 WALSALL RADIO CARS,29/12/2022," 1,615.00 ",6241-Hire of Vehicle with Driver,TRANSPORT,DIRECT TRANSPORT COSTS,REVENUE
Walsall Council,http://opendatacommunities.org/id/metropolitan-district-council/walsall ,WC145-250,31.12.2022,CHILDRENS,A1 WALSALL RADIO CARS,29/12/2022," 2,200.00 ",6241-Hire of Vehicle with Driver,TRANSPORT,DIRECT TRANSPORT COSTS,REVENUE
Walsall Council,http://opendatacommunities.org/id/metropolitan-district-council/walsall ,WC145-251,31.12.2022,CHILDRENS,A1 WALSALL RADIO CARS,29/12/2022," 2,400.00 ",6241-Hire of Vehicle with Driver,TRANSPORT,DIRECT TRANSPORT COSTS,REVENUE
Walsall Council,http://opendatacommunities.org/id/metropolitan-district-council/walsall ,WC145-252,31.12.2022,CHILDRENS,A1 WALSALL RADIO CARS,29/12/2022," 2,160.00 ",6241-Hire of Vehicle with Driver,TRANSPORT,DIRECT TRANSPORT COSTS,REVENUE
Walsall Council,http://opendatacommunities.org/id/metropolitan-district-council/walsall ,WC145-253,31.12.2022,CHILDRENS,A1 WALSALL RADIO CARS,29/12/2022," 1,536.00 ",6241-Hire of Vehicle with Driver,TRANSPORT,DIRECT TRANSPORT COSTS,REVENUE
Walsall Council,http://opendatacommunities.org/id/metropolitan-district-council/walsall ,WC145-254,31.12.2022,CHILDRENS,A1 WALSALL RADIO CARS,29/12/2022," 2,000.00 ",6241-Hire of Vehicle with Driver,TRANSPORT,DIRECT TRANSPORT COSTS,REVENUE
Walsall Council,http://opendatacommunities.org/id/metropolitan-district-council/walsall ,WC145-255,31.12.2022,CHILDRENS,A1 WALSALL RADIO CARS,29/12/2022," 1,660.00 ",6241-Hire of Vehicle with Driver,TRANSPORT,DIRECT TRANSPORT COSTS,REVENUE
Walsall Council,http://opendatacommunities.org/id/metropolitan-district-council/walsall ,WC145-256,31.12.2022,CHILDRENS,A1 WALSALL RADIO CARS,29/12/2022," 2,400.00 ",6241-Hire of Vehicle with Driver,TRANSPORT,DIRECT TRANSPORT COSTS,REVENUE
Walsall Council,http://opendatacommunities.org/id/metropolitan-district-council/walsall ,WC145-257,31.12.2022,CHILDRENS,A1 WALSALL RADIO CARS,29/12/2022, 920.00 ,6241-Hire of Vehicle with Driver,TRANSPORT,DIRECT TRANSPORT COSTS,REVENUE
Walsall Council,http://opendatacommunities.org/id/metropolitan-district-council/walsall ,WC145-258,31.12.2022,CHILDRENS,A1 WALSALL RADIO CARS,29/12/2022," 1,140.00 ",6241-Hire of Vehicle with Driver,TRANSPORT,DIRECT TRANSPORT COSTS,REVENUE
Walsall Council,http://opendatacommunities.org/id/metropolitan-district-council/walsall ,WC145-259,31.12.2022,"ECONOMY, ENVIRONMENT & COMMUNITIES",AAINA COMMUNITY HUB,05/12/2022," 1,375.00 ",6430-Grants to Other Orgs,SUPPLIES & SERVICES,GRANTS (EXP) & SUBSCRIPTIONS,REVENUE
Walsall Council,http://opendatacommunities.org/id/metropolitan-district-council/walsall ,WC145-260,31.12.2022,"ECONOMY, ENVIRONMENT & COMMUNITIES",AAINA COMMUNITY HUB,23/12/2022," 1,578.48 ",6430-Grants to Other Orgs,SUPPLIES & SERVICES,GRANTS (EXP) & SUBSCRIPTIONS,REVENUE
Walsall Council,http://opendatacommunities.org/id/metropolitan-district-council/walsall ,WC145-261,31.12.2022,"ECONOMY, ENVIRONMENT & COMMUNITIES",AAINA COMMUNITY HUB,02/12/2022, 500.00 ,6430-Grants to Other Orgs,SUPPLIES & SERVICES,GRANTS (EXP) & SUBSCRIPTIONS,REVENUE
Walsall Council,http://opendatacommunities.org/id/metropolitan-district-council/walsall ,WC145-262,31.12.2022,"ECONOMY, ENVIRONMENT & COMMUNITIES",AAINA COMMUNITY HUB,16/12/2022, 530.00 ,6313-Grants to Other Orgs,SUPPLIES & SERVICES,GRANTS (EXP) & SUBSCRIPTIONS,REVENUE
Walsall Council,http://opendatacommunities.org/id/metropolitan-district-council/walsall ,WC145-263,31.12.2022,"ECONOMY, ENVIRONMENT & COMMUNITIES",AAINA COMMUNITY HUB,16/12/2022, 389.50 ,6313-Grants to Other Orgs,SUPPLIES & SERVICES,GRANTS (EXP) & SUBSCRIPTIONS,REVENUE
Walsall Council,http://opendatacommunities.org/id/metropolitan-district-council/walsall ,WC145-264,31.12.2022,CHILDRENS,ABACUS FOSTERING LTD,22/12/2022," 2,955.20 ",6223-Independent Foster Care-Oth Agency Provision,THIRD PARTY PAYMENTS,PRIVATE CONTRACTOR,REVENUE
Walsall Council,http://opendatacommunities.org/id/metropolitan-district-council/walsall ,WC145-265,31.12.2022,CHILDRENS,ABACUS FOSTERING LTD,22/12/2022," 2,763.20 ",6223-Independent Foster Care-Oth Agency Provision,THIRD PARTY PAYMENTS,PRIVATE CONTRACTOR,REVENUE
Walsall Council,http://opendatacommunities.org/id/metropolitan-district-council/walsall ,WC145-266,31.12.2022,ADULT SOCIAL CARE,ABBEY COURT NURSING & RESIDEN,19/12/2022," 2,606.04 ",6541-Residential EMI,THIRD PARTY PAYMENTS,PRIVATE CONTRACTOR,REVENUE
Walsall Council,http://opendatacommunities.org/id/metropolitan-district-council/walsall ,WC145-267,31.12.2022,ADULT SOCIAL CARE,ABBEY HEALTHCARE HOMES LTD,19/12/2022," 3,180.76 ",6541-Residential,THIRD PARTY PAYMENTS,PRIVATE CONTRACTOR,REVENUE
Walsall Council,http://opendatacommunities.org/id/metropolitan-district-council/walsall ,WC145-268,31.12.2022,ADULT SOCIAL CARE,ABBEY HEALTHCARE HOMES LTD,19/12/2022," 2,432.32 ",6541-Residential,THIRD PARTY PAYMENTS,PRIVATE CONTRACTOR,REVENUE
Walsall Council,http://opendatacommunities.org/id/metropolitan-district-council/walsall ,WC145-269,31.12.2022,ADULT SOCIAL CARE,ABBEY HEALTHCARE HOMES LTD,19/12/2022," 3,180.76 ",6541-Residential,THIRD PARTY PAYMENTS,PRIVATE CONTRACTOR,REVENUE
Walsall Council,http://opendatacommunities.org/id/metropolitan-district-council/walsall ,WC145-270,31.12.2022,ADULT SOCIAL CARE,ABBEY HEALTHCARE HOMES LTD,19/12/2022," 3,604.84 ",6541-Residential,THIRD PARTY PAYMENTS,PRIVATE CONTRACTOR,REVENUE
Walsall Council,http://opendatacommunities.org/id/metropolitan-district-council/walsall ,WC145-271,31.12.2022,ADULT SOCIAL CARE,REDACTED,07/12/2022," 2,766.05 ",6541-Direct Payment,THIRD PARTY PAYMENTS,PRIVATE CONTRACTOR,REVENUE
Walsall Council,http://opendatacommunities.org/id/metropolitan-district-council/walsall ,WC145-272,31.12.2022,ADULT SOCIAL CARE,ABILITY HEALTHCARE LTD,14/12/2022, 616.20 ,6541-Domiciliary Care,THIRD PARTY PAYMENTS,PRIVATE CONTRACTOR,REVENUE
Walsall Council,http://opendatacommunities.org/id/metropolitan-district-council/walsall ,WC145-273,31.12.2022,ADULT SOCIAL CARE,ABILITY HEALTHCARE LTD,14/12/2022," 1,994.24 ",6541-Domiciliary Care,THIRD PARTY PAYMENTS,PRIVATE CONTRACTOR,REVENUE
Walsall Council,http://opendatacommunities.org/id/metropolitan-district-council/walsall ,WC145-274,31.12.2022,ADULT SOCIAL CARE,ABILITY HEALTHCARE LTD,14/12/2022," 1,011.20 ",6541-Domiciliary Care,THIRD PARTY PAYMENTS,PRIVATE CONTRACTOR,REVENUE
Walsall Council,http://opendatacommunities.org/id/metropolitan-district-council/walsall ,WC145-275,31.12.2022,ADULT SOCIAL CARE,ABILITY HEALTHCARE LTD,14/12/2022," 1,859.94 ",6541-Domiciliary Care,THIRD PARTY PAYMENTS,PRIVATE CONTRACTOR,REVENUE
Walsall Council,http://opendatacommunities.org/id/metropolitan-district-council/walsall ,WC145-276,31.12.2022,ADULT SOCIAL CARE,ABILITY HEALTHCARE LTD,14/12/2022," 2,036.16 ",6541-Domiciliary Care,THIRD PARTY PAYMENTS,PRIVATE CONTRACTOR,REVENUE
Walsall Council,http://opendatacommunities.org/id/metropolitan-district-council/walsall ,WC145-277,31.12.2022,ADULT SOCIAL CARE,ABILITY HEALTHCARE LTD,14/12/2022," 1,599.84 ",6541-Domiciliary Care,THIRD PARTY PAYMENTS,PRIVATE CONTRACTOR,REVENUE
Walsall Council,http://opendatacommunities.org/id/metropolitan-district-council/walsall ,WC145-278,31.12.2022,ADULT SOCIAL CARE,ABILITY HEALTHCARE LTD,14/12/2022, 339.36 ,6541-Domiciliary Care,THIRD PARTY PAYMENTS,PRIVATE CONTRACTOR,REVENUE
Walsall Council,http://opendatacommunities.org/id/metropolitan-district-council/walsall ,WC145-279,31.12.2022,ADULT SOCIAL CARE,ABILITY HEALTHCARE LTD,14/12/2022," 1,885.52 ",6541-Domiciliary Care,THIRD PARTY PAYMENTS,PRIVATE CONTRACTOR,REVENUE
Walsall Council,http://opendatacommunities.org/id/metropolitan-district-council/walsall ,WC145-280,31.12.2022,ADULT SOCIAL CARE,ABILITY HEALTHCARE LTD,14/12/2022," 1,001.96 ",6541-Domiciliary Care,THIRD PARTY PAYMENTS,PRIVATE CONTRACTOR,REVENUE
Walsall Council,http://opendatacommunities.org/id/metropolitan-district-council/walsall ,WC145-281,31.12.2022,ADULT SOCIAL CARE,ABILITY HEALTHCARE LTD,14/12/2022," 2,036.16 ",6541-Domiciliary Care,THIRD PARTY PAYMENTS,PRIVATE CONTRACTOR,REVENUE
Walsall Council,http://opendatacommunities.org/id/metropolitan-district-council/walsall ,WC145-282,31.12.2022,ADULT SOCIAL CARE,ABILITY HEALTHCARE LTD,14/12/2022," 1,809.92 ",6541-Domiciliary Care,THIRD PARTY PAYMENTS,PRIVATE CONTRACTOR,REVENUE
Walsall Council,http://opendatacommunities.org/id/metropolitan-district-council/walsall ,WC145-283,31.12.2022,ADULT SOCIAL CARE,ABILITY HEALTHCARE LTD,14/12/2022," 2,036.16 ",6541-Domiciliary Care,THIRD PARTY PAYMENTS,PRIVATE CONTRACTOR,REVENUE
Walsall Council,http://opendatacommunities.org/id/metropolitan-district-council/walsall ,WC145-284,31.12.2022,ADULT SOCIAL CARE,ABILITY HEALTHCARE LTD,14/12/2022," 2,036.16 ",6541-Domiciliary Care,THIRD PARTY PAYMENTS,PRIVATE CONTRACTOR,REVENUE
Walsall Council,http://opendatacommunities.org/id/metropolitan-district-council/walsall ,WC145-285,31.12.2022,ADULT SOCIAL CARE,ABILITY HEALTHCARE LTD,14/12/2022," 1,018.08 ",6541-Domiciliary Care,THIRD PARTY PAYMENTS,PRIVATE CONTRACTOR,REVENUE
Walsall Council,http://opendatacommunities.org/id/metropolitan-district-council/walsall ,WC145-286,31.12.2022,ADULT SOCIAL CARE,ABILITY HEALTHCARE LTD,14/12/2022," 1,272.60 ",6541-Domiciliary Care,THIRD PARTY PAYMENTS,PRIVATE CONTRACTOR,REVENUE
Walsall Council,http://opendatacommunities.org/id/metropolitan-district-council/walsall ,WC145-287,31.12.2022,ADULT SOCIAL CARE,ABILITY HEALTHCARE LTD,14/12/2022," 2,036.16 ",6541-Domiciliary Care,THIRD PARTY PAYMENTS,PRIVATE CONTRACTOR,REVENUE
Walsall Council,http://opendatacommunities.org/id/metropolitan-district-council/walsall ,WC145-288,31.12.2022,ADULT SOCIAL CARE,ABILITY HEALTHCARE LTD,14/12/2022," 1,809.92 ",6541-Domiciliary Care,THIRD PARTY PAYMENTS,PRIVATE CONTRACTOR,REVENUE
Walsall Council,http://opendatacommunities.org/id/metropolitan-district-council/walsall ,WC145-289,31.12.2022,ADULT SOCIAL CARE,ABILITY HEALTHCARE LTD,14/12/2022," 1,244.32 ",6541-Domiciliary Care,THIRD PARTY PAYMENTS,PRIVATE CONTRACTOR,REVENUE
Walsall Council,http://opendatacommunities.org/id/metropolitan-district-council/walsall ,WC145-290,31.12.2022,ADULT SOCIAL CARE,ABILITY HEALTHCARE LTD,14/12/2022," 1,018.08 ",6541-Domiciliary Care,THIRD PARTY PAYMENTS,PRIVATE CONTRACTOR,REVENUE
Walsall Council,http://opendatacommunities.org/id/metropolitan-district-council/walsall ,WC145-291,31.12.2022,ADULT SOCIAL CARE,ABILITY HEALTHCARE LTD,14/12/2022, 377.16 ,6541-Domiciliary Care,THIRD PARTY PAYMENTS,PRIVATE CONTRACTOR,REVENUE
Walsall Council,http://opendatacommunities.org/id/metropolitan-district-council/walsall ,WC145-292,31.12.2022,ADULT SOCIAL CARE,ABILITY HEALTHCARE LTD,14/12/2022, 905.52 ,6541-Domiciliary Care,THIRD PARTY PAYMENTS,PRIVATE CONTRACTOR,REVENUE
Walsall Council,http://opendatacommunities.org/id/metropolitan-district-council/walsall ,WC145-293,31.12.2022,ADULT SOCIAL CARE,ABILITY HEALTHCARE LTD,14/12/2022," 1,486.72 ",6541-Domiciliary Care,THIRD PARTY PAYMENTS,PRIVATE CONTRACTOR,REVENUE
Walsall Council,http://opendatacommunities.org/id/metropolitan-district-council/walsall ,WC145-294,31.12.2022,ADULT SOCIAL CARE,ABILITY HEALTHCARE LTD,14/12/2022," 1,357.44 ",6541-Domiciliary Care,THIRD PARTY PAYMENTS,PRIVATE CONTRACTOR,REVENUE
Walsall Council,http://opendatacommunities.org/id/metropolitan-district-council/walsall ,WC145-295,31.12.2022,ADULT SOCIAL CARE,ABILITY HEALTHCARE LTD,14/12/2022, 404.00 ,6541-Domiciliary Care,THIRD PARTY PAYMENTS,PRIVATE CONTRACTOR,REVENUE
Walsall Council,http://opendatacommunities.org/id/metropolitan-district-council/walsall ,WC145-296,31.12.2022,ADULT SOCIAL CARE,ABILITY HEALTHCARE LTD,14/12/2022, 904.96 ,6541-Domiciliary Care,THIRD PARTY PAYMENTS,PRIVATE CONTRACTOR,REVENUE
Walsall Council,http://opendatacommunities.org/id/metropolitan-district-council/walsall ,WC145-297,31.12.2022,ADULT SOCIAL CARE,ABILITY HEALTHCARE LTD,14/12/2022," 2,011.92 ",6541-Domiciliary Care,THIRD PARTY PAYMENTS,PRIVATE CONTRACTOR,REVENUE
Walsall Council,http://opendatacommunities.org/id/metropolitan-district-council/walsall ,WC145-298,31.12.2022,ADULT SOCIAL CARE,ABILITY HEALTHCARE LTD,14/12/2022," 2,068.48 ",6541-Domiciliary Care,THIRD PARTY PAYMENTS,PRIVATE CONTRACTOR,REVENUE
Walsall Council,http://opendatacommunities.org/id/metropolitan-district-council/walsall ,WC145-299,31.12.2022,ADULT SOCIAL CARE,ABILITY HEALTHCARE LTD,14/12/2022," 1,809.92 ",6541-Domiciliary Care,THIRD PARTY PAYMENTS,PRIVATE CONTRACTOR,REVENUE
Walsall Council,http://opendatacommunities.org/id/metropolitan-district-council/walsall ,WC145-300,31.12.2022,ADULT SOCIAL CARE,ABILITY HEALTHCARE LTD,14/12/2022," 2,036.16 ",6541-Domiciliary Care,THIRD PARTY PAYMENTS,PRIVATE CONTRACTOR,REVENUE
Walsall Council,http://opendatacommunities.org/id/metropolitan-district-council/walsall ,WC145-301,31.12.2022,ADULT SOCIAL CARE,ABILITY HEALTHCARE LTD,14/12/2022," 1,583.68 ",6541-Domiciliary Care,THIRD PARTY PAYMENTS,PRIVATE CONTRACTOR,REVENUE
Walsall Council,http://opendatacommunities.org/id/metropolitan-district-council/walsall ,WC145-302,31.12.2022,ADULT SOCIAL CARE,ABILITY HEALTHCARE LTD,14/12/2022," 1,809.92 ",6541-Domiciliary Care,THIRD PARTY PAYMENTS,PRIVATE CONTRACTOR,REVENUE
Walsall Council,http://opendatacommunities.org/id/metropolitan-district-council/walsall ,WC145-303,31.12.2022,ADULT SOCIAL CARE,ABILITY HEALTHCARE LTD,14/12/2022," 1,809.92 ",6541-Domiciliary Care,THIRD PARTY PAYMENTS,PRIVATE CONTRACTOR,REVENUE
Walsall Council,http://opendatacommunities.org/id/metropolitan-district-council/walsall ,WC145-304,31.12.2022,ADULT SOCIAL CARE,ABILITY HEALTHCARE LTD,14/12/2022," 2,036.16 ",6541-Domiciliary Care,THIRD PARTY PAYMENTS,PRIVATE CONTRACTOR,REVENUE
Walsall Council,http://opendatacommunities.org/id/metropolitan-district-council/walsall ,WC145-305,31.12.2022,ADULT SOCIAL CARE,ABILITY HEALTHCARE LTD,14/12/2022, 452.76 ,6541-Domiciliary Care,THIRD PARTY PAYMENTS,PRIVATE CONTRACTOR,REVENUE
Walsall Council,http://opendatacommunities.org/id/metropolitan-district-council/walsall ,WC145-306,31.12.2022,ADULT SOCIAL CARE,ABILITY HEALTHCARE LTD,14/12/2022," 1,206.80 ",6541-Domiciliary Care,THIRD PARTY PAYMENTS,PRIVATE CONTRACTOR,REVENUE
Walsall Council,http://opendatacommunities.org/id/metropolitan-district-council/walsall ,WC145-307,31.12.2022,ADULT SOCIAL CARE,ABILITY HEALTHCARE LTD,14/12/2022," 1,809.92 ",6541-Domiciliary Care,THIRD PARTY PAYMENTS,PRIVATE CONTRACTOR,REVENUE
Walsall Council,http://opendatacommunities.org/id/metropolitan-district-council/walsall ,WC145-308,31.12.2022,ADULT SOCIAL CARE,ABILITY HEALTHCARE LTD,14/12/2022," 1,131.20 ",6541-Domiciliary Care,THIRD PARTY PAYMENTS,PRIVATE CONTRACTOR,REVENUE
Walsall Council,http://opendatacommunities.org/id/metropolitan-district-council/walsall ,WC145-309,31.12.2022,ADULT SOCIAL CARE,ABILITY HEALTHCARE LTD,14/12/2022, 339.36 ,6541-Domiciliary Care,THIRD PARTY PAYMENTS,PRIVATE CONTRACTOR,REVENUE
Walsall Council,http://opendatacommunities.org/id/metropolitan-district-council/walsall ,WC145-310,31.12.2022,ADULT SOCIAL CARE,ABILITY HEALTHCARE LTD,14/12/2022," 1,885.52 ",6541-Domiciliary Care,THIRD PARTY PAYMENTS,PRIVATE CONTRACTOR,REVENUE
Walsall Council,http://opendatacommunities.org/id/metropolitan-district-council/walsall ,WC145-311,31.12.2022,ADULT SOCIAL CARE,ABILITY HEALTHCARE LTD,14/12/2022," 1,454.40 ",6541-Domiciliary Care,THIRD PARTY PAYMENTS,PRIVATE CONTRACTOR,REVENUE
Walsall Council,http://opendatacommunities.org/id/metropolitan-district-council/walsall ,WC145-312,31.12.2022,ADULT SOCIAL CARE,ABILITY HEALTHCARE LTD,14/12/2022," 1,659.28 ",6541-Domiciliary Care,THIRD PARTY PAYMENTS,PRIVATE CONTRACTOR,REVENUE
Walsall Council,http://opendatacommunities.org/id/metropolitan-district-council/walsall ,WC145-313,31.12.2022,ADULT SOCIAL CARE,ABILITY HEALTHCARE LTD,14/12/2022, 258.56 ,6554-Professional Services-Priv Contractor & Other Agencies,THIRD PARTY PAYMENTS,PRIVATE CONTRACTOR,REVENUE
Walsall Council,http://opendatacommunities.org/id/metropolitan-district-council/walsall ,WC145-314,31.12.2022,ADULT SOCIAL CARE,ABILITY HEALTHCARE LTD,14/12/2022," 1,632.16 ",6554-Professional Services-Priv Contractor & Other Agencies,THIRD PARTY PAYMENTS,PRIVATE CONTRACTOR,REVENUE
Walsall Council,http://opendatacommunities.org/id/metropolitan-district-council/walsall ,WC145-315,31.12.2022,ADULT SOCIAL CARE,ABILITY HEALTHCARE LTD,14/12/2022," 1,187.76 ",6554-Professional Services-Priv Contractor & Other Agencies,THIRD PARTY PAYMENTS,PRIVATE CONTRACTOR,REVENUE
Walsall Council,http://opendatacommunities.org/id/metropolitan-district-council/walsall ,WC145-316,31.12.2022,ADULT SOCIAL CARE,ABILITY HEALTHCARE LTD,14/12/2022, 763.56 ,6554-Professional Services-Priv Contractor & Other Agencies,THIRD PARTY PAYMENTS,PRIVATE CONTRACTOR,REVENUE
Walsall Council,http://opendatacommunities.org/id/metropolitan-district-council/walsall ,WC145-317,31.12.2022,ADULT SOCIAL CARE,ABILITY HEALTHCARE LTD,14/12/2022, 904.96 ,6554-Professional Services-Priv Contractor & Other Agencies,THIRD PARTY PAYMENTS,PRIVATE CONTRACTOR,REVENUE
Walsall Council,http://opendatacommunities.org/id/metropolitan-district-council/walsall ,WC145-318,31.12.2022,ADULT SOCIAL CARE,ABILITY HEALTHCARE LTD,14/12/2022,"-1,524.70 ",6541-Domiciliary Care,THIRD PARTY PAYMENTS,PRIVATE CONTRACTOR,REVENUE
Walsall Council,http://opendatacommunities.org/id/metropolitan-district-council/walsall ,WC145-319,31.12.2022,ADULT SOCIAL CARE,ABILITY HEALTHCARE LTD,14/12/2022," 1,951.30 ",6554-Professional Services-Priv Contractor & Other Agencies,THIRD PARTY PAYMENTS,PRIVATE CONTRACTOR,REVENUE
Walsall Council,http://opendatacommunities.org/id/metropolitan-district-council/walsall ,WC145-320,31.12.2022,ADULT SOCIAL CARE,ABILITY HEALTHCARE LTD,14/12/2022, 363.60 ,6554-Professional Services-Priv Contractor & Other Agencies,THIRD PARTY PAYMENTS,PRIVATE CONTRACTOR,REVENUE
Walsall Council,http://opendatacommunities.org/id/metropolitan-district-council/walsall ,WC145-321,31.12.2022,ADULT SOCIAL CARE,ABILITY HEALTHCARE LTD,14/12/2022," 2,036.16 ",6554-Professional Services-Priv Contractor & Other Agencies,THIRD PARTY PAYMENTS,PRIVATE CONTRACTOR,REVENUE
Walsall Council,http://opendatacommunities.org/id/metropolitan-district-council/walsall ,WC145-322,31.12.2022,ADULT SOCIAL CARE,ABILITY HEALTHCARE LTD,14/12/2022, 581.76 ,6554-Professional Services-Priv Contractor & Other Agencies,THIRD PARTY PAYMENTS,PRIVATE CONTRACTOR,REVENUE
Walsall Council,http://opendatacommunities.org/id/metropolitan-district-council/walsall ,WC145-323,31.12.2022,ADULT SOCIAL CARE,ABILITY HEALTHCARE LTD,14/12/2022, 622.16 ,6554-Professional Services-Priv Contractor & Other Agencies,THIRD PARTY PAYMENTS,PRIVATE CONTRACTOR,REVENUE
Walsall Council,http://opendatacommunities.org/id/metropolitan-district-council/walsall ,WC145-324,31.12.2022,ADULT SOCIAL CARE,ABILITY HEALTHCARE LTD,14/12/2022, 387.84 ,6554-Professional Services-Priv Contractor & Other Agencies,THIRD PARTY PAYMENTS,PRIVATE CONTRACTOR,REVENUE
Walsall Council,http://opendatacommunities.org/id/metropolitan-district-council/walsall ,WC145-325,31.12.2022,ADULT SOCIAL CARE,ABILITY HEALTHCARE LTD,14/12/2022, 250.48 ,6554-Professional Services-Priv Contractor & Other Agencies,THIRD PARTY PAYMENTS,PRIVATE CONTRACTOR,REVENUE
Walsall Council,http://opendatacommunities.org/id/metropolitan-district-council/walsall ,WC145-326,31.12.2022,ADULT SOCIAL CARE,ABILITY HEALTHCARE LTD,12/12/2022," 1,059.55 ",6541-Domiciliary Care,THIRD PARTY PAYMENTS,PRIVATE CONTRACTOR,REVENUE
Walsall Council,http://opendatacommunities.org/id/metropolitan-district-council/walsall ,WC145-327,31.12.2022,CHILDRENS,ABLEWELL CARS,06/12/2022," 1,103.40 ",6241-Hire of Vehicle with Driver,TRANSPORT,DIRECT TRANSPORT COSTS,REVENUE
Walsall Council,http://opendatacommunities.org/id/metropolitan-district-council/walsall ,WC145-328,31.12.2022,CHILDRENS,ABLEWELL CARS,06/12/2022, 924.00 ,6241-Hire of Vehicle with Driver,TRANSPORT,DIRECT TRANSPORT COSTS,REVENUE
Walsall Council,http://opendatacommunities.org/id/metropolitan-district-council/walsall ,WC145-329,31.12.2022,CHILDRENS,ABLEWELL CARS,06/12/2022," 1,248.00 ",6241-Hire of Vehicle with Driver,TRANSPORT,DIRECT TRANSPORT COSTS,REVENUE
Walsall Council,http://opendatacommunities.org/id/metropolitan-district-council/walsall ,WC145-330,31.12.2022,CHILDRENS,ABLEWELL CARS,06/12/2022," 1,092.75 ",6241-Hire of Vehicle with Driver,TRANSPORT,DIRECT TRANSPORT COSTS,REVENUE
Walsall Council,http://opendatacommunities.org/id/metropolitan-district-council/walsall ,WC145-331,31.12.2022,CHILDRENS,ABLEWELL CARS,06/12/2022," 1,988.10 ",6241-Hire of Vehicle with Driver,TRANSPORT,DIRECT TRANSPORT COSTS,REVENUE
Walsall Council,http://opendatacommunities.org/id/metropolitan-district-council/walsall ,WC145-332,31.12.2022,CHILDRENS,ABLEWELL CARS,06/12/2022, 948.00 ,6241-Hire of Vehicle with Driver,TRANSPORT,DIRECT TRANSPORT COSTS,REVENUE
Walsall Council,http://opendatacommunities.org/id/metropolitan-district-council/walsall ,WC145-333,31.12.2022,CHILDRENS,ABLEWELL CARS,29/12/2022," 1,264.00 ",6241-Hire of Vehicle with Driver,TRANSPORT,DIRECT TRANSPORT COSTS,REVENUE
Walsall Council,http://opendatacommunities.org/id/metropolitan-district-council/walsall ,WC145-334,31.12.2022,CHILDRENS,ABLEWELL CARS,29/12/2022," 1,471.20 ",6241-Hire of Vehicle with Driver,TRANSPORT,DIRECT TRANSPORT COSTS,REVENUE
Walsall Council,http://opendatacommunities.org/id/metropolitan-district-council/walsall ,WC145-335,31.12.2022,CHILDRENS,ABLEWELL CARS,29/12/2022," 1,320.00 ",6241-Hire of Vehicle with Driver,TRANSPORT,DIRECT TRANSPORT COSTS,REVENUE
Walsall Council,http://opendatacommunities.org/id/metropolitan-district-council/walsall ,WC145-336,31.12.2022,CHILDRENS,ABLEWELL CARS,29/12/2022," 1,664.00 ",6241-Hire of Vehicle with Driver,TRANSPORT,DIRECT TRANSPORT COSTS,REVENUE
Walsall Council,http://opendatacommunities.org/id/metropolitan-district-council/walsall ,WC145-337,31.12.2022,CHILDRENS,ABLEWELL CARS,29/12/2022," 1,384.15 ",6241-Hire of Vehicle with Driver,TRANSPORT,DIRECT TRANSPORT COSTS,REVENUE
Walsall Council,http://opendatacommunities.org/id/metropolitan-district-council/walsall ,WC145-338,31.12.2022,CHILDRENS,ABLEWELL CARS,29/12/2022," 2,650.80 ",6241-Hire of Vehicle with Driver,TRANSPORT,DIRECT TRANSPORT COSTS,REVENUE
Walsall Council,http://opendatacommunities.org/id/metropolitan-district-council/walsall ,WC145-339,31.12.2022,CHILDRENS,ABS TAXIS (ALDRIDGE),06/12/2022," 1,381.80 ",6241-Hire of Vehicle with Driver,TRANSPORT,DIRECT TRANSPORT COSTS,REVENUE
Walsall Council,http://opendatacommunities.org/id/metropolitan-district-council/walsall ,WC145-340,31.12.2022,CHILDRENS,ABS TAXIS (ALDRIDGE),06/12/2022," 1,360.50 ",6241-Hire of Vehicle with Driver,TRANSPORT,DIRECT TRANSPORT COSTS,REVENUE
Walsall Council,http://opendatacommunities.org/id/metropolitan-district-council/walsall ,WC145-341,31.12.2022,CHILDRENS,ABS TAXIS (ALDRIDGE),06/12/2022, 525.00 ,6241-Hire of Vehicle with Driver,TRANSPORT,DIRECT TRANSPORT COSTS,REVENUE
Walsall Council,http://opendatacommunities.org/id/metropolitan-district-council/walsall ,WC145-342,31.12.2022,CHILDRENS,ABS TAXIS (ALDRIDGE),06/12/2022," 1,173.20 ",6241-Hire of Vehicle with Driver,TRANSPORT,DIRECT TRANSPORT COSTS,REVENUE
Walsall Council,http://opendatacommunities.org/id/metropolitan-district-council/walsall ,WC145-343,31.12.2022,CHILDRENS,ABS TAXIS (ALDRIDGE),29/12/2022," 1,676.00 ",6241-Hire of Vehicle with Driver,TRANSPORT,DIRECT TRANSPORT COSTS,REVENUE
Walsall Council,http://opendatacommunities.org/id/metropolitan-district-council/walsall ,WC145-344,31.12.2022,CHILDRENS,ABS TAXIS (ALDRIDGE),29/12/2022," 1,974.00 ",6241-Hire of Vehicle with Driver,TRANSPORT,DIRECT TRANSPORT COSTS,REVENUE
Walsall Council,http://opendatacommunities.org/id/metropolitan-district-council/walsall ,WC145-345,31.12.2022,CHILDRENS,ABS TAXIS (ALDRIDGE),29/12/2022," 1,611.10 ",6241-Hire of Vehicle with Driver,TRANSPORT,DIRECT TRANSPORT COSTS,REVENUE
Walsall Council,http://opendatacommunities.org/id/metropolitan-district-council/walsall ,WC145-346,31.12.2022,CHILDRENS,ABS TAXIS (ALDRIDGE),29/12/2022," 1,320.00 ",6241-Hire of Vehicle with Driver,TRANSPORT,DIRECT TRANSPORT COSTS,REVENUE
Walsall Council,http://opendatacommunities.org/id/metropolitan-district-council/walsall ,WC145-347,31.12.2022,ADULT SOCIAL CARE,ABSOLUTE HEALTHCARE SWAN HOUSE LTD,19/12/2022," 2,366.04 ",6541-Residential EMI,THIRD PARTY PAYMENTS,PRIVATE CONTRACTOR,REVENUE
Walsall Council,http://opendatacommunities.org/id/metropolitan-district-council/walsall ,WC145-348,31.12.2022,ADULT SOCIAL CARE,ABSOLUTE HEALTHCARE SWAN HOUSE LTD,19/12/2022," 2,235.40 ",6541-Residential,THIRD PARTY PAYMENTS,PRIVATE CONTRACTOR,REVENUE
Walsall Council,http://opendatacommunities.org/id/metropolitan-district-council/walsall ,WC145-349,31.12.2022,ADULT SOCIAL CARE,ABSOLUTE HEALTHCARE SWAN HOUSE LTD,19/12/2022," 2,135.40 ",6541-Residential,THIRD PARTY PAYMENTS,PRIVATE CONTRACTOR,REVENUE
Walsall Council,http://opendatacommunities.org/id/metropolitan-district-council/walsall ,WC145-350,31.12.2022,ADULT SOCIAL CARE,ABSOLUTE HEALTHCARE SWAN HOUSE LTD,19/12/2022," 2,095.40 ",6541-Residential,THIRD PARTY PAYMENTS,PRIVATE CONTRACTOR,REVENUE
Walsall Council,http://opendatacommunities.org/id/metropolitan-district-council/walsall ,WC145-351,31.12.2022,ADULT SOCIAL CARE,ABSOLUTE HEALTHCARE SWAN HOUSE LTD,19/12/2022," 2,095.40 ",6541-Residential,THIRD PARTY PAYMENTS,PRIVATE CONTRACTOR,REVENUE
Walsall Council,http://opendatacommunities.org/id/metropolitan-district-council/walsall ,WC145-352,31.12.2022,ADULT SOCIAL CARE,ABSOLUTE HEALTHCARE SWAN HOUSE LTD,19/12/2022," 2,095.40 ",6541-Residential,THIRD PARTY PAYMENTS,PRIVATE CONTRACTOR,REVENUE
Walsall Council,http://opendatacommunities.org/id/metropolitan-district-council/walsall ,WC145-353,31.12.2022,ADULT SOCIAL CARE,ABSOLUTE HEALTHCARE SWAN HOUSE LTD,19/12/2022," 2,095.40 ",6541-Residential,THIRD PARTY PAYMENTS,PRIVATE CONTRACTOR,REVENUE
Walsall Council,http://opendatacommunities.org/id/metropolitan-district-council/walsall ,WC145-354,31.12.2022,ADULT SOCIAL CARE,ABSOLUTE HEALTHCARE SWAN HOUSE LTD,19/12/2022," 2,366.04 ",6541-Residential EMI,THIRD PARTY PAYMENTS,PRIVATE CONTRACTOR,REVENUE
Walsall Council,http://opendatacommunities.org/id/metropolitan-district-council/walsall ,WC145-355,31.12.2022,ADULT SOCIAL CARE,ABSOLUTE HEALTHCARE SWAN HOUSE LTD,19/12/2022," 7,205.62 ",6541-Nursing EMI,THIRD PARTY PAYMENTS,PRIVATE CONTRACTOR,REVENUE
Walsall Council,http://opendatacommunities.org/id/metropolitan-district-council/walsall ,WC145-356,31.12.2022,ADULT SOCIAL CARE,ABSOLUTE HEALTHCARE SWAN HOUSE LTD,19/12/2022," 2,366.04 ",6541-Residential EMI,THIRD PARTY PAYMENTS,PRIVATE CONTRACTOR,REVENUE
Walsall Council,http://opendatacommunities.org/id/metropolitan-district-council/walsall ,WC145-357,31.12.2022,ADULT SOCIAL CARE,ABSOLUTE HEALTHCARE SWAN HOUSE LTD,19/12/2022," 2,095.40 ",6541-Residential,THIRD PARTY PAYMENTS,PRIVATE CONTRACTOR,REVENUE
Walsall Council,http://opendatacommunities.org/id/metropolitan-district-council/walsall ,WC145-358,31.12.2022,ADULT SOCIAL CARE,ABSOLUTE HEALTHCARE SWAN HOUSE LTD,19/12/2022," 3,780.00 ",6554-Professional Services-Priv Contractor & Other Agencies,THIRD PARTY PAYMENTS,PRIVATE CONTRACTOR,REVENUE
Walsall Council,http://opendatacommunities.org/id/metropolitan-district-council/walsall ,WC145-359,31.12.2022,ADULT SOCIAL CARE,ABSOLUTE HEALTHCARE SWAN HOUSE LTD,19/12/2022," 2,594.04 ",6541-Residential EMI,THIRD PARTY PAYMENTS,PRIVATE CONTRACTOR,REVENUE
Walsall Council,http://opendatacommunities.org/id/metropolitan-district-council/walsall ,WC145-360,31.12.2022,ADULT SOCIAL CARE,ABSOLUTE HEALTHCARE SWAN HOUSE LTD,19/12/2022," 2,135.40 ",6541-Residential,THIRD PARTY PAYMENTS,PRIVATE CONTRACTOR,REVENUE
Walsall Council,http://opendatacommunities.org/id/metropolitan-district-council/walsall ,WC145-361,31.12.2022,ADULT SOCIAL CARE,ABSOLUTE HEALTHCARE SWAN HOUSE LTD,19/12/2022," 2,366.04 ",6541-Residential EMI,THIRD PARTY PAYMENTS,PRIVATE CONTRACTOR,REVENUE
Walsall Council,http://opendatacommunities.org/id/metropolitan-district-council/walsall ,WC145-362,31.12.2022,ADULT SOCIAL CARE,ABSOLUTE HEALTHCARE SWAN HOUSE LTD,19/12/2022," 2,095.40 ",6541-Residential,THIRD PARTY PAYMENTS,PRIVATE CONTRACTOR,REVENUE
Walsall Council,http://opendatacommunities.org/id/metropolitan-district-council/walsall ,WC145-363,31.12.2022,ADULT SOCIAL CARE,ABSOLUTE HEALTHCARE SWAN HOUSE LTD,19/12/2022," 2,366.04 ",6541-Residential EMI,THIRD PARTY PAYMENTS,PRIVATE CONTRACTOR,REVENUE
Walsall Council,http://opendatacommunities.org/id/metropolitan-district-council/walsall ,WC145-364,31.12.2022,ADULT SOCIAL CARE,ABSOLUTE HEALTHCARE SWAN HOUSE LTD,14/12/2022," 1,197.37 ",6541-Residential,THIRD PARTY PAYMENTS,PRIVATE CONTRACTOR,REVENUE
Walsall Council,http://opendatacommunities.org/id/metropolitan-district-council/walsall ,WC145-365,31.12.2022,ADULT SOCIAL CARE,ABSOLUTE HEALTHCARE SWAN HOUSE LTD,14/12/2022," 1,403.79 ",6541-Nursing,THIRD PARTY PAYMENTS,PRIVATE CONTRACTOR,REVENUE
Walsall Council,http://opendatacommunities.org/id/metropolitan-district-council/walsall ,WC145-366,31.12.2022,CHILDRENS,ABU BAKR NURSERY,16/12/2022, 327.00 ,1184-Other-Grants to Other Orgs,SUPPLIES & SERVICES,GRANTS (EXP) & SUBSCRIPTIONS,REVENUE
Walsall Council,http://opendatacommunities.org/id/metropolitan-district-council/walsall ,WC145-367,31.12.2022,CHILDRENS,ACCALIA CARE SERVICES LTD,22/12/2022," 20,960.00 ",6223-External Residential Care-Oth Agency Provision,THIRD PARTY PAYMENTS,PRIVATE CONTRACTOR,REVENUE
Walsall Council,http://opendatacommunities.org/id/metropolitan-district-council/walsall ,WC145-368,31.12.2022,CHILDRENS,ACCEPTING BEHAVIOUR LTD,15/12/2022," 1,170.00 ",1220-Professional Fees & Services,SUPPLIES & SERVICES,SERVICES,REVENUE
Walsall Council,http://opendatacommunities.org/id/metropolitan-district-council/walsall ,WC145-369,31.12.2022,CHILDRENS,ACCEPTING BEHAVIOUR LTD,20/12/2022, 617.50 ,1220-Professional Fees & Services,SUPPLIES & SERVICES,SERVICES,REVENUE
Walsall Council,http://opendatacommunities.org/id/metropolitan-district-council/walsall ,WC145-370,31.12.2022,CHILDRENS,ACCESS UK LTD ,21/12/2022, 950.00 ,6240-Fees & Licences,SUPPLIES & SERVICES,SERVICES,REVENUE
Walsall Council,http://opendatacommunities.org/id/metropolitan-district-council/walsall ,WC145-371,31.12.2022,ADULT SOCIAL CARE,ACCORD HOUSING ASSOCIATION LIMITED - HOBS MEADOW,19/12/2022," 4,776.84 ",6541-Residential,THIRD PARTY PAYMENTS,PRIVATE CONTRACTOR,REVENUE
Walsall Council,http://opendatacommunities.org/id/metropolitan-district-council/walsall ,WC145-372,31.12.2022,ADULT SOCIAL CARE,ACCORD HOUSING ASSOCIATION LIMITED - HOBS MEADOW,19/12/2022," 4,776.84 ",6541-Residential,THIRD PARTY PAYMENTS,PRIVATE CONTRACTOR,REVENUE
Walsall Council,http://opendatacommunities.org/id/metropolitan-district-council/walsall ,WC145-373,31.12.2022,ADULT SOCIAL CARE,ACCORD HOUSING ASSOCIATION LIMITED - HOBS MEADOW,19/12/2022," 4,776.84 ",6541-Residential,THIRD PARTY PAYMENTS,PRIVATE CONTRACTOR,REVENUE
Walsall Council,http://opendatacommunities.org/id/metropolitan-district-council/walsall ,WC145-374,31.12.2022,ADULT SOCIAL CARE,ACCORD HOUSING ASSOCIATION LIMITED - HOBS MEADOW,19/12/2022," 4,776.84 ",6541-Residential,THIRD PARTY PAYMENTS,PRIVATE CONTRACTOR,REVENUE
Walsall Council,http://opendatacommunities.org/id/metropolitan-district-council/walsall ,WC145-375,31.12.2022,CHILDRENS,ACE CARS & MINIBUSES LTD,06/12/2022," 1,605.00 ",6241-Hire of Vehicle with Driver,TRANSPORT,DIRECT TRANSPORT COSTS,REVENUE
Walsall Council,http://opendatacommunities.org/id/metropolitan-district-council/walsall ,WC145-376,31.12.2022,CHILDRENS,ACE CARS & MINIBUSES LTD,06/12/2022," 1,605.00 ",6241-Hire of Vehicle with Driver,TRANSPORT,DIRECT TRANSPORT COSTS,REVENUE
Walsall Council,http://opendatacommunities.org/id/metropolitan-district-council/walsall ,WC145-377,31.12.2022,CHILDRENS,ACE CARS & MINIBUSES LTD,06/12/2022," 1,770.00 ",6241-Hire of Vehicle with Driver,TRANSPORT,DIRECT TRANSPORT COSTS,REVENUE
Walsall Council,http://opendatacommunities.org/id/metropolitan-district-council/walsall ,WC145-378,31.12.2022,CHILDRENS,ACE CARS & MINIBUSES LTD,06/12/2022," 1,792.50 ",6241-Hire of Vehicle with Driver,TRANSPORT,DIRECT TRANSPORT COSTS,REVENUE
Walsall Council,http://opendatacommunities.org/id/metropolitan-district-council/walsall ,WC145-379,31.12.2022,CHILDRENS,ACE CARS & MINIBUSES LTD,06/12/2022," 1,905.40 ",6241-Hire of Vehicle with Driver,TRANSPORT,DIRECT TRANSPORT COSTS,REVENUE
Walsall Council,http://opendatacommunities.org/id/metropolitan-district-council/walsall ,WC145-380,31.12.2022,CHILDRENS,ACE CARS & MINIBUSES LTD,06/12/2022," 1,905.40 ",6241-Hire of Vehicle with Driver,TRANSPORT,DIRECT TRANSPORT COSTS,REVENUE
Walsall Council,http://opendatacommunities.org/id/metropolitan-district-council/walsall ,WC145-381,31.12.2022,CHILDRENS,ACE CARS & MINIBUSES LTD,06/12/2022," 1,605.00 ",6241-Hire of Vehicle with Driver,TRANSPORT,DIRECT TRANSPORT COSTS,REVENUE
Walsall Council,http://opendatacommunities.org/id/metropolitan-district-council/walsall ,WC145-382,31.12.2022,CHILDRENS,ACE CARS & MINIBUSES LTD,06/12/2022," 1,605.00 ",6241-Hire of Vehicle with Driver,TRANSPORT,DIRECT TRANSPORT COSTS,REVENUE
Walsall Council,http://opendatacommunities.org/id/metropolitan-district-council/walsall ,WC145-383,31.12.2022,CHILDRENS,ACE CARS & MINIBUSES LTD,06/12/2022," 1,710.00 ",6241-Hire of Vehicle with Driver,TRANSPORT,DIRECT TRANSPORT COSTS,REVENUE
Walsall Council,http://opendatacommunities.org/id/metropolitan-district-council/walsall ,WC145-384,31.12.2022,CHILDRENS,ACE CARS & MINIBUSES LTD,06/12/2022," 1,792.50 ",6241-Hire of Vehicle with Driver,TRANSPORT,DIRECT TRANSPORT COSTS,REVENUE
Walsall Council,http://opendatacommunities.org/id/metropolitan-district-council/walsall ,WC145-385,31.12.2022,CHILDRENS,ACE CARS & MINIBUSES LTD,06/12/2022," 1,710.00 ",6241-Hire of Vehicle with Driver,TRANSPORT,DIRECT TRANSPORT COSTS,REVENUE
Walsall Council,http://opendatacommunities.org/id/metropolitan-district-council/walsall ,WC145-386,31.12.2022,CHILDRENS,ACE CARS & MINIBUSES LTD,06/12/2022," 1,605.00 ",6241-Hire of Vehicle with Driver,TRANSPORT,DIRECT TRANSPORT COSTS,REVENUE
Walsall Council,http://opendatacommunities.org/id/metropolitan-district-council/walsall ,WC145-387,31.12.2022,CHILDRENS,ACE CARS & MINIBUSES LTD,06/12/2022," 1,770.00 ",6241-Hire of Vehicle with Driver,TRANSPORT,DIRECT TRANSPORT COSTS,REVENUE
Walsall Council,http://opendatacommunities.org/id/metropolitan-district-council/walsall ,WC145-388,31.12.2022,CHILDRENS,ACE CARS & MINIBUSES LTD,06/12/2022," 2,648.66 ",6241-Hire of Vehicle with Driver,TRANSPORT,DIRECT TRANSPORT COSTS,REVENUE
Walsall Council,http://opendatacommunities.org/id/metropolitan-district-council/walsall ,WC145-389,31.12.2022,CHILDRENS,ACE CARS & MINIBUSES LTD,06/12/2022," 1,905.40 ",6241-Hire of Vehicle with Driver,TRANSPORT,DIRECT TRANSPORT COSTS,REVENUE
Walsall Council,http://opendatacommunities.org/id/metropolitan-district-council/walsall ,WC145-390,31.12.2022,CHILDRENS,ACE CARS & MINIBUSES LTD,06/12/2022," 2,153.06 ",6241-Hire of Vehicle with Driver,TRANSPORT,DIRECT TRANSPORT COSTS,REVENUE
Walsall Council,http://opendatacommunities.org/id/metropolitan-district-council/walsall ,WC145-391,31.12.2022,CHILDRENS,ACE CARS & MINIBUSES LTD,06/12/2022," 1,605.00 ",6241-Hire of Vehicle with Driver,TRANSPORT,DIRECT TRANSPORT COSTS,REVENUE
Walsall Council,http://opendatacommunities.org/id/metropolitan-district-council/walsall ,WC145-392,31.12.2022,CHILDRENS,ACE CARS & MINIBUSES LTD,06/12/2022," 3,186.00 ",6241-Hire of Vehicle with Driver,TRANSPORT,DIRECT TRANSPORT COSTS,REVENUE
Walsall Council,http://opendatacommunities.org/id/metropolitan-district-council/walsall ,WC145-393,31.12.2022,CHILDRENS,ACE CARS & MINIBUSES LTD,06/12/2022," 1,605.00 ",6241-Hire of Vehicle with Driver,TRANSPORT,DIRECT TRANSPORT COSTS,REVENUE
Walsall Council,http://opendatacommunities.org/id/metropolitan-district-council/walsall ,WC145-394,31.12.2022,CHILDRENS,ACE CARS & MINIBUSES LTD,06/12/2022," 1,905.40 ",6241-Hire of Vehicle with Driver,TRANSPORT,DIRECT TRANSPORT COSTS,REVENUE
Walsall Council,http://opendatacommunities.org/id/metropolitan-district-council/walsall ,WC145-395,31.12.2022,CHILDRENS,ACE CARS & MINIBUSES LTD,06/12/2022," 2,542.50 ",6241-Hire of Vehicle with Driver,TRANSPORT,DIRECT TRANSPORT COSTS,REVENUE
Walsall Council,http://opendatacommunities.org/id/metropolitan-district-council/walsall ,WC145-396,31.12.2022,CHILDRENS,ACE CARS & MINIBUSES LTD,06/12/2022," 1,770.00 ",6241-Hire of Vehicle with Driver,TRANSPORT,DIRECT TRANSPORT COSTS,REVENUE
Walsall Council,http://opendatacommunities.org/id/metropolitan-district-council/walsall ,WC145-397,31.12.2022,CHILDRENS,ACE CARS & MINIBUSES LTD,06/12/2022," 2,017.80 ",6241-Hire of Vehicle with Driver,TRANSPORT,DIRECT TRANSPORT COSTS,REVENUE
Walsall Council,http://opendatacommunities.org/id/metropolitan-district-council/walsall ,WC145-398,31.12.2022,CHILDRENS,ACE CARS & MINIBUSES LTD,06/12/2022," 1,876.20 ",6241-Hire of Vehicle with Driver,TRANSPORT,DIRECT TRANSPORT COSTS,REVENUE
Walsall Council,http://opendatacommunities.org/id/metropolitan-district-council/walsall ,WC145-399,31.12.2022,CHILDRENS,ACE CARS & MINIBUSES LTD,06/12/2022," 1,770.00 ",6241-Hire of Vehicle with Driver,TRANSPORT,DIRECT TRANSPORT COSTS,REVENUE
Walsall Council,http://opendatacommunities.org/id/metropolitan-district-council/walsall ,WC145-400,31.12.2022,CHILDRENS,ACE CARS & MINIBUSES LTD,06/12/2022," 2,400.00 ",6241-Hire of Vehicle with Driver,TRANSPORT,DIRECT TRANSPORT COSTS,REVENUE
Walsall Council,http://opendatacommunities.org/id/metropolitan-district-council/walsall ,WC145-401,31.12.2022,CHILDRENS,ACE CARS & MINIBUSES LTD,06/12/2022," 1,792.50 ",6241-Hire of Vehicle with Driver,TRANSPORT,DIRECT TRANSPORT COSTS,REVENUE
Walsall Council,http://opendatacommunities.org/id/metropolitan-district-council/walsall ,WC145-402,31.12.2022,CHILDRENS,ACE CARS & MINIBUSES LTD,06/12/2022," 1,605.00 ",6241-Hire of Vehicle with Driver,TRANSPORT,DIRECT TRANSPORT COSTS,REVENUE
Walsall Council,http://opendatacommunities.org/id/metropolitan-district-council/walsall ,WC145-403,31.12.2022,CHILDRENS,ACE CARS & MINIBUSES LTD,06/12/2022," 1,605.00 ",6241-Hire of Vehicle with Driver,TRANSPORT,DIRECT TRANSPORT COSTS,REVENUE
Walsall Council,http://opendatacommunities.org/id/metropolitan-district-council/walsall ,WC145-404,31.12.2022,CHILDRENS,ACE CARS & MINIBUSES LTD,06/12/2022," 1,605.00 ",6241-Hire of Vehicle with Driver,TRANSPORT,DIRECT TRANSPORT COSTS,REVENUE
Walsall Council,http://opendatacommunities.org/id/metropolitan-district-council/walsall ,WC145-405,31.12.2022,CHILDRENS,ACE CARS & MINIBUSES LTD,06/12/2022," 2,377.50 ",6241-Hire of Vehicle with Driver,TRANSPORT,DIRECT TRANSPORT COSTS,REVENUE
Walsall Council,http://opendatacommunities.org/id/metropolitan-district-council/walsall ,WC145-406,31.12.2022,CHILDRENS,ACE CARS & MINIBUSES LTD,06/12/2022," 1,792.50 ",6241-Hire of Vehicle with Driver,TRANSPORT,DIRECT TRANSPORT COSTS,REVENUE
Walsall Council,http://opendatacommunities.org/id/metropolitan-district-council/walsall ,WC145-407,31.12.2022,CHILDRENS,ACE CARS & MINIBUSES LTD,06/12/2022," 1,792.50 ",6241-Hire of Vehicle with Driver,TRANSPORT,DIRECT TRANSPORT COSTS,REVENUE
Walsall Council,http://opendatacommunities.org/id/metropolitan-district-council/walsall ,WC145-408,31.12.2022,CHILDRENS,ACE CARS & MINIBUSES LTD,06/12/2022," 1,792.50 ",6241-Hire of Vehicle with Driver,TRANSPORT,DIRECT TRANSPORT COSTS,REVENUE
Walsall Council,http://opendatacommunities.org/id/metropolitan-district-council/walsall ,WC145-409,31.12.2022,CHILDRENS,ACE CARS & MINIBUSES LTD,06/12/2022," 1,905.40 ",6241-Hire of Vehicle with Driver,TRANSPORT,DIRECT TRANSPORT COSTS,REVENUE
Walsall Council,http://opendatacommunities.org/id/metropolitan-district-council/walsall ,WC145-410,31.12.2022,CHILDRENS,ACE CARS & MINIBUSES LTD,06/12/2022," 1,905.40 ",6241-Hire of Vehicle with Driver,TRANSPORT,DIRECT TRANSPORT COSTS,REVENUE
Walsall Council,http://opendatacommunities.org/id/metropolitan-district-council/walsall ,WC145-411,31.12.2022,CHILDRENS,ACE CARS & MINIBUSES LTD,06/12/2022," 1,710.00 ",6241-Hire of Vehicle with Driver,TRANSPORT,DIRECT TRANSPORT COSTS,REVENUE
Walsall Council,http://opendatacommunities.org/id/metropolitan-district-council/walsall ,WC145-412,31.12.2022,CHILDRENS,ACE CARS & MINIBUSES LTD,06/12/2022," 1,770.00 ",6241-Hire of Vehicle with Driver,TRANSPORT,DIRECT TRANSPORT COSTS,REVENUE
Walsall Council,http://opendatacommunities.org/id/metropolitan-district-council/walsall ,WC145-413,31.12.2022,CHILDRENS,ACE CARS & MINIBUSES LTD,06/12/2022," 1,710.00 ",6241-Hire of Vehicle with Driver,TRANSPORT,DIRECT TRANSPORT COSTS,REVENUE
Walsall Council,http://opendatacommunities.org/id/metropolitan-district-council/walsall ,WC145-414,31.12.2022,CHILDRENS,ACE CARS & MINIBUSES LTD,06/12/2022," 2,336.40 ",6241-Hire of Vehicle with Driver,TRANSPORT,DIRECT TRANSPORT COSTS,REVENUE
Walsall Council,http://opendatacommunities.org/id/metropolitan-district-council/walsall ,WC145-415,31.12.2022,CHILDRENS,ACE CARS & MINIBUSES LTD,29/12/2022," 2,242.00 ",6241-Hire of Vehicle with Driver,TRANSPORT,DIRECT TRANSPORT COSTS,REVENUE
Walsall Council,http://opendatacommunities.org/id/metropolitan-district-council/walsall ,WC145-416,31.12.2022,CHILDRENS,ACE CARS & MINIBUSES LTD,29/12/2022," 2,555.88 ",6241-Hire of Vehicle with Driver,TRANSPORT,DIRECT TRANSPORT COSTS,REVENUE
Walsall Council,http://opendatacommunities.org/id/metropolitan-district-council/walsall ,WC145-417,31.12.2022,CHILDRENS,ACE CARS & MINIBUSES LTD,29/12/2022," 2,376.52 ",6241-Hire of Vehicle with Driver,TRANSPORT,DIRECT TRANSPORT COSTS,REVENUE
Walsall Council,http://opendatacommunities.org/id/metropolitan-district-council/walsall ,WC145-418,31.12.2022,CHILDRENS,ACE CARS & MINIBUSES LTD,29/12/2022," 2,242.00 ",6241-Hire of Vehicle with Driver,TRANSPORT,DIRECT TRANSPORT COSTS,REVENUE
Walsall Council,http://opendatacommunities.org/id/metropolitan-district-council/walsall ,WC145-419,31.12.2022,CHILDRENS,ACE CARS & MINIBUSES LTD,29/12/2022," 3,040.00 ",6241-Hire of Vehicle with Driver,TRANSPORT,DIRECT TRANSPORT COSTS,REVENUE
Walsall Council,http://opendatacommunities.org/id/metropolitan-district-council/walsall ,WC145-420,31.12.2022,CHILDRENS,ACE CARS & MINIBUSES LTD,29/12/2022," 3,783.80 ",6241-Hire of Vehicle with Driver,TRANSPORT,DIRECT TRANSPORT COSTS,REVENUE
Walsall Council,http://opendatacommunities.org/id/metropolitan-district-council/walsall ,WC145-421,31.12.2022,CHILDRENS,ACE CARS & MINIBUSES LTD,29/12/2022," 2,722.00 ",6241-Hire of Vehicle with Driver,TRANSPORT,DIRECT TRANSPORT COSTS,REVENUE
Walsall Council,http://opendatacommunities.org/id/metropolitan-district-council/walsall ,WC145-422,31.12.2022,CHILDRENS,ACE CARS & MINIBUSES LTD,29/12/2022," 3,075.80 ",6241-Hire of Vehicle with Driver,TRANSPORT,DIRECT TRANSPORT COSTS,REVENUE
Walsall Council,http://opendatacommunities.org/id/metropolitan-district-council/walsall ,WC145-423,31.12.2022,CHILDRENS,ACE CARS & MINIBUSES LTD,29/12/2022," 2,270.50 ",6241-Hire of Vehicle with Driver,TRANSPORT,DIRECT TRANSPORT COSTS,REVENUE
Walsall Council,http://opendatacommunities.org/id/metropolitan-district-council/walsall ,WC145-424,31.12.2022,CHILDRENS,ACE CARS & MINIBUSES LTD,29/12/2022," 2,033.00 ",6241-Hire of Vehicle with Driver,TRANSPORT,DIRECT TRANSPORT COSTS,REVENUE
Walsall Council,http://opendatacommunities.org/id/metropolitan-district-council/walsall ,WC145-425,31.12.2022,CHILDRENS,ACE CARS & MINIBUSES LTD,29/12/2022," 2,033.00 ",6241-Hire of Vehicle with Driver,TRANSPORT,DIRECT TRANSPORT COSTS,REVENUE
Walsall Council,http://opendatacommunities.org/id/metropolitan-district-council/walsall ,WC145-426,31.12.2022,CHILDRENS,ACE CARS & MINIBUSES LTD,29/12/2022," 2,242.00 ",6241-Hire of Vehicle with Driver,TRANSPORT,DIRECT TRANSPORT COSTS,REVENUE
Walsall Council,http://opendatacommunities.org/id/metropolitan-district-council/walsall ,WC145-427,31.12.2022,CHILDRENS,ACE CARS & MINIBUSES LTD,29/12/2022," 2,166.00 ",6241-Hire of Vehicle with Driver,TRANSPORT,DIRECT TRANSPORT COSTS,REVENUE
Walsall Council,http://opendatacommunities.org/id/metropolitan-district-council/walsall ,WC145-428,31.12.2022,CHILDRENS,ACE CARS & MINIBUSES LTD,29/12/2022," 2,166.00 ",6241-Hire of Vehicle with Driver,TRANSPORT,DIRECT TRANSPORT COSTS,REVENUE
Walsall Council,http://opendatacommunities.org/id/metropolitan-district-council/walsall ,WC145-429,31.12.2022,CHILDRENS,ACE CARS & MINIBUSES LTD,29/12/2022," 2,270.50 ",6241-Hire of Vehicle with Driver,TRANSPORT,DIRECT TRANSPORT COSTS,REVENUE
Walsall Council,http://opendatacommunities.org/id/metropolitan-district-council/walsall ,WC145-430,31.12.2022,CHILDRENS,ACE CARS & MINIBUSES LTD,29/12/2022," 2,166.00 ",6241-Hire of Vehicle with Driver,TRANSPORT,DIRECT TRANSPORT COSTS,REVENUE
Walsall Council,http://opendatacommunities.org/id/metropolitan-district-council/walsall ,WC145-431,31.12.2022,CHILDRENS,ACE CARS & MINIBUSES LTD,29/12/2022," 2,959.44 ",6241-Hire of Vehicle with Driver,TRANSPORT,DIRECT TRANSPORT COSTS,REVENUE
Walsall Council,http://opendatacommunities.org/id/metropolitan-district-council/walsall ,WC145-432,31.12.2022,CHILDRENS,ACE CARS & MINIBUSES LTD,29/12/2022," 2,033.00 ",6241-Hire of Vehicle with Driver,TRANSPORT,DIRECT TRANSPORT COSTS,REVENUE
Walsall Council,http://opendatacommunities.org/id/metropolitan-district-council/walsall ,WC145-433,31.12.2022,CHILDRENS,ACE CARS & MINIBUSES LTD,29/12/2022," 2,033.00 ",6241-Hire of Vehicle with Driver,TRANSPORT,DIRECT TRANSPORT COSTS,REVENUE
Walsall Council,http://opendatacommunities.org/id/metropolitan-district-council/walsall ,WC145-434,31.12.2022,CHILDRENS,ACE CARS & MINIBUSES LTD,29/12/2022," 2,033.00 ",6241-Hire of Vehicle with Driver,TRANSPORT,DIRECT TRANSPORT COSTS,REVENUE
Walsall Council,http://opendatacommunities.org/id/metropolitan-district-council/walsall ,WC145-435,31.12.2022,CHILDRENS,ACE CARS & MINIBUSES LTD,29/12/2022," 2,033.00 ",6241-Hire of Vehicle with Driver,TRANSPORT,DIRECT TRANSPORT COSTS,REVENUE
Walsall Council,http://opendatacommunities.org/id/metropolitan-district-council/walsall ,WC145-436,31.12.2022,CHILDRENS,ACE CARS & MINIBUSES LTD,29/12/2022," 2,242.00 ",6241-Hire of Vehicle with Driver,TRANSPORT,DIRECT TRANSPORT COSTS,REVENUE
Walsall Council,http://opendatacommunities.org/id/metropolitan-district-council/walsall ,WC145-437,31.12.2022,CHILDRENS,ACE CARS & MINIBUSES LTD,29/12/2022," 3,011.50 ",6241-Hire of Vehicle with Driver,TRANSPORT,DIRECT TRANSPORT COSTS,REVENUE
Walsall Council,http://opendatacommunities.org/id/metropolitan-district-council/walsall ,WC145-438,31.12.2022,CHILDRENS,ACE CARS & MINIBUSES LTD,29/12/2022," 2,270.50 ",6241-Hire of Vehicle with Driver,TRANSPORT,DIRECT TRANSPORT COSTS,REVENUE
Walsall Council,http://opendatacommunities.org/id/metropolitan-district-council/walsall ,WC145-439,31.12.2022,CHILDRENS,ACE CARS & MINIBUSES LTD,29/12/2022," 2,270.50 ",6241-Hire of Vehicle with Driver,TRANSPORT,DIRECT TRANSPORT COSTS,REVENUE
Walsall Council,http://opendatacommunities.org/id/metropolitan-district-council/walsall ,WC145-440,31.12.2022,CHILDRENS,ACE CARS & MINIBUSES LTD,29/12/2022," 2,270.50 ",6241-Hire of Vehicle with Driver,TRANSPORT,DIRECT TRANSPORT COSTS,REVENUE
Walsall Council,http://opendatacommunities.org/id/metropolitan-district-council/walsall ,WC145-441,31.12.2022,CHILDRENS,ACE CARS & MINIBUSES LTD,29/12/2022," 2,722.00 ",6241-Hire of Vehicle with Driver,TRANSPORT,DIRECT TRANSPORT COSTS,REVENUE
Walsall Council,http://opendatacommunities.org/id/metropolitan-district-council/walsall ,WC145-442,31.12.2022,CHILDRENS,ACE CARS & MINIBUSES LTD,29/12/2022," 2,722.00 ",6241-Hire of Vehicle with Driver,TRANSPORT,DIRECT TRANSPORT COSTS,REVENUE
Walsall Council,http://opendatacommunities.org/id/metropolitan-district-council/walsall ,WC145-443,31.12.2022,CHILDRENS,ACE CARS & MINIBUSES LTD,29/12/2022," 2,166.00 ",6241-Hire of Vehicle with Driver,TRANSPORT,DIRECT TRANSPORT COSTS,REVENUE
Walsall Council,http://opendatacommunities.org/id/metropolitan-district-council/walsall ,WC145-444,31.12.2022,CHILDRENS,ACE CARS & MINIBUSES LTD,29/12/2022," 2,033.00 ",6241-Hire of Vehicle with Driver,TRANSPORT,DIRECT TRANSPORT COSTS,REVENUE
Walsall Council,http://opendatacommunities.org/id/metropolitan-district-council/walsall ,WC145-445,31.12.2022,CHILDRENS,ACE CARS & MINIBUSES LTD,29/12/2022," 4,035.60 ",6241-Hire of Vehicle with Driver,TRANSPORT,DIRECT TRANSPORT COSTS,REVENUE
Walsall Council,http://opendatacommunities.org/id/metropolitan-district-council/walsall ,WC145-446,31.12.2022,CHILDRENS,ACE CARS & MINIBUSES LTD,29/12/2022," 2,033.00 ",6241-Hire of Vehicle with Driver,TRANSPORT,DIRECT TRANSPORT COSTS,REVENUE
Walsall Council,http://opendatacommunities.org/id/metropolitan-district-council/walsall ,WC145-447,31.12.2022,CHILDRENS,ACE CARS & MINIBUSES LTD,29/12/2022," 2,033.00 ",6241-Hire of Vehicle with Driver,TRANSPORT,DIRECT TRANSPORT COSTS,REVENUE
Walsall Council,http://opendatacommunities.org/id/metropolitan-district-council/walsall ,WC145-448,31.12.2022,CHILDRENS,ACE CARS & MINIBUSES LTD,29/12/2022," 2,033.00 ",6241-Hire of Vehicle with Driver,TRANSPORT,DIRECT TRANSPORT COSTS,REVENUE
Walsall Council,http://opendatacommunities.org/id/metropolitan-district-council/walsall ,WC145-449,31.12.2022,CHILDRENS,ACE CARS & MINIBUSES LTD,29/12/2022," 2,242.00 ",6241-Hire of Vehicle with Driver,TRANSPORT,DIRECT TRANSPORT COSTS,REVENUE
Walsall Council,http://opendatacommunities.org/id/metropolitan-district-council/walsall ,WC145-450,31.12.2022,CHILDRENS,ACE CARS & MINIBUSES LTD,29/12/2022," 2,270.50 ",6241-Hire of Vehicle with Driver,TRANSPORT,DIRECT TRANSPORT COSTS,REVENUE
Walsall Council,http://opendatacommunities.org/id/metropolitan-district-council/walsall ,WC145-451,31.12.2022,CHILDRENS,ACE CARS & MINIBUSES LTD,29/12/2022," 2,722.00 ",6241-Hire of Vehicle with Driver,TRANSPORT,DIRECT TRANSPORT COSTS,REVENUE
Walsall Council,http://opendatacommunities.org/id/metropolitan-district-council/walsall ,WC145-452,31.12.2022,CHILDRENS,ACE CARS & MINIBUSES LTD,29/12/2022," 2,722.00 ",6241-Hire of Vehicle with Driver,TRANSPORT,DIRECT TRANSPORT COSTS,REVENUE
Walsall Council,http://opendatacommunities.org/id/metropolitan-district-council/walsall ,WC145-453,31.12.2022,CHILDRENS,ACE CARS & MINIBUSES LTD,29/12/2022," 2,722.00 ",6241-Hire of Vehicle with Driver,TRANSPORT,DIRECT TRANSPORT COSTS,REVENUE
Walsall Council,http://opendatacommunities.org/id/metropolitan-district-council/walsall ,WC145-454,31.12.2022,CHILDRENS,ACE CARS & MINIBUSES LTD,29/12/2022," 3,220.50 ",6241-Hire of Vehicle with Driver,TRANSPORT,DIRECT TRANSPORT COSTS,REVENUE
Walsall Council,http://opendatacommunities.org/id/metropolitan-district-council/walsall ,WC145-455,31.12.2022,CHILDRENS,ACE COACHING LIMITED,02/12/2022," 1,996.80 ",6211-Professional Fees & Services,SUPPLIES & SERVICES,SERVICES,REVENUE
Walsall Council,http://opendatacommunities.org/id/metropolitan-district-council/walsall ,WC145-456,31.12.2022,ADULT SOCIAL CARE,ACEPAY LTD (COTTAGE NUR HOME),19/12/2022," 2,456.24 ",6541-Nursing,THIRD PARTY PAYMENTS,PRIVATE CONTRACTOR,REVENUE
Walsall Council,http://opendatacommunities.org/id/metropolitan-district-council/walsall ,WC145-457,31.12.2022,ADULT SOCIAL CARE,ACEPAY LTD (COTTAGE NUR HOME),19/12/2022," 2,456.24 ",6541-Nursing,THIRD PARTY PAYMENTS,PRIVATE CONTRACTOR,REVENUE
Walsall Council,http://opendatacommunities.org/id/metropolitan-district-council/walsall ,WC145-458,31.12.2022,ADULT SOCIAL CARE,ACEPAY LTD (COTTAGE NUR HOME),19/12/2022," 2,656.24 ",6541-Nursing,THIRD PARTY PAYMENTS,PRIVATE CONTRACTOR,REVENUE
Walsall Council,http://opendatacommunities.org/id/metropolitan-district-council/walsall ,WC145-459,31.12.2022,ADULT SOCIAL CARE,ACEPAY LTD (COTTAGE NUR HOME),19/12/2022," 2,763.80 ",6541-Nursing EMI,THIRD PARTY PAYMENTS,PRIVATE CONTRACTOR,REVENUE
Walsall Council,http://opendatacommunities.org/id/metropolitan-district-council/walsall ,WC145-460,31.12.2022,ADULT SOCIAL CARE,ACEPAY LTD (COTTAGE NUR HOME),19/12/2022," 2,456.24 ",6541-Nursing,THIRD PARTY PAYMENTS,PRIVATE CONTRACTOR,REVENUE
Walsall Council,http://opendatacommunities.org/id/metropolitan-district-council/walsall ,WC145-461,31.12.2022,ADULT SOCIAL CARE,ACEPAY LTD (COTTAGE NUR HOME),19/12/2022," 2,456.24 ",6541-Nursing,THIRD PARTY PAYMENTS,PRIVATE CONTRACTOR,REVENUE
Walsall Council,http://opendatacommunities.org/id/metropolitan-district-council/walsall ,WC145-462,31.12.2022,ADULT SOCIAL CARE,ACEPAY LTD (COTTAGE NUR HOME),19/12/2022," 2,763.80 ",6541-Nursing EMI,THIRD PARTY PAYMENTS,PRIVATE CONTRACTOR,REVENUE
Walsall Council,http://opendatacommunities.org/id/metropolitan-district-council/walsall ,WC145-463,31.12.2022,ADULT SOCIAL CARE,ACEPAY LTD (COTTAGE NUR HOME),19/12/2022," 2,366.04 ",6541-Residential EMI,THIRD PARTY PAYMENTS,PRIVATE CONTRACTOR,REVENUE
Walsall Council,http://opendatacommunities.org/id/metropolitan-district-council/walsall ,WC145-464,31.12.2022,ADULT SOCIAL CARE,ACEPAY LTD (COTTAGE NUR HOME),19/12/2022," 2,366.04 ",6541-Residential EMI,THIRD PARTY PAYMENTS,PRIVATE CONTRACTOR,REVENUE
Walsall Council,http://opendatacommunities.org/id/metropolitan-district-council/walsall ,WC145-465,31.12.2022,ADULT SOCIAL CARE,ACEPAY LTD (COTTAGE NUR HOME),19/12/2022," 2,456.24 ",6541-Nursing,THIRD PARTY PAYMENTS,PRIVATE CONTRACTOR,REVENUE
Walsall Council,http://opendatacommunities.org/id/metropolitan-district-council/walsall ,WC145-466,31.12.2022,ADULT SOCIAL CARE,ACEPAY LTD (COTTAGE NUR HOME),19/12/2022," 2,366.04 ",6541-Residential EMI,THIRD PARTY PAYMENTS,PRIVATE CONTRACTOR,REVENUE
Walsall Council,http://opendatacommunities.org/id/metropolitan-district-council/walsall ,WC145-467,31.12.2022,ADULT SOCIAL CARE,ACEPAY LTD (COTTAGE NUR HOME),19/12/2022," 1,052.67 ",6541-Nursing,THIRD PARTY PAYMENTS,PRIVATE CONTRACTOR,REVENUE
Walsall Council,http://opendatacommunities.org/id/metropolitan-district-council/walsall ,WC145-468,31.12.2022,ADULT SOCIAL CARE,ACEPAY LTD (COTTAGE NUR HOME),19/12/2022," 2,456.24 ",6541-Nursing,THIRD PARTY PAYMENTS,PRIVATE CONTRACTOR,REVENUE
Walsall Council,http://opendatacommunities.org/id/metropolitan-district-council/walsall ,WC145-469,31.12.2022,ADULT SOCIAL CARE,ACEPAY LTD (COTTAGE NUR HOME),19/12/2022," 2,456.24 ",6541-Nursing,THIRD PARTY PAYMENTS,PRIVATE CONTRACTOR,REVENUE
Walsall Council,http://opendatacommunities.org/id/metropolitan-district-council/walsall ,WC145-470,31.12.2022,ADULT SOCIAL CARE,ACEPAY LTD (COTTAGE NUR HOME),19/12/2022," 2,456.24 ",6541-Nursing,THIRD PARTY PAYMENTS,PRIVATE CONTRACTOR,REVENUE
Walsall Council,http://opendatacommunities.org/id/metropolitan-district-council/walsall ,WC145-471,31.12.2022,ADULT SOCIAL CARE,ACEPAY LTD (COTTAGE NUR HOME),19/12/2022," 2,095.40 ",6541-Residential,THIRD PARTY PAYMENTS,PRIVATE CONTRACTOR,REVENUE
Walsall Council,http://opendatacommunities.org/id/metropolitan-district-council/walsall ,WC145-472,31.12.2022,ADULT SOCIAL CARE,ACEPAY LTD (COTTAGE NUR HOME),19/12/2022," 2,456.24 ",6541-Nursing,THIRD PARTY PAYMENTS,PRIVATE CONTRACTOR,REVENUE
Walsall Council,http://opendatacommunities.org/id/metropolitan-district-council/walsall ,WC145-473,31.12.2022,ADULT SOCIAL CARE,ACEPAY LTD (COTTAGE NUR HOME),19/12/2022," 2,456.24 ",6541-Nursing,THIRD PARTY PAYMENTS,PRIVATE CONTRACTOR,REVENUE
Walsall Council,http://opendatacommunities.org/id/metropolitan-district-council/walsall ,WC145-474,31.12.2022,ADULT SOCIAL CARE,ACEPAY LTD (COTTAGE NUR HOME),19/12/2022," 2,366.04 ",6541-Residential EMI,THIRD PARTY PAYMENTS,PRIVATE CONTRACTOR,REVENUE
Walsall Council,http://opendatacommunities.org/id/metropolitan-district-council/walsall ,WC145-475,31.12.2022,ADULT SOCIAL CARE,ACEPAY LTD (COTTAGE NUR HOME),19/12/2022," 6,218.55 ",6541-Nursing EMI,THIRD PARTY PAYMENTS,PRIVATE CONTRACTOR,REVENUE
Walsall Council,http://opendatacommunities.org/id/metropolitan-district-council/walsall ,WC145-476,31.12.2022,ADULT SOCIAL CARE,ACEPAY LTD (COTTAGE NUR HOME),19/12/2022," 2,366.04 ",6541-Residential EMI,THIRD PARTY PAYMENTS,PRIVATE CONTRACTOR,REVENUE
Walsall Council,http://opendatacommunities.org/id/metropolitan-district-council/walsall ,WC145-477,31.12.2022,ADULT SOCIAL CARE,ACHIEVE TOGETHER LIMITED,19/12/2022," 5,506.08 ",6541-Residential,THIRD PARTY PAYMENTS,PRIVATE CONTRACTOR,REVENUE
Walsall Council,http://opendatacommunities.org/id/metropolitan-district-council/walsall ,WC145-478,31.12.2022,ADULT SOCIAL CARE,ACHIEVE TOGETHER LIMITED,19/12/2022," 5,740.84 ",6541-Residential,THIRD PARTY PAYMENTS,PRIVATE CONTRACTOR,REVENUE
Walsall Council,http://opendatacommunities.org/id/metropolitan-district-council/walsall ,WC145-479,31.12.2022,ADULT SOCIAL CARE,ACHIEVE TOGETHER LIMITED,19/12/2022," 3,852.80 ",6541-Residential,THIRD PARTY PAYMENTS,PRIVATE CONTRACTOR,REVENUE
Walsall Council,http://opendatacommunities.org/id/metropolitan-district-council/walsall ,WC145-480,31.12.2022,ADULT SOCIAL CARE,ACHIEVE TOGETHER LIMITED,19/12/2022," 4,920.72 ",6541-Residential,THIRD PARTY PAYMENTS,PRIVATE CONTRACTOR,REVENUE
Walsall Council,http://opendatacommunities.org/id/metropolitan-district-council/walsall ,WC145-481,31.12.2022,ADULT SOCIAL CARE,ACHIEVE TOGETHER LIMITED,19/12/2022," 6,572.72 ",6541-Residential,THIRD PARTY PAYMENTS,PRIVATE CONTRACTOR,REVENUE
Walsall Council,http://opendatacommunities.org/id/metropolitan-district-council/walsall ,WC145-482,31.12.2022,"ECONOMY, ENVIRONMENT & COMMUNITIES",ACOEM UK LTD FORMERLY AIR MONITORS LIMITED,09/12/2022, 250.00 ,6411-Repair & Maintenance of Furniture & Equipment,SUPPLIES & SERVICES,EQUIPMENT FURNITURE & MATERIALS,REVENUE
Walsall Council,http://opendatacommunities.org/id/metropolitan-district-council/walsall ,WC145-483,31.12.2022,"ECONOMY, ENVIRONMENT & COMMUNITIES",ACOEM UK LTD FORMERLY AIR MONITORS LIMITED,09/12/2022, 440.00 ,6411-Repair & Maintenance of Furniture & Equipment,SUPPLIES & SERVICES,EQUIPMENT FURNITURE & MATERIALS,REVENUE
Walsall Council,http://opendatacommunities.org/id/metropolitan-district-council/walsall ,WC145-484,31.12.2022,"ECONOMY, ENVIRONMENT & COMMUNITIES",ACOEM UK LTD FORMERLY AIR MONITORS LIMITED,09/12/2022, 500.00 ,6411-Repair & Maintenance of Furniture & Equipment,SUPPLIES & SERVICES,EQUIPMENT FURNITURE & MATERIALS,REVENUE
Walsall Council,http://opendatacommunities.org/id/metropolitan-district-council/walsall ,WC145-485,31.12.2022,"ECONOMY, ENVIRONMENT & COMMUNITIES",ACOEM UK LTD FORMERLY AIR MONITORS LIMITED,09/12/2022, 695.00 ,6411-Repair & Maintenance of Furniture & Equipment,SUPPLIES & SERVICES,EQUIPMENT FURNITURE & MATERIALS,REVENUE
Walsall Council,http://opendatacommunities.org/id/metropolitan-district-council/walsall ,WC145-486,31.12.2022,CHILDRENS,ACORN CARE & EDUCATION LTD (SALES),15/12/2022," 8,782.47 ",1220-Top Up Funding -Grants to Schools,SUPPLIES & SERVICES,GRANTS (EXP) & SUBSCRIPTIONS,REVENUE
Walsall Council,http://opendatacommunities.org/id/metropolitan-district-council/walsall ,WC145-487,31.12.2022,CHILDRENS,ACORN CARE & EDUCATION LTD (SALES),15/12/2022," 27,006.08 ",1220-Top Up Funding -Grants to Schools,SUPPLIES & SERVICES,GRANTS (EXP) & SUBSCRIPTIONS,REVENUE
Walsall Council,http://opendatacommunities.org/id/metropolitan-district-council/walsall ,WC145-488,31.12.2022,CHILDRENS,ACORN CARE & EDUCATION LTD (SALES),15/12/2022," 26,347.40 ",1220-Top Up Funding -Grants to Schools,SUPPLIES & SERVICES,GRANTS (EXP) & SUBSCRIPTIONS,REVENUE
Walsall Council,http://opendatacommunities.org/id/metropolitan-district-council/walsall ,WC145-489,31.12.2022,CHILDRENS,ACORN CARE & EDUCATION LTD (SALES),15/12/2022," 6,082.81 ",1220-Top Up Funding -Grants to Schools,SUPPLIES & SERVICES,GRANTS (EXP) & SUBSCRIPTIONS,REVENUE
Walsall Council,http://opendatacommunities.org/id/metropolitan-district-council/walsall ,WC145-490,31.12.2022,CHILDRENS,ACORN CARE & EDUCATION LTD (SALES),15/12/2022," 17,803.33 ",1220-Top Up Funding -Grants to Schools,SUPPLIES & SERVICES,GRANTS (EXP) & SUBSCRIPTIONS,REVENUE
Walsall Council,http://opendatacommunities.org/id/metropolitan-district-council/walsall ,WC145-491,31.12.2022,CHILDRENS,ACORN CARE & EDUCATION LTD (SALES),22/12/2022," 20,648.57 ",6223-External Residential Care-Oth Agency Provision,THIRD PARTY PAYMENTS,PRIVATE CONTRACTOR,REVENUE
Walsall Council,http://opendatacommunities.org/id/metropolitan-district-council/walsall ,WC145-492,31.12.2022,CHILDRENS,ACORN CARE & EDUCATION LTD (SALES),21/12/2022," 2,608.37 ",1220-Top Up Funding -Grants to Schools,SUPPLIES & SERVICES,GRANTS (EXP) & SUBSCRIPTIONS,REVENUE
Walsall Council,http://opendatacommunities.org/id/metropolitan-district-council/walsall ,WC145-493,31.12.2022,CHILDRENS,ACORN CARE & EDUCATION LTD (SALES),21/12/2022," 2,608.33 ",1220-Top Up Funding -Grants to Schools,SUPPLIES & SERVICES,GRANTS (EXP) & SUBSCRIPTIONS,REVENUE
Walsall Council,http://opendatacommunities.org/id/metropolitan-district-council/walsall ,WC145-494,31.12.2022,CHILDRENS,ACORN CARE & EDUCATION LTD (SALES),20/12/2022," 2,388.75 ",1220-Top Up Funding -Grants to Schools,SUPPLIES & SERVICES,GRANTS (EXP) & SUBSCRIPTIONS,REVENUE
Walsall Council,http://opendatacommunities.org/id/metropolitan-district-council/walsall ,WC145-495,31.12.2022,CHILDRENS,ACORN CARE & EDUCATION LTD (SALES),20/12/2022," 2,388.75 ",1220-Top Up Funding -Grants to Schools,SUPPLIES & SERVICES,GRANTS (EXP) & SUBSCRIPTIONS,REVENUE
Walsall Council,http://opendatacommunities.org/id/metropolitan-district-council/walsall ,WC145-496,31.12.2022,CHILDRENS,ACORN CARE & EDUCATION LTD (SALES),20/12/2022, 551.25 ,1220-Top Up Funding -Grants to Schools,SUPPLIES & SERVICES,GRANTS (EXP) & SUBSCRIPTIONS,REVENUE
Walsall Council,http://opendatacommunities.org/id/metropolitan-district-council/walsall ,WC145-497,31.12.2022,CHILDRENS,ACORN CARE & EDUCATION LTD (SALES),20/12/2022, 551.25 ,1220-Top Up Funding -Grants to Schools,SUPPLIES & SERVICES,GRANTS (EXP) & SUBSCRIPTIONS,REVENUE
Walsall Council,http://opendatacommunities.org/id/metropolitan-district-council/walsall ,WC145-498,31.12.2022,CHILDRENS,ACORN CARE & EDUCATION LTD (SALES),21/12/2022," 3,133.37 ",1220-Top Up Funding -Grants to Schools,SUPPLIES & SERVICES,GRANTS (EXP) & SUBSCRIPTIONS,REVENUE
Walsall Council,http://opendatacommunities.org/id/metropolitan-district-council/walsall ,WC145-499,31.12.2022,CHILDRENS,ACORN CARE & EDUCATION LTD (SALES),21/12/2022," 3,133.33 ",1220-Top Up Funding -Grants to Schools,SUPPLIES & SERVICES,GRANTS (EXP) & SUBSCRIPTIONS,REVENUE
Walsall Council,http://opendatacommunities.org/id/metropolitan-district-council/walsall ,WC145-500,31.12.2022,CHILDRENS,ACORN CARE & EDUCATION LTD (SALES),20/12/2022," 2,884.62 ",1220-Top Up Funding -Grants to Schools,SUPPLIES & SERVICES,GRANTS (EXP) & SUBSCRIPTIONS,REVENUE
Walsall Council,http://opendatacommunities.org/id/metropolitan-district-council/walsall ,WC145-501,31.12.2022,CHILDRENS,ACORN CARE & EDUCATION LTD (SALES),20/12/2022," 2,884.58 ",1220-Top Up Funding -Grants to Schools,SUPPLIES & SERVICES,GRANTS (EXP) & SUBSCRIPTIONS,REVENUE
Walsall Council,http://opendatacommunities.org/id/metropolitan-district-council/walsall ,WC145-502,31.12.2022,CHILDRENS,ACORN CARE & EDUCATION LTD (SALES),21/12/2022," 4,932.12 ",1220-Top Up Funding -Grants to Schools,SUPPLIES & SERVICES,GRANTS (EXP) & SUBSCRIPTIONS,REVENUE
Walsall Council,http://opendatacommunities.org/id/metropolitan-district-council/walsall ,WC145-503,31.12.2022,CHILDRENS,ACORN CARE & EDUCATION LTD (SALES),21/12/2022," 4,932.08 ",1220-Top Up Funding -Grants to Schools,SUPPLIES & SERVICES,GRANTS (EXP) & SUBSCRIPTIONS,REVENUE
Walsall Council,http://opendatacommunities.org/id/metropolitan-district-council/walsall ,WC145-504,31.12.2022,CHILDRENS,ACORN CARE & EDUCATION LTD (SALES),21/12/2022," 2,153.37 ",1220-Top Up Funding -Grants to Schools,SUPPLIES & SERVICES,GRANTS (EXP) & SUBSCRIPTIONS,REVENUE
Walsall Council,http://opendatacommunities.org/id/metropolitan-district-council/walsall ,WC145-505,31.12.2022,CHILDRENS,ACORN CARE & EDUCATION LTD (SALES),21/12/2022," 2,153.33 ",1220-Top Up Funding -Grants to Schools,SUPPLIES & SERVICES,GRANTS (EXP) & SUBSCRIPTIONS,REVENUE
Walsall Council,http://opendatacommunities.org/id/metropolitan-district-council/walsall ,WC145-506,31.12.2022,CHILDRENS,ACORN CARE & EDUCATION LTD (SALES),21/12/2022," 3,133.37 ",1220-Top Up Funding -Grants to Schools,SUPPLIES & SERVICES,GRANTS (EXP) & SUBSCRIPTIONS,REVENUE
Walsall Council,http://opendatacommunities.org/id/metropolitan-district-council/walsall ,WC145-507,31.12.2022,CHILDRENS,ACORN CARE & EDUCATION LTD (SALES),21/12/2022," 3,133.33 ",1220-Top Up Funding -Grants to Schools,SUPPLIES & SERVICES,GRANTS (EXP) & SUBSCRIPTIONS,REVENUE
Walsall Council,http://opendatacommunities.org/id/metropolitan-district-council/walsall ,WC145-508,31.12.2022,CHILDRENS,ACORN CARE & EDUCATION LTD (SALES),21/12/2022," 2,374.37 ",1220-Top Up Funding -Grants to Schools,SUPPLIES & SERVICES,GRANTS (EXP) & SUBSCRIPTIONS,REVENUE
Walsall Council,http://opendatacommunities.org/id/metropolitan-district-council/walsall ,WC145-509,31.12.2022,CHILDRENS,ACORN CARE & EDUCATION LTD (SALES),21/12/2022," 2,374.33 ",1220-Top Up Funding -Grants to Schools,SUPPLIES & SERVICES,GRANTS (EXP) & SUBSCRIPTIONS,REVENUE
Walsall Council,http://opendatacommunities.org/id/metropolitan-district-council/walsall ,WC145-510,31.12.2022,CHILDRENS,ACORN CARE & EDUCATION LTD (SALES),21/12/2022, 471.00 ,1220-Top Up Funding -Grants to Schools,SUPPLIES & SERVICES,GRANTS (EXP) & SUBSCRIPTIONS,REVENUE
Walsall Council,http://opendatacommunities.org/id/metropolitan-district-council/walsall ,WC145-511,31.12.2022,CHILDRENS,ACORN CARE & EDUCATION LTD (SALES),21/12/2022, 471.00 ,1220-Top Up Funding -Grants to Schools,SUPPLIES & SERVICES,GRANTS (EXP) & SUBSCRIPTIONS,REVENUE
Walsall Council,http://opendatacommunities.org/id/metropolitan-district-council/walsall ,WC145-512,31.12.2022,CHILDRENS,ACORN CARE & EDUCATION LTD (SALES),20/12/2022," 1,259.62 ",1220-Top Up Funding -Grants to Schools,SUPPLIES & SERVICES,GRANTS (EXP) & SUBSCRIPTIONS,REVENUE
Walsall Council,http://opendatacommunities.org/id/metropolitan-district-council/walsall ,WC145-513,31.12.2022,CHILDRENS,ACORN CARE & EDUCATION LTD (SALES),20/12/2022," 1,259.58 ",1220-Top Up Funding -Grants to Schools,SUPPLIES & SERVICES,GRANTS (EXP) & SUBSCRIPTIONS,REVENUE
Walsall Council,http://opendatacommunities.org/id/metropolitan-district-council/walsall ,WC145-514,31.12.2022,CHILDRENS,ACORN CARE & EDUCATION LTD (SALES),21/12/2022," 2,722.12 ",1220-Top Up Funding -Grants to Schools,SUPPLIES & SERVICES,GRANTS (EXP) & SUBSCRIPTIONS,REVENUE
Walsall Council,http://opendatacommunities.org/id/metropolitan-district-council/walsall ,WC145-515,31.12.2022,CHILDRENS,ACORN CARE & EDUCATION LTD (SALES),21/12/2022," 2,722.08 ",1220-Top Up Funding -Grants to Schools,SUPPLIES & SERVICES,GRANTS (EXP) & SUBSCRIPTIONS,REVENUE
Walsall Council,http://opendatacommunities.org/id/metropolitan-district-council/walsall ,WC145-516,31.12.2022,CHILDRENS,ACORN CARE & EDUCATION LTD (SALES),21/12/2022, 330.75 ,1220-Top Up Funding -Grants to Schools,SUPPLIES & SERVICES,GRANTS (EXP) & SUBSCRIPTIONS,REVENUE
Walsall Council,http://opendatacommunities.org/id/metropolitan-district-council/walsall ,WC145-517,31.12.2022,CHILDRENS,ACORN CARE & EDUCATION LTD (SALES),21/12/2022, 330.75 ,1220-Top Up Funding -Grants to Schools,SUPPLIES & SERVICES,GRANTS (EXP) & SUBSCRIPTIONS,REVENUE
Walsall Council,http://opendatacommunities.org/id/metropolitan-district-council/walsall ,WC145-518,31.12.2022,CHILDRENS,ACORN CARE & EDUCATION LTD (SALES),20/12/2022," 3,133.37 ",1220-Top Up Funding -Grants to Schools,SUPPLIES & SERVICES,GRANTS (EXP) & SUBSCRIPTIONS,REVENUE
Walsall Council,http://opendatacommunities.org/id/metropolitan-district-council/walsall ,WC145-519,31.12.2022,CHILDRENS,ACORN CARE & EDUCATION LTD (SALES),20/12/2022," 3,133.33 ",1220-Top Up Funding -Grants to Schools,SUPPLIES & SERVICES,GRANTS (EXP) & SUBSCRIPTIONS,REVENUE
Walsall Council,http://opendatacommunities.org/id/metropolitan-district-council/walsall ,WC145-520,31.12.2022,CHILDRENS,ACORN CARE & EDUCATION LTD (SALES),20/12/2022," 2,884.62 ",1220-Top Up Funding -Grants to Schools,SUPPLIES & SERVICES,GRANTS (EXP) & SUBSCRIPTIONS,REVENUE
Walsall Council,http://opendatacommunities.org/id/metropolitan-district-council/walsall ,WC145-521,31.12.2022,CHILDRENS,ACORN CARE & EDUCATION LTD (SALES),20/12/2022," 2,884.58 ",1220-Top Up Funding -Grants to Schools,SUPPLIES & SERVICES,GRANTS (EXP) & SUBSCRIPTIONS,REVENUE
Walsall Council,http://opendatacommunities.org/id/metropolitan-district-council/walsall ,WC145-522,31.12.2022,CHILDRENS,ACORN CARE & EDUCATION LTD (SALES),20/12/2022," 2,884.62 ",1220-Top Up Funding -Grants to Schools,SUPPLIES & SERVICES,GRANTS (EXP) & SUBSCRIPTIONS,REVENUE
Walsall Council,http://opendatacommunities.org/id/metropolitan-district-council/walsall ,WC145-523,31.12.2022,CHILDRENS,ACORN CARE & EDUCATION LTD (SALES),20/12/2022," 2,884.58 ",1220-Top Up Funding -Grants to Schools,SUPPLIES & SERVICES,GRANTS (EXP) & SUBSCRIPTIONS,REVENUE
Walsall Council,http://opendatacommunities.org/id/metropolitan-district-council/walsall ,WC145-524,31.12.2022,CHILDRENS,ACORN CARE & EDUCATION LTD (SALES),20/12/2022," 2,884.62 ",1220-Top Up Funding -Grants to Schools,SUPPLIES & SERVICES,GRANTS (EXP) & SUBSCRIPTIONS,REVENUE
Walsall Council,http://opendatacommunities.org/id/metropolitan-district-council/walsall ,WC145-525,31.12.2022,CHILDRENS,ACORN CARE & EDUCATION LTD (SALES),20/12/2022," 2,884.58 ",1220-Top Up Funding -Grants to Schools,SUPPLIES & SERVICES,GRANTS (EXP) & SUBSCRIPTIONS,REVENUE
Walsall Council,http://opendatacommunities.org/id/metropolitan-district-council/walsall ,WC145-526,31.12.2022,CHILDRENS,ACORN CARE & EDUCATION LTD (SALES),21/12/2022,"-3,461.54 ",1220-Top Up Funding -Grants to Schools,SUPPLIES & SERVICES,GRANTS (EXP) & SUBSCRIPTIONS,REVENUE
Walsall Council,http://opendatacommunities.org/id/metropolitan-district-council/walsall ,WC145-527,31.12.2022,CHILDRENS,ACORN CARE & EDUCATION LTD (SALES),21/12/2022," 2,884.62 ",1220-Top Up Funding -Grants to Schools,SUPPLIES & SERVICES,GRANTS (EXP) & SUBSCRIPTIONS,REVENUE
Walsall Council,http://opendatacommunities.org/id/metropolitan-district-council/walsall ,WC145-528,31.12.2022,CHILDRENS,ACORN CARE & EDUCATION LTD (SALES),21/12/2022," 3,461.54 ",1220-Top Up Funding -Grants to Schools,SUPPLIES & SERVICES,GRANTS (EXP) & SUBSCRIPTIONS,REVENUE
Walsall Council,http://opendatacommunities.org/id/metropolitan-district-council/walsall ,WC145-529,31.12.2022,CHILDRENS,ACORN CARE & EDUCATION LTD (SALES),21/12/2022," 2,884.58 ",1220-Top Up Funding -Grants to Schools,SUPPLIES & SERVICES,GRANTS (EXP) & SUBSCRIPTIONS,REVENUE
Walsall Council,http://opendatacommunities.org/id/metropolitan-district-council/walsall ,WC145-530,31.12.2022,CHILDRENS,ACORN CARE & EDUCATION LTD (SALES),21/12/2022," 2,884.62 ",1220-Top Up Funding -Grants to Schools,SUPPLIES & SERVICES,GRANTS (EXP) & SUBSCRIPTIONS,REVENUE
Walsall Council,http://opendatacommunities.org/id/metropolitan-district-council/walsall ,WC145-531,31.12.2022,CHILDRENS,ACORN CARE & EDUCATION LTD (SALES),21/12/2022," 2,884.58 ",1220-Top Up Funding -Grants to Schools,SUPPLIES & SERVICES,GRANTS (EXP) & SUBSCRIPTIONS,REVENUE
Walsall Council,http://opendatacommunities.org/id/metropolitan-district-council/walsall ,WC145-532,31.12.2022,CHILDRENS,ACORN CARE & EDUCATION LTD (SALES),20/12/2022," 2,884.62 ",1220-Top Up Funding -Grants to Schools,SUPPLIES & SERVICES,GRANTS (EXP) & SUBSCRIPTIONS,REVENUE
Walsall Council,http://opendatacommunities.org/id/metropolitan-district-council/walsall ,WC145-533,31.12.2022,CHILDRENS,ACORN CARE & EDUCATION LTD (SALES),20/12/2022," 2,884.58 ",1220-Top Up Funding -Grants to Schools,SUPPLIES & SERVICES,GRANTS (EXP) & SUBSCRIPTIONS,REVENUE
Walsall Council,http://opendatacommunities.org/id/metropolitan-district-council/walsall ,WC145-534,31.12.2022,CHILDRENS,ACORN CARE & EDUCATION LTD (SALES),07/12/2022," 8,935.34 ",1220-Professional Fees & Services,SUPPLIES & SERVICES,SERVICES,REVENUE
Walsall Council,http://opendatacommunities.org/id/metropolitan-district-council/walsall ,WC145-535,31.12.2022,CHILDRENS,ACORN CARE & EDUCATION LTD (SALES),15/12/2022," 15,110.16 ",1220-Top Up Funding -Grants to Schools,SUPPLIES & SERVICES,GRANTS (EXP) & SUBSCRIPTIONS,REVENUE
Walsall Council,http://opendatacommunities.org/id/metropolitan-district-council/walsall ,WC145-536,31.12.2022,CHILDRENS,ACORN CARE & EDUCATION LTD (SALES),09/12/2022," 6,389.17 ",1220-Professional Fees & Services,SUPPLIES & SERVICES,SERVICES,REVENUE
Walsall Council,http://opendatacommunities.org/id/metropolitan-district-council/walsall ,WC145-537,31.12.2022,CHILDRENS,ACORN CARE & EDUCATION LTD (SALES),21/12/2022," 2,608.33 ",1220-Top Up Funding -Grants to Schools,SUPPLIES & SERVICES,GRANTS (EXP) & SUBSCRIPTIONS,REVENUE
Walsall Council,http://opendatacommunities.org/id/metropolitan-district-council/walsall ,WC145-538,31.12.2022,CHILDRENS,ACORN CARE & EDUCATION LTD (SALES),20/12/2022," 2,388.75 ",1220-Top Up Funding -Grants to Schools,SUPPLIES & SERVICES,GRANTS (EXP) & SUBSCRIPTIONS,REVENUE
Walsall Council,http://opendatacommunities.org/id/metropolitan-district-council/walsall ,WC145-539,31.12.2022,CHILDRENS,ACORN CARE & EDUCATION LTD (SALES),20/12/2022, 551.25 ,1220-Top Up Funding -Grants to Schools,SUPPLIES & SERVICES,GRANTS (EXP) & SUBSCRIPTIONS,REVENUE
Walsall Council,http://opendatacommunities.org/id/metropolitan-district-council/walsall ,WC145-540,31.12.2022,CHILDRENS,ACORN CARE & EDUCATION LTD (SALES),21/12/2022," 3,133.33 ",1220-Top Up Funding -Grants to Schools,SUPPLIES & SERVICES,GRANTS (EXP) & SUBSCRIPTIONS,REVENUE
Walsall Council,http://opendatacommunities.org/id/metropolitan-district-council/walsall ,WC145-541,31.12.2022,CHILDRENS,ACORN CARE & EDUCATION LTD (SALES),20/12/2022," 2,884.58 ",1220-Top Up Funding -Grants to Schools,SUPPLIES & SERVICES,GRANTS (EXP) & SUBSCRIPTIONS,REVENUE
Walsall Council,http://opendatacommunities.org/id/metropolitan-district-council/walsall ,WC145-542,31.12.2022,CHILDRENS,ACORN CARE & EDUCATION LTD (SALES),21/12/2022," 4,932.08 ",1220-Top Up Funding -Grants to Schools,SUPPLIES & SERVICES,GRANTS (EXP) & SUBSCRIPTIONS,REVENUE
Walsall Council,http://opendatacommunities.org/id/metropolitan-district-council/walsall ,WC145-543,31.12.2022,CHILDRENS,ACORN CARE & EDUCATION LTD (SALES),21/12/2022," 2,153.33 ",1220-Top Up Funding -Grants to Schools,SUPPLIES & SERVICES,GRANTS (EXP) & SUBSCRIPTIONS,REVENUE
Walsall Council,http://opendatacommunities.org/id/metropolitan-district-council/walsall ,WC145-544,31.12.2022,CHILDRENS,ACORN CARE & EDUCATION LTD (SALES),21/12/2022," 3,133.33 ",1220-Top Up Funding -Grants to Schools,SUPPLIES & SERVICES,GRANTS (EXP) & SUBSCRIPTIONS,REVENUE
Walsall Council,http://opendatacommunities.org/id/metropolitan-district-council/walsall ,WC145-545,31.12.2022,CHILDRENS,ACORN CARE & EDUCATION LTD (SALES),21/12/2022," 2,374.33 ",1220-Top Up Funding -Grants to Schools,SUPPLIES & SERVICES,GRANTS (EXP) & SUBSCRIPTIONS,REVENUE
Walsall Council,http://opendatacommunities.org/id/metropolitan-district-council/walsall ,WC145-546,31.12.2022,CHILDRENS,ACORN CARE & EDUCATION LTD (SALES),21/12/2022, 471.00 ,1220-Top Up Funding -Grants to Schools,SUPPLIES & SERVICES,GRANTS (EXP) & SUBSCRIPTIONS,REVENUE
Walsall Council,http://opendatacommunities.org/id/metropolitan-district-council/walsall ,WC145-547,31.12.2022,CHILDRENS,ACORN CARE & EDUCATION LTD (SALES),20/12/2022," 1,259.58 ",1220-Top Up Funding -Grants to Schools,SUPPLIES & SERVICES,GRANTS (EXP) & SUBSCRIPTIONS,REVENUE
Walsall Council,http://opendatacommunities.org/id/metropolitan-district-council/walsall ,WC145-548,31.12.2022,CHILDRENS,ACORN CARE & EDUCATION LTD (SALES),21/12/2022," 2,722.08 ",1220-Top Up Funding -Grants to Schools,SUPPLIES & SERVICES,GRANTS (EXP) & SUBSCRIPTIONS,REVENUE
Walsall Council,http://opendatacommunities.org/id/metropolitan-district-council/walsall ,WC145-549,31.12.2022,CHILDRENS,ACORN CARE & EDUCATION LTD (SALES),21/12/2022, 330.75 ,1220-Top Up Funding -Grants to Schools,SUPPLIES & SERVICES,GRANTS (EXP) & SUBSCRIPTIONS,REVENUE
Walsall Council,http://opendatacommunities.org/id/metropolitan-district-council/walsall ,WC145-550,31.12.2022,CHILDRENS,ACORN CARE & EDUCATION LTD (SALES),20/12/2022," 3,133.33 ",1220-Top Up Funding -Grants to Schools,SUPPLIES & SERVICES,GRANTS (EXP) & SUBSCRIPTIONS,REVENUE
Walsall Council,http://opendatacommunities.org/id/metropolitan-district-council/walsall ,WC145-551,31.12.2022,CHILDRENS,ACORN CARE & EDUCATION LTD (SALES),20/12/2022," 2,884.58 ",1220-Top Up Funding -Grants to Schools,SUPPLIES & SERVICES,GRANTS (EXP) & SUBSCRIPTIONS,REVENUE
Walsall Council,http://opendatacommunities.org/id/metropolitan-district-council/walsall ,WC145-552,31.12.2022,CHILDRENS,ACORN CARE & EDUCATION LTD (SALES),20/12/2022," 2,884.58 ",1220-Top Up Funding -Grants to Schools,SUPPLIES & SERVICES,GRANTS (EXP) & SUBSCRIPTIONS,REVENUE
Walsall Council,http://opendatacommunities.org/id/metropolitan-district-council/walsall ,WC145-553,31.12.2022,CHILDRENS,ACORN CARE & EDUCATION LTD (SALES),21/12/2022," 2,884.58 ",1220-Top Up Funding -Grants to Schools,SUPPLIES & SERVICES,GRANTS (EXP) & SUBSCRIPTIONS,REVENUE
Walsall Council,http://opendatacommunities.org/id/metropolitan-district-council/walsall ,WC145-554,31.12.2022,CHILDRENS,ACORN CARE & EDUCATION LTD (SALES),21/12/2022," 2,884.58 ",1220-Top Up Funding -Grants to Schools,SUPPLIES & SERVICES,GRANTS (EXP) & SUBSCRIPTIONS,REVENUE
Walsall Council,http://opendatacommunities.org/id/metropolitan-district-council/walsall ,WC145-555,31.12.2022,CHILDRENS,ACORN CARE & EDUCATION LTD (SALES),19/12/2022," 17,302.00 ",1220-Professional Fees & Services,SUPPLIES & SERVICES,SERVICES,REVENUE
Walsall Council,http://opendatacommunities.org/id/metropolitan-district-council/walsall ,WC145-556,31.12.2022,CHILDRENS,ACORN CARE & EDUCATION LTD (SALES),19/12/2022," 24,705.00 ",1220-Top Up Funding -Grants to Schools,SUPPLIES & SERVICES,GRANTS (EXP) & SUBSCRIPTIONS,REVENUE
Walsall Council,http://opendatacommunities.org/id/metropolitan-district-council/walsall ,WC145-557,31.12.2022,CHILDRENS,ACORN CARE & EDUCATION LTD (SALES),19/12/2022," 19,761.67 ",1220-Top Up Funding -Grants to Schools,SUPPLIES & SERVICES,GRANTS (EXP) & SUBSCRIPTIONS,REVENUE
Walsall Council,http://opendatacommunities.org/id/metropolitan-district-council/walsall ,WC145-558,31.12.2022,CHILDRENS,ACORN CARE & EDUCATION LTD (SALES),19/12/2022," 19,761.67 ",1220-Professional Fees & Services,SUPPLIES & SERVICES,SERVICES,REVENUE
Walsall Council,http://opendatacommunities.org/id/metropolitan-district-council/walsall ,WC145-559,31.12.2022,CHILDRENS,ACORN CARE & EDUCATION LTD (SALES),13/12/2022," 22,256.67 ",1220-Professional Fees & Services,SUPPLIES & SERVICES,SERVICES,REVENUE
Walsall Council,http://opendatacommunities.org/id/metropolitan-district-council/walsall ,WC145-560,31.12.2022,CHILDRENS,ACORN CARE & EDUCATION LTD (SALES),19/12/2022," 14,053.33 ",1220-Professional Fees & Services,SUPPLIES & SERVICES,SERVICES,REVENUE
Walsall Council,http://opendatacommunities.org/id/metropolitan-district-council/walsall ,WC145-561,31.12.2022,CHILDRENS,ACORN CARE & EDUCATION LTD (SALES),20/12/2022," 17,803.33 ",1220-Top Up Funding -Grants to Schools,SUPPLIES & SERVICES,GRANTS (EXP) & SUBSCRIPTIONS,REVENUE
Walsall Council,http://opendatacommunities.org/id/metropolitan-district-council/walsall ,WC145-562,31.12.2022,CHILDRENS,ACORN CARE & EDUCATION LTD (SALES),20/12/2022," 16,166.67 ",1220-Professional Fees & Services,SUPPLIES & SERVICES,SERVICES,REVENUE
Walsall Council,http://opendatacommunities.org/id/metropolitan-district-council/walsall ,WC145-563,31.12.2022,CHILDRENS,ACORN CARE & EDUCATION LTD (SALES),21/12/2022," 15,554.33 ",1220-Top Up Funding -Grants to Schools,SUPPLIES & SERVICES,GRANTS (EXP) & SUBSCRIPTIONS,REVENUE
Walsall Council,http://opendatacommunities.org/id/metropolitan-district-council/walsall ,WC145-564,31.12.2022,CHILDRENS,ACORN CARE & EDUCATION LTD (SALES),12/12/2022," 25,960.00 ",1220-Top Up Funding -Grants to Schools,SUPPLIES & SERVICES,GRANTS (EXP) & SUBSCRIPTIONS,REVENUE
Walsall Council,http://opendatacommunities.org/id/metropolitan-district-council/walsall ,WC145-565,31.12.2022,CHILDRENS,ACORN CARE & EDUCATION LTD (SALES),12/12/2022," 19,883.33 ",1220-Top Up Funding -Grants to Schools,SUPPLIES & SERVICES,GRANTS (EXP) & SUBSCRIPTIONS,REVENUE
Walsall Council,http://opendatacommunities.org/id/metropolitan-district-council/walsall ,WC145-566,31.12.2022,CHILDRENS,ACORN CARE & EDUCATION LTD (SALES),12/12/2022," 17,302.00 ",1220-Top Up Funding -Grants to Schools,SUPPLIES & SERVICES,GRANTS (EXP) & SUBSCRIPTIONS,REVENUE
Walsall Council,http://opendatacommunities.org/id/metropolitan-district-council/walsall ,WC145-567,31.12.2022,CHILDRENS,ACORN CARE & EDUCATION LTD (SALES),20/12/2022," 21,951.78 ",1220-Top Up Funding -Grants to Schools,SUPPLIES & SERVICES,GRANTS (EXP) & SUBSCRIPTIONS,REVENUE
Walsall Council,http://opendatacommunities.org/id/metropolitan-district-council/walsall ,WC145-568,31.12.2022,CHILDRENS,ACORN CARE & EDUCATION LTD (SALES),12/12/2022,"-19,494.96 ",1220-Top Up Funding -Grants to Schools,SUPPLIES & SERVICES,GRANTS (EXP) & SUBSCRIPTIONS,REVENUE
Walsall Council,http://opendatacommunities.org/id/metropolitan-district-council/walsall ,WC145-569,31.12.2022,CHILDRENS,ACORN CARE & EDUCATION LTD (SALES),12/12/2022," 19,490.96 ",1220-Top Up Funding -Grants to Schools,SUPPLIES & SERVICES,GRANTS (EXP) & SUBSCRIPTIONS,REVENUE
Walsall Council,http://opendatacommunities.org/id/metropolitan-district-council/walsall ,WC145-570,31.12.2022,CHILDRENS,ACORN CARE & EDUCATION LTD (SALES),12/12/2022," 19,494.96 ",1220-Top Up Funding -Grants to Schools,SUPPLIES & SERVICES,GRANTS (EXP) & SUBSCRIPTIONS,REVENUE
Walsall Council,http://opendatacommunities.org/id/metropolitan-district-council/walsall ,WC145-571,31.12.2022,CHILDRENS,ACORN CARE & EDUCATION LTD (SALES),12/12/2022," 19,490.96 ",1220-Top Up Funding -Grants to Schools,SUPPLIES & SERVICES,GRANTS (EXP) & SUBSCRIPTIONS,REVENUE
Walsall Council,http://opendatacommunities.org/id/metropolitan-district-council/walsall ,WC145-572,31.12.2022,CHILDRENS,ACORN CARE & EDUCATION LTD (SALES),20/12/2022," 17,559.45 ",1220-Top Up Funding -Grants to Schools,SUPPLIES & SERVICES,GRANTS (EXP) & SUBSCRIPTIONS,REVENUE
Walsall Council,http://opendatacommunities.org/id/metropolitan-district-council/walsall ,WC145-573,31.12.2022,CHILDRENS,ACORN CARE & EDUCATION LTD (SALES),20/12/2022," 26,347.40 ",1220-Top Up Funding -Grants to Schools,SUPPLIES & SERVICES,GRANTS (EXP) & SUBSCRIPTIONS,REVENUE
Walsall Council,http://opendatacommunities.org/id/metropolitan-district-council/walsall ,WC145-574,31.12.2022,CHILDRENS,ACORN CARE & EDUCATION LTD (SALES),20/12/2022," 18,082.19 ",1220-Professional Fees & Services,SUPPLIES & SERVICES,SERVICES,REVENUE
Walsall Council,http://opendatacommunities.org/id/metropolitan-district-council/walsall ,WC145-575,31.12.2022,CHILDRENS,ACORN CARE & EDUCATION LTD (SALES),20/12/2022," 17,559.45 ",1220-Top Up Funding -Grants to Schools,SUPPLIES & SERVICES,GRANTS (EXP) & SUBSCRIPTIONS,REVENUE
Walsall Council,http://opendatacommunities.org/id/metropolitan-district-council/walsall ,WC145-576,31.12.2022,CHILDRENS,ACORN CARE & EDUCATION LTD (SALES),20/12/2022," 19,490.96 ",1220-Top Up Funding -Grants to Schools,SUPPLIES & SERVICES,GRANTS (EXP) & SUBSCRIPTIONS,REVENUE
Walsall Council,http://opendatacommunities.org/id/metropolitan-district-council/walsall ,WC145-577,31.12.2022,CHILDRENS,ACORN CARE & EDUCATION LTD (SALES),30/12/2022," 29,245.48 ",1220-Top Up Funding -Grants to Schools,SUPPLIES & SERVICES,GRANTS (EXP) & SUBSCRIPTIONS,REVENUE
Walsall Council,http://opendatacommunities.org/id/metropolitan-district-council/walsall ,WC145-578,31.12.2022,CHILDRENS,ACORN CARE & EDUCATION LTD (SALES),20/12/2022," 17,559.45 ",1220-Top Up Funding -Grants to Schools,SUPPLIES & SERVICES,GRANTS (EXP) & SUBSCRIPTIONS,REVENUE
Walsall Council,http://opendatacommunities.org/id/metropolitan-district-council/walsall ,WC145-579,31.12.2022,CHILDRENS,ACORN CARE & EDUCATION LTD (SALES),20/12/2022," 26,713.33 ",1220-Top Up Funding -Grants to Schools,SUPPLIES & SERVICES,GRANTS (EXP) & SUBSCRIPTIONS,REVENUE
Walsall Council,http://opendatacommunities.org/id/metropolitan-district-council/walsall ,WC145-580,31.12.2022,CHILDRENS,ACORN CARE & EDUCATION LTD (SALES),30/12/2022," 20,460.00 ",1220-Professional Fees & Services,SUPPLIES & SERVICES,SERVICES,REVENUE
Walsall Council,http://opendatacommunities.org/id/metropolitan-district-council/walsall ,WC145-581,31.12.2022,CHILDRENS,ACORN CARE & EDUCATION LTD (SALES),30/12/2022," 17,302.00 ",1220-Professional Fees & Services,SUPPLIES & SERVICES,SERVICES,REVENUE
Walsall Council,http://opendatacommunities.org/id/metropolitan-district-council/walsall ,WC145-582,31.12.2022,CHILDRENS,ACORN CARE & EDUCATION LTD (SALES),30/12/2022," 6,333.33 ",1220-Professional Fees & Services,SUPPLIES & SERVICES,SERVICES,REVENUE
Walsall Council,http://opendatacommunities.org/id/metropolitan-district-council/walsall ,WC145-583,31.12.2022,CHILDRENS,ACORN CARE & EDUCATION LTD (SALES),30/12/2022," 22,710.67 ",1220-Professional Fees & Services,SUPPLIES & SERVICES,SERVICES,REVENUE
Walsall Council,http://opendatacommunities.org/id/metropolitan-district-council/walsall ,WC145-584,31.12.2022,CHILDRENS,ACORN FOSTERING SERVICES LTD,22/12/2022," 3,340.00 ",6223-Independent Foster Care-Oth Agency Provision,THIRD PARTY PAYMENTS,PRIVATE CONTRACTOR,REVENUE
Walsall Council,http://opendatacommunities.org/id/metropolitan-district-council/walsall ,WC145-585,31.12.2022,CHILDRENS,ACPAS LIMITED,19/12/2022, 347.05 ,6220-School Only Payments - Catering,THIRD PARTY PAYMENTS,INDEPENDENT UNIT WITHIN COUNCIL,REVENUE
Walsall Council,http://opendatacommunities.org/id/metropolitan-district-council/walsall ,WC145-586,31.12.2022,CHILDRENS,ACTI FIT (MIDLANDS) LIMITED,02/12/2022," 7,589.12 ",6211-Professional Fees & Services,SUPPLIES & SERVICES,SERVICES,REVENUE
Walsall Council,http://opendatacommunities.org/id/metropolitan-district-council/walsall ,WC145-587,31.12.2022,CHILDRENS,ACTIVE CARE SOLUTIONS LTD,22/12/2022," 3,445.08 ",6223-Independent Foster Care-Oth Agency Provision,THIRD PARTY PAYMENTS,PRIVATE CONTRACTOR,REVENUE
Walsall Council,http://opendatacommunities.org/id/metropolitan-district-council/walsall ,WC145-588,31.12.2022,CHILDRENS,ACTIVITY GYM LTD,02/12/2022," 1,402.80 ",6211-Professional Fees & Services,SUPPLIES & SERVICES,SERVICES,REVENUE
Walsall Council,http://opendatacommunities.org/id/metropolitan-district-council/walsall ,WC145-589,31.12.2022,ADULT SOCIAL CARE,REDACTED,07/12/2022, 916.60 ,6541-Direct Payment,THIRD PARTY PAYMENTS,PRIVATE CONTRACTOR,REVENUE
Walsall Council,http://opendatacommunities.org/id/metropolitan-district-council/walsall ,WC145-590,31.12.2022,CHILDRENS,REDACTED,14/12/2022, 337.12 ,6223-Residents Orders,TRANSFER PAYMENTS,CHILDREN SOCIAL SERVICES CLIENT,REVENUE
Walsall Council,http://opendatacommunities.org/id/metropolitan-district-council/walsall ,WC145-591,31.12.2022,ADULT SOCIAL CARE,ADVANCE HEALTH CARE (UK) LTD,14/12/2022," 2,316.64 ",6541-Domiciliary Care,THIRD PARTY PAYMENTS,PRIVATE CONTRACTOR,REVENUE
Walsall Council,http://opendatacommunities.org/id/metropolitan-district-council/walsall ,WC145-592,31.12.2022,ADULT SOCIAL CARE,ADVANCE HEALTH CARE (UK) LTD,14/12/2022," 1,066.56 ",6541-Domiciliary Care,THIRD PARTY PAYMENTS,PRIVATE CONTRACTOR,REVENUE
Walsall Council,http://opendatacommunities.org/id/metropolitan-district-council/walsall ,WC145-593,31.12.2022,ADULT SOCIAL CARE,ADVANCE HEALTH CARE (UK) LTD,14/12/2022, 942.76 ,6541-Domiciliary Care,THIRD PARTY PAYMENTS,PRIVATE CONTRACTOR,REVENUE
Walsall Council,http://opendatacommunities.org/id/metropolitan-district-council/walsall ,WC145-594,31.12.2022,ADULT SOCIAL CARE,ADVANCE HEALTH CARE (UK) LTD,14/12/2022," 1,050.40 ",6541-Domiciliary Care,THIRD PARTY PAYMENTS,PRIVATE CONTRACTOR,REVENUE
Walsall Council,http://opendatacommunities.org/id/metropolitan-district-council/walsall ,WC145-595,31.12.2022,ADULT SOCIAL CARE,ADVANCE HEALTH CARE (UK) LTD,14/12/2022, 792.12 ,6541-Domiciliary Care,THIRD PARTY PAYMENTS,PRIVATE CONTRACTOR,REVENUE
Walsall Council,http://opendatacommunities.org/id/metropolitan-district-council/walsall ,WC145-596,31.12.2022,ADULT SOCIAL CARE,ADVANCE HEALTH CARE (UK) LTD,14/12/2022, 606.00 ,6541-Domiciliary Care,THIRD PARTY PAYMENTS,PRIVATE CONTRACTOR,REVENUE
Walsall Council,http://opendatacommunities.org/id/metropolitan-district-council/walsall ,WC145-597,31.12.2022,ADULT SOCIAL CARE,ADVANCE HEALTH CARE (UK) LTD,14/12/2022, 754.32 ,6541-Domiciliary Care,THIRD PARTY PAYMENTS,PRIVATE CONTRACTOR,REVENUE
Walsall Council,http://opendatacommunities.org/id/metropolitan-district-council/walsall ,WC145-598,31.12.2022,ADULT SOCIAL CARE,ADVANCE HEALTH CARE (UK) LTD,14/12/2022," 1,082.72 ",6541-Domiciliary Care,THIRD PARTY PAYMENTS,PRIVATE CONTRACTOR,REVENUE
Walsall Council,http://opendatacommunities.org/id/metropolitan-district-council/walsall ,WC145-599,31.12.2022,ADULT SOCIAL CARE,ADVANCE HEALTH CARE (UK) LTD,14/12/2022, 490.28 ,6541-Domiciliary Care,THIRD PARTY PAYMENTS,PRIVATE CONTRACTOR,REVENUE
Walsall Council,http://opendatacommunities.org/id/metropolitan-district-council/walsall ,WC145-600,31.12.2022,ADULT SOCIAL CARE,ADVANCE HEALTH CARE (UK) LTD,14/12/2022, 705.84 ,6541-Domiciliary Care,THIRD PARTY PAYMENTS,PRIVATE CONTRACTOR,REVENUE
Walsall Council,http://opendatacommunities.org/id/metropolitan-district-council/walsall ,WC145-601,31.12.2022,ADULT SOCIAL CARE,ADVANCE HEALTH CARE (UK) LTD,05/12/2022, 339.50 ,6541-Domiciliary Care,THIRD PARTY PAYMENTS,PRIVATE CONTRACTOR,REVENUE
Walsall Council,http://opendatacommunities.org/id/metropolitan-district-council/walsall ,WC145-602,31.12.2022,ADULT SOCIAL CARE,ADVANCE HEALTH CARE (UK) LTD,05/12/2022, 509.04 ,6541-Domiciliary Care,THIRD PARTY PAYMENTS,PRIVATE CONTRACTOR,REVENUE
Walsall Council,http://opendatacommunities.org/id/metropolitan-district-council/walsall ,WC145-603,31.12.2022,ADULT SOCIAL CARE,ADVANCE HEALTH CARE (UK) LTD,05/12/2022, 565.60 ,6541-Domiciliary Care,THIRD PARTY PAYMENTS,PRIVATE CONTRACTOR,REVENUE
Walsall Council,http://opendatacommunities.org/id/metropolitan-district-council/walsall ,WC145-604,31.12.2022,ADULT SOCIAL CARE,ADVANCE HEALTH CARE (UK) LTD,05/12/2022, 904.96 ,6541-Domiciliary Care,THIRD PARTY PAYMENTS,PRIVATE CONTRACTOR,REVENUE
Walsall Council,http://opendatacommunities.org/id/metropolitan-district-council/walsall ,WC145-605,31.12.2022,ADULT SOCIAL CARE,ADVANCE HEALTH CARE (UK) LTD,05/12/2022, 254.52 ,6541-Domiciliary Care,THIRD PARTY PAYMENTS,PRIVATE CONTRACTOR,REVENUE
Walsall Council,http://opendatacommunities.org/id/metropolitan-district-council/walsall ,WC145-606,31.12.2022,ADULT SOCIAL CARE,ADVANCE HEALTH CARE (UK) LTD,05/12/2022, 452.48 ,6541-Domiciliary Care,THIRD PARTY PAYMENTS,PRIVATE CONTRACTOR,REVENUE
Walsall Council,http://opendatacommunities.org/id/metropolitan-district-council/walsall ,WC145-607,31.12.2022,ADULT SOCIAL CARE,ADVANCE HEALTH CARE (UK) LTD,05/12/2022,"-2,974.76 ",6541-Domiciliary Care,THIRD PARTY PAYMENTS,PRIVATE CONTRACTOR,REVENUE
Walsall Council,http://opendatacommunities.org/id/metropolitan-district-council/walsall ,WC145-608,31.12.2022,ADULT SOCIAL CARE,ADVANCE HEALTH CARE (UK) LTD,05/12/2022, 589.84 ,6541-Domiciliary Care,THIRD PARTY PAYMENTS,PRIVATE CONTRACTOR,REVENUE
Walsall Council,http://opendatacommunities.org/id/metropolitan-district-council/walsall ,WC145-609,31.12.2022,ADULT SOCIAL CARE,ADVANCE HEALTH CARE (UK) LTD,05/12/2022, 377.16 ,6541-Domiciliary Care,THIRD PARTY PAYMENTS,PRIVATE CONTRACTOR,REVENUE
Walsall Council,http://opendatacommunities.org/id/metropolitan-district-council/walsall ,WC145-610,31.12.2022,ADULT SOCIAL CARE,ADVANCE HEALTH CARE (UK) LTD,05/12/2022, 339.50 ,6541-Domiciliary Care,THIRD PARTY PAYMENTS,PRIVATE CONTRACTOR,REVENUE
Walsall Council,http://opendatacommunities.org/id/metropolitan-district-council/walsall ,WC145-611,31.12.2022,ADULT SOCIAL CARE,ADVANCE HEALTH CARE (UK) LTD,05/12/2022, 509.04 ,6541-Domiciliary Care,THIRD PARTY PAYMENTS,PRIVATE CONTRACTOR,REVENUE
Walsall Council,http://opendatacommunities.org/id/metropolitan-district-council/walsall ,WC145-612,31.12.2022,ADULT SOCIAL CARE,ADVANCE HEALTH CARE (UK) LTD,05/12/2022, 509.04 ,6541-Domiciliary Care,THIRD PARTY PAYMENTS,PRIVATE CONTRACTOR,REVENUE
Walsall Council,http://opendatacommunities.org/id/metropolitan-district-council/walsall ,WC145-613,31.12.2022,ADULT SOCIAL CARE,ADVANCE HEALTH CARE (UK) LTD,05/12/2022, 509.04 ,6541-Domiciliary Care,THIRD PARTY PAYMENTS,PRIVATE CONTRACTOR,REVENUE
Walsall Council,http://opendatacommunities.org/id/metropolitan-district-council/walsall ,WC145-614,31.12.2022,ADULT SOCIAL CARE,ADVANCE HEALTH CARE (UK) LTD,05/12/2022, 500.96 ,6541-Domiciliary Care,THIRD PARTY PAYMENTS,PRIVATE CONTRACTOR,REVENUE
Walsall Council,http://opendatacommunities.org/id/metropolitan-district-council/walsall ,WC145-615,31.12.2022,ADULT SOCIAL CARE,ADVANCE HEALTH CARE (UK) LTD,05/12/2022, 565.60 ,6541-Domiciliary Care,THIRD PARTY PAYMENTS,PRIVATE CONTRACTOR,REVENUE
Walsall Council,http://opendatacommunities.org/id/metropolitan-district-council/walsall ,WC145-616,31.12.2022,ADULT SOCIAL CARE,ADVANCE HEALTH CARE (UK) LTD,05/12/2022, 254.52 ,6541-Domiciliary Care,THIRD PARTY PAYMENTS,PRIVATE CONTRACTOR,REVENUE
Walsall Council,http://opendatacommunities.org/id/metropolitan-district-council/walsall ,WC145-617,31.12.2022,ADULT SOCIAL CARE,ADVANCE HEALTH CARE (UK) LTD,05/12/2022, 509.04 ,6541-Domiciliary Care,THIRD PARTY PAYMENTS,PRIVATE CONTRACTOR,REVENUE
Walsall Council,http://opendatacommunities.org/id/metropolitan-district-council/walsall ,WC145-618,31.12.2022,ADULT SOCIAL CARE,ADVANCE HEALTH CARE (UK) LTD,05/12/2022, 509.04 ,6541-Domiciliary Care,THIRD PARTY PAYMENTS,PRIVATE CONTRACTOR,REVENUE
Walsall Council,http://opendatacommunities.org/id/metropolitan-district-council/walsall ,WC145-619,31.12.2022,ADULT SOCIAL CARE,ADVANCE HEALTH CARE (UK) LTD,05/12/2022, 254.52 ,6541-Domiciliary Care,THIRD PARTY PAYMENTS,PRIVATE CONTRACTOR,REVENUE
Walsall Council,http://opendatacommunities.org/id/metropolitan-district-council/walsall ,WC145-620,31.12.2022,ADULT SOCIAL CARE,ADVANCE HEALTH CARE (UK) LTD,05/12/2022, 565.60 ,6541-Domiciliary Care,THIRD PARTY PAYMENTS,PRIVATE CONTRACTOR,REVENUE
Walsall Council,http://opendatacommunities.org/id/metropolitan-district-council/walsall ,WC145-621,31.12.2022,ADULT SOCIAL CARE,ADVANCE HEALTH CARE (UK) LTD,05/12/2022, 509.04 ,6541-Domiciliary Care,THIRD PARTY PAYMENTS,PRIVATE CONTRACTOR,REVENUE
Walsall Council,http://opendatacommunities.org/id/metropolitan-district-council/walsall ,WC145-622,31.12.2022,ADULT SOCIAL CARE,ADVANCE HEALTH CARE (UK) LTD,05/12/2022, 565.60 ,6541-Domiciliary Care,THIRD PARTY PAYMENTS,PRIVATE CONTRACTOR,REVENUE
Walsall Council,http://opendatacommunities.org/id/metropolitan-district-council/walsall ,WC145-623,31.12.2022,ADULT SOCIAL CARE,ADVANCE HEALTH CARE (UK) LTD,05/12/2022, 509.04 ,6541-Domiciliary Care,THIRD PARTY PAYMENTS,PRIVATE CONTRACTOR,REVENUE
Walsall Council,http://opendatacommunities.org/id/metropolitan-district-council/walsall ,WC145-624,31.12.2022,ADULT SOCIAL CARE,ADVANCE HEALTH CARE (UK) LTD,05/12/2022, 565.60 ,6541-Domiciliary Care,THIRD PARTY PAYMENTS,PRIVATE CONTRACTOR,REVENUE
Walsall Council,http://opendatacommunities.org/id/metropolitan-district-council/walsall ,WC145-625,31.12.2022,ADULT SOCIAL CARE,ADVANCE HEALTH CARE (UK) LTD,05/12/2022,-920.01 ,6541-Domiciliary Care,THIRD PARTY PAYMENTS,PRIVATE CONTRACTOR,REVENUE
Walsall Council,http://opendatacommunities.org/id/metropolitan-district-council/walsall ,WC145-626,31.12.2022,ADULT SOCIAL CARE,ADVANCE HEALTH CARE (UK) LTD,05/12/2022, 254.52 ,6541-Domiciliary Care,THIRD PARTY PAYMENTS,PRIVATE CONTRACTOR,REVENUE
Walsall Council,http://opendatacommunities.org/id/metropolitan-district-council/walsall ,WC145-627,31.12.2022,ADULT SOCIAL CARE,ADVANCE HEALTH CARE (UK) LTD,05/12/2022, 254.52 ,6541-Domiciliary Care,THIRD PARTY PAYMENTS,PRIVATE CONTRACTOR,REVENUE
Walsall Council,http://opendatacommunities.org/id/metropolitan-district-council/walsall ,WC145-628,31.12.2022,ADULT SOCIAL CARE,ADVANCE HEALTH CARE (UK) LTD,05/12/2022, 509.04 ,6541-Domiciliary Care,THIRD PARTY PAYMENTS,PRIVATE CONTRACTOR,REVENUE
Walsall Council,http://opendatacommunities.org/id/metropolitan-district-council/walsall ,WC145-629,31.12.2022,ADULT SOCIAL CARE,ADVANCE HEALTH CARE (UK) LTD,05/12/2022, 452.48 ,6541-Domiciliary Care,THIRD PARTY PAYMENTS,PRIVATE CONTRACTOR,REVENUE
Walsall Council,http://opendatacommunities.org/id/metropolitan-district-council/walsall ,WC145-630,31.12.2022,ADULT SOCIAL CARE,ADVANCE HEALTH CARE (UK) LTD,05/12/2022, 509.04 ,6541-Domiciliary Care,THIRD PARTY PAYMENTS,PRIVATE CONTRACTOR,REVENUE
Walsall Council,http://opendatacommunities.org/id/metropolitan-district-council/walsall ,WC145-631,31.12.2022,ADULT SOCIAL CARE,ADVANCE HEALTH CARE (UK) LTD,05/12/2022, 864.56 ,6541-Domiciliary Care,THIRD PARTY PAYMENTS,PRIVATE CONTRACTOR,REVENUE
Walsall Council,http://opendatacommunities.org/id/metropolitan-district-council/walsall ,WC145-632,31.12.2022,ADULT SOCIAL CARE,ADVANCE HEALTH CARE (UK) LTD,05/12/2022, 396.06 ,6541-Domiciliary Care,THIRD PARTY PAYMENTS,PRIVATE CONTRACTOR,REVENUE
Walsall Council,http://opendatacommunities.org/id/metropolitan-district-council/walsall ,WC145-633,31.12.2022,ADULT SOCIAL CARE,ADVANCE HEALTH CARE (UK) LTD,05/12/2022, 395.92 ,6541-Domiciliary Care,THIRD PARTY PAYMENTS,PRIVATE CONTRACTOR,REVENUE
Walsall Council,http://opendatacommunities.org/id/metropolitan-district-council/walsall ,WC145-634,31.12.2022,ADULT SOCIAL CARE,ADVANCE HEALTH CARE (UK) LTD,05/12/2022, 339.36 ,6541-Domiciliary Care,THIRD PARTY PAYMENTS,PRIVATE CONTRACTOR,REVENUE
Walsall Council,http://opendatacommunities.org/id/metropolitan-district-council/walsall ,WC145-635,31.12.2022,ADULT SOCIAL CARE,ADVANCE HEALTH CARE (UK) LTD,05/12/2022, 759.52 ,6541-Domiciliary Care,THIRD PARTY PAYMENTS,PRIVATE CONTRACTOR,REVENUE
Walsall Council,http://opendatacommunities.org/id/metropolitan-district-council/walsall ,WC145-636,31.12.2022,ADULT SOCIAL CARE,ADVANCE HEALTH CARE (UK) LTD,05/12/2022, 484.80 ,6541-Domiciliary Care,THIRD PARTY PAYMENTS,PRIVATE CONTRACTOR,REVENUE
Walsall Council,http://opendatacommunities.org/id/metropolitan-district-council/walsall ,WC145-637,31.12.2022,ADULT SOCIAL CARE,ADVANCE HEALTH CARE (UK) LTD,05/12/2022, 254.52 ,6541-Domiciliary Care,THIRD PARTY PAYMENTS,PRIVATE CONTRACTOR,REVENUE
Walsall Council,http://opendatacommunities.org/id/metropolitan-district-council/walsall ,WC145-638,31.12.2022,ADULT SOCIAL CARE,ADVANCE HEALTH CARE (UK) LTD,05/12/2022, 509.04 ,6541-Domiciliary Care,THIRD PARTY PAYMENTS,PRIVATE CONTRACTOR,REVENUE
Walsall Council,http://opendatacommunities.org/id/metropolitan-district-council/walsall ,WC145-639,31.12.2022,ADULT SOCIAL CARE,ADVANCE HEALTH CARE (UK) LTD,05/12/2022, 509.04 ,6541-Domiciliary Care,THIRD PARTY PAYMENTS,PRIVATE CONTRACTOR,REVENUE
Walsall Council,http://opendatacommunities.org/id/metropolitan-district-council/walsall ,WC145-640,31.12.2022,ADULT SOCIAL CARE,ADVANCE HEALTH CARE (UK) LTD,05/12/2022, 500.96 ,6541-Domiciliary Care,THIRD PARTY PAYMENTS,PRIVATE CONTRACTOR,REVENUE
Walsall Council,http://opendatacommunities.org/id/metropolitan-district-council/walsall ,WC145-641,31.12.2022,ADULT SOCIAL CARE,ADVANCE HEALTH CARE (UK) LTD,05/12/2022, 339.50 ,6541-Domiciliary Care,THIRD PARTY PAYMENTS,PRIVATE CONTRACTOR,REVENUE
Walsall Council,http://opendatacommunities.org/id/metropolitan-district-council/walsall ,WC145-642,31.12.2022,ADULT SOCIAL CARE,ADVANCE HEALTH CARE (UK) LTD,05/12/2022, 509.04 ,6541-Domiciliary Care,THIRD PARTY PAYMENTS,PRIVATE CONTRACTOR,REVENUE
Walsall Council,http://opendatacommunities.org/id/metropolitan-district-council/walsall ,WC145-643,31.12.2022,ADULT SOCIAL CARE,ADVANCE HEALTH CARE (UK) LTD,05/12/2022, 589.84 ,6541-Domiciliary Care,THIRD PARTY PAYMENTS,PRIVATE CONTRACTOR,REVENUE
Walsall Council,http://opendatacommunities.org/id/metropolitan-district-council/walsall ,WC145-644,31.12.2022,ADULT SOCIAL CARE,ADVANCE HEALTH CARE (UK) LTD,05/12/2022, 377.16 ,6541-Domiciliary Care,THIRD PARTY PAYMENTS,PRIVATE CONTRACTOR,REVENUE
Walsall Council,http://opendatacommunities.org/id/metropolitan-district-council/walsall ,WC145-645,31.12.2022,ADULT SOCIAL CARE,ADVANCE HEALTH CARE (UK) LTD,05/12/2022, 339.50 ,6541-Domiciliary Care,THIRD PARTY PAYMENTS,PRIVATE CONTRACTOR,REVENUE
Walsall Council,http://opendatacommunities.org/id/metropolitan-district-council/walsall ,WC145-646,31.12.2022,ADULT SOCIAL CARE,ADVANCE HEALTH CARE (UK) LTD,05/12/2022, 864.56 ,6541-Domiciliary Care,THIRD PARTY PAYMENTS,PRIVATE CONTRACTOR,REVENUE
Walsall Council,http://opendatacommunities.org/id/metropolitan-district-council/walsall ,WC145-647,31.12.2022,ADULT SOCIAL CARE,ADVANCE HEALTH CARE (UK) LTD,05/12/2022, 396.06 ,6541-Domiciliary Care,THIRD PARTY PAYMENTS,PRIVATE CONTRACTOR,REVENUE
Walsall Council,http://opendatacommunities.org/id/metropolitan-district-council/walsall ,WC145-648,31.12.2022,ADULT SOCIAL CARE,ADVANCE HEALTH CARE (UK) LTD,05/12/2022, 509.04 ,6541-Domiciliary Care,THIRD PARTY PAYMENTS,PRIVATE CONTRACTOR,REVENUE
Walsall Council,http://opendatacommunities.org/id/metropolitan-district-council/walsall ,WC145-649,31.12.2022,ADULT SOCIAL CARE,ADVANCE HEALTH CARE (UK) LTD,05/12/2022, 509.04 ,6541-Domiciliary Care,THIRD PARTY PAYMENTS,PRIVATE CONTRACTOR,REVENUE
Walsall Council,http://opendatacommunities.org/id/metropolitan-district-council/walsall ,WC145-650,31.12.2022,ADULT SOCIAL CARE,ADVANCE HEALTH CARE (UK) LTD,05/12/2022, 254.52 ,6541-Domiciliary Care,THIRD PARTY PAYMENTS,PRIVATE CONTRACTOR,REVENUE
Walsall Council,http://opendatacommunities.org/id/metropolitan-district-council/walsall ,WC145-651,31.12.2022,ADULT SOCIAL CARE,ADVANCE HEALTH CARE (UK) LTD,05/12/2022, 565.60 ,6541-Domiciliary Care,THIRD PARTY PAYMENTS,PRIVATE CONTRACTOR,REVENUE
Walsall Council,http://opendatacommunities.org/id/metropolitan-district-council/walsall ,WC145-652,31.12.2022,ADULT SOCIAL CARE,ADVANCE HEALTH CARE (UK) LTD,05/12/2022, 509.04 ,6541-Domiciliary Care,THIRD PARTY PAYMENTS,PRIVATE CONTRACTOR,REVENUE
Walsall Council,http://opendatacommunities.org/id/metropolitan-district-council/walsall ,WC145-653,31.12.2022,ADULT SOCIAL CARE,ADVANCE HEALTH CARE (UK) LTD,05/12/2022, 565.60 ,6541-Domiciliary Care,THIRD PARTY PAYMENTS,PRIVATE CONTRACTOR,REVENUE
Walsall Council,http://opendatacommunities.org/id/metropolitan-district-council/walsall ,WC145-654,31.12.2022,ADULT SOCIAL CARE,ADVANCE HEALTH CARE (UK) LTD,05/12/2022, 509.04 ,6541-Domiciliary Care,THIRD PARTY PAYMENTS,PRIVATE CONTRACTOR,REVENUE
Walsall Council,http://opendatacommunities.org/id/metropolitan-district-council/walsall ,WC145-655,31.12.2022,ADULT SOCIAL CARE,ADVANCE HEALTH CARE (UK) LTD,05/12/2022, 509.04 ,6541-Domiciliary Care,THIRD PARTY PAYMENTS,PRIVATE CONTRACTOR,REVENUE
Walsall Council,http://opendatacommunities.org/id/metropolitan-district-council/walsall ,WC145-656,31.12.2022,ADULT SOCIAL CARE,ADVANCE HEALTH CARE (UK) LTD,05/12/2022, 565.60 ,6541-Domiciliary Care,THIRD PARTY PAYMENTS,PRIVATE CONTRACTOR,REVENUE
Walsall Council,http://opendatacommunities.org/id/metropolitan-district-council/walsall ,WC145-657,31.12.2022,ADULT SOCIAL CARE,ADVANCE HEALTH CARE (UK) LTD,05/12/2022, 904.96 ,6541-Domiciliary Care,THIRD PARTY PAYMENTS,PRIVATE CONTRACTOR,REVENUE
Walsall Council,http://opendatacommunities.org/id/metropolitan-district-council/walsall ,WC145-658,31.12.2022,ADULT SOCIAL CARE,ADVANCE HEALTH CARE (UK) LTD,05/12/2022, 452.48 ,6541-Domiciliary Care,THIRD PARTY PAYMENTS,PRIVATE CONTRACTOR,REVENUE
Walsall Council,http://opendatacommunities.org/id/metropolitan-district-council/walsall ,WC145-659,31.12.2022,ADULT SOCIAL CARE,ADVANCE HEALTH CARE (UK) LTD,05/12/2022, 509.04 ,6541-Domiciliary Care,THIRD PARTY PAYMENTS,PRIVATE CONTRACTOR,REVENUE
Walsall Council,http://opendatacommunities.org/id/metropolitan-district-council/walsall ,WC145-660,31.12.2022,ADULT SOCIAL CARE,ADVANCE HEALTH CARE (UK) LTD,05/12/2022, 565.60 ,6541-Domiciliary Care,THIRD PARTY PAYMENTS,PRIVATE CONTRACTOR,REVENUE
Walsall Council,http://opendatacommunities.org/id/metropolitan-district-council/walsall ,WC145-661,31.12.2022,ADULT SOCIAL CARE,ADVANCE HEALTH CARE (UK) LTD,05/12/2022, 254.52 ,6541-Domiciliary Care,THIRD PARTY PAYMENTS,PRIVATE CONTRACTOR,REVENUE
Walsall Council,http://opendatacommunities.org/id/metropolitan-district-council/walsall ,WC145-662,31.12.2022,ADULT SOCIAL CARE,ADVANCE HEALTH CARE (UK) LTD,05/12/2022, 395.92 ,6541-Domiciliary Care,THIRD PARTY PAYMENTS,PRIVATE CONTRACTOR,REVENUE
Walsall Council,http://opendatacommunities.org/id/metropolitan-district-council/walsall ,WC145-663,31.12.2022,ADULT SOCIAL CARE,ADVANCE HEALTH CARE (UK) LTD,05/12/2022, 339.36 ,6541-Domiciliary Care,THIRD PARTY PAYMENTS,PRIVATE CONTRACTOR,REVENUE
Walsall Council,http://opendatacommunities.org/id/metropolitan-district-council/walsall ,WC145-664,31.12.2022,ADULT SOCIAL CARE,ADVANCE HEALTH CARE (UK) LTD,05/12/2022, 565.60 ,6541-Domiciliary Care,THIRD PARTY PAYMENTS,PRIVATE CONTRACTOR,REVENUE
Walsall Council,http://opendatacommunities.org/id/metropolitan-district-council/walsall ,WC145-665,31.12.2022,ADULT SOCIAL CARE,ADVANCE HEALTH CARE (UK) LTD,05/12/2022, 254.52 ,6541-Domiciliary Care,THIRD PARTY PAYMENTS,PRIVATE CONTRACTOR,REVENUE
Walsall Council,http://opendatacommunities.org/id/metropolitan-district-council/walsall ,WC145-666,31.12.2022,ADULT SOCIAL CARE,ADVANCE HEALTH CARE (UK) LTD,05/12/2022, 254.52 ,6541-Domiciliary Care,THIRD PARTY PAYMENTS,PRIVATE CONTRACTOR,REVENUE
Walsall Council,http://opendatacommunities.org/id/metropolitan-district-council/walsall ,WC145-667,31.12.2022,ADULT SOCIAL CARE,ADVANCE HEALTH CARE (UK) LTD,05/12/2022, 509.04 ,6541-Domiciliary Care,THIRD PARTY PAYMENTS,PRIVATE CONTRACTOR,REVENUE
Walsall Council,http://opendatacommunities.org/id/metropolitan-district-council/walsall ,WC145-668,31.12.2022,ADULT SOCIAL CARE,ADVANCE HEALTH CARE (UK) LTD,05/12/2022, 452.48 ,6541-Domiciliary Care,THIRD PARTY PAYMENTS,PRIVATE CONTRACTOR,REVENUE
Walsall Council,http://opendatacommunities.org/id/metropolitan-district-council/walsall ,WC145-669,31.12.2022,ADULT SOCIAL CARE,ADVANCE HEALTH CARE (UK) LTD,05/12/2022, 509.04 ,6541-Domiciliary Care,THIRD PARTY PAYMENTS,PRIVATE CONTRACTOR,REVENUE
Walsall Council,http://opendatacommunities.org/id/metropolitan-district-council/walsall ,WC145-670,31.12.2022,ADULT SOCIAL CARE,ADVANCE HEALTH CARE (UK) LTD,14/12/2022, 565.60 ,6554-Professional Services-Priv Contractor & Other Agencies,THIRD PARTY PAYMENTS,PRIVATE CONTRACTOR,REVENUE
Walsall Council,http://opendatacommunities.org/id/metropolitan-district-council/walsall ,WC145-671,31.12.2022,ADULT SOCIAL CARE,ADVANCE HEALTH CARE (UK) LTD,14/12/2022," 2,036.16 ",6554-Professional Services-Priv Contractor & Other Agencies,THIRD PARTY PAYMENTS,PRIVATE CONTRACTOR,REVENUE
Walsall Council,http://opendatacommunities.org/id/metropolitan-district-council/walsall ,WC145-672,31.12.2022,ADULT SOCIAL CARE,ADVANCE HEALTH CARE (UK) LTD,14/12/2022, 678.72 ,6554-Professional Services-Priv Contractor & Other Agencies,THIRD PARTY PAYMENTS,PRIVATE CONTRACTOR,REVENUE
Walsall Council,http://opendatacommunities.org/id/metropolitan-district-council/walsall ,WC145-673,31.12.2022,ADULT SOCIAL CARE,ADVANCE HEALTH CARE (UK) LTD,14/12/2022," 1,195.84 ",6554-Professional Services-Priv Contractor & Other Agencies,THIRD PARTY PAYMENTS,PRIVATE CONTRACTOR,REVENUE
Walsall Council,http://opendatacommunities.org/id/metropolitan-district-council/walsall ,WC145-674,31.12.2022,ADULT SOCIAL CARE,ADVANCE HEALTH CARE (UK) LTD,14/12/2022, 298.96 ,6554-Professional Services-Priv Contractor & Other Agencies,THIRD PARTY PAYMENTS,PRIVATE CONTRACTOR,REVENUE
Walsall Council,http://opendatacommunities.org/id/metropolitan-district-council/walsall ,WC145-675,31.12.2022,ADULT SOCIAL CARE,ADVANCE HEALTH CARE (UK) LTD,14/12/2022, 506.48 ,6554-Professional Services-Priv Contractor & Other Agencies,THIRD PARTY PAYMENTS,PRIVATE CONTRACTOR,REVENUE
Walsall Council,http://opendatacommunities.org/id/metropolitan-district-council/walsall ,WC145-676,31.12.2022,ADULT SOCIAL CARE,ADVANCE HEALTH CARE (UK) LTD,14/12/2022, 904.96 ,6554-Professional Services-Priv Contractor & Other Agencies,THIRD PARTY PAYMENTS,PRIVATE CONTRACTOR,REVENUE
Walsall Council,http://opendatacommunities.org/id/metropolitan-district-council/walsall ,WC145-677,31.12.2022,ADULT SOCIAL CARE,ADVANCE HEALTH CARE (UK) LTD,14/12/2022, 517.12 ,6554-Professional Services-Priv Contractor & Other Agencies,THIRD PARTY PAYMENTS,PRIVATE CONTRACTOR,REVENUE
Walsall Council,http://opendatacommunities.org/id/metropolitan-district-council/walsall ,WC145-678,31.12.2022,ADULT SOCIAL CARE,ADVANCE HEALTH CARE (UK) LTD,14/12/2022, 622.16 ,6554-Professional Services-Priv Contractor & Other Agencies,THIRD PARTY PAYMENTS,PRIVATE CONTRACTOR,REVENUE
Walsall Council,http://opendatacommunities.org/id/metropolitan-district-council/walsall ,WC145-679,31.12.2022,ADULT SOCIAL CARE,ADVANCE HEALTH CARE (UK) LTD,19/12/2022, 589.84 ,6541-Domiciliary Care,THIRD PARTY PAYMENTS,PRIVATE CONTRACTOR,REVENUE
Walsall Council,http://opendatacommunities.org/id/metropolitan-district-council/walsall ,WC145-680,31.12.2022,ADULT SOCIAL CARE,ADVANCE HEALTH CARE (UK) LTD,19/12/2022, 254.52 ,6541-Domiciliary Care,THIRD PARTY PAYMENTS,PRIVATE CONTRACTOR,REVENUE
Walsall Council,http://opendatacommunities.org/id/metropolitan-district-council/walsall ,WC145-681,31.12.2022,ADULT SOCIAL CARE,ADVANCE HEALTH CARE (UK) LTD,19/12/2022, 254.52 ,6541-Domiciliary Care,THIRD PARTY PAYMENTS,PRIVATE CONTRACTOR,REVENUE
Walsall Council,http://opendatacommunities.org/id/metropolitan-district-council/walsall ,WC145-682,31.12.2022,ADULT SOCIAL CARE,ADVANCE HEALTH CARE (UK) LTD,19/12/2022, 509.04 ,6541-Domiciliary Care,THIRD PARTY PAYMENTS,PRIVATE CONTRACTOR,REVENUE
Walsall Council,http://opendatacommunities.org/id/metropolitan-district-council/walsall ,WC145-683,31.12.2022,ADULT SOCIAL CARE,ADVANCE HEALTH CARE (UK) LTD,19/12/2022, 864.56 ,6541-Domiciliary Care,THIRD PARTY PAYMENTS,PRIVATE CONTRACTOR,REVENUE
Walsall Council,http://opendatacommunities.org/id/metropolitan-district-council/walsall ,WC145-684,31.12.2022,ADULT SOCIAL CARE,ADVANCE HEALTH CARE (UK) LTD,19/12/2022, 396.06 ,6541-Domiciliary Care,THIRD PARTY PAYMENTS,PRIVATE CONTRACTOR,REVENUE
Walsall Council,http://opendatacommunities.org/id/metropolitan-district-council/walsall ,WC145-685,31.12.2022,ADULT SOCIAL CARE,ADVANCE HEALTH CARE (UK) LTD,19/12/2022, 254.52 ,6541-Domiciliary Care,THIRD PARTY PAYMENTS,PRIVATE CONTRACTOR,REVENUE
Walsall Council,http://opendatacommunities.org/id/metropolitan-district-council/walsall ,WC145-686,31.12.2022,ADULT SOCIAL CARE,ADVANCE HEALTH CARE (UK) LTD,19/12/2022, 377.16 ,6541-Domiciliary Care,THIRD PARTY PAYMENTS,PRIVATE CONTRACTOR,REVENUE
Walsall Council,http://opendatacommunities.org/id/metropolitan-district-council/walsall ,WC145-687,31.12.2022,ADULT SOCIAL CARE,ADVANCE HEALTH CARE (UK) LTD,19/12/2022, 339.50 ,6541-Domiciliary Care,THIRD PARTY PAYMENTS,PRIVATE CONTRACTOR,REVENUE
Walsall Council,http://opendatacommunities.org/id/metropolitan-district-council/walsall ,WC145-688,31.12.2022,ADULT SOCIAL CARE,ADVANCE HEALTH CARE (UK) LTD,19/12/2022, 339.50 ,6541-Domiciliary Care,THIRD PARTY PAYMENTS,PRIVATE CONTRACTOR,REVENUE
Walsall Council,http://opendatacommunities.org/id/metropolitan-district-council/walsall ,WC145-689,31.12.2022,ADULT SOCIAL CARE,ADVANCE HEALTH CARE (UK) LTD,19/12/2022, 509.04 ,6541-Domiciliary Care,THIRD PARTY PAYMENTS,PRIVATE CONTRACTOR,REVENUE
Walsall Council,http://opendatacommunities.org/id/metropolitan-district-council/walsall ,WC145-690,31.12.2022,ADULT SOCIAL CARE,ADVANCE HEALTH CARE (UK) LTD,19/12/2022, 509.04 ,6541-Domiciliary Care,THIRD PARTY PAYMENTS,PRIVATE CONTRACTOR,REVENUE
Walsall Council,http://opendatacommunities.org/id/metropolitan-district-council/walsall ,WC145-691,31.12.2022,ADULT SOCIAL CARE,ADVANCE HEALTH CARE (UK) LTD,19/12/2022, 509.04 ,6541-Domiciliary Care,THIRD PARTY PAYMENTS,PRIVATE CONTRACTOR,REVENUE
Walsall Council,http://opendatacommunities.org/id/metropolitan-district-council/walsall ,WC145-692,31.12.2022,ADULT SOCIAL CARE,ADVANCE HEALTH CARE (UK) LTD,19/12/2022, 565.60 ,6541-Domiciliary Care,THIRD PARTY PAYMENTS,PRIVATE CONTRACTOR,REVENUE
Walsall Council,http://opendatacommunities.org/id/metropolitan-district-council/walsall ,WC145-693,31.12.2022,ADULT SOCIAL CARE,ADVANCE HEALTH CARE (UK) LTD,19/12/2022, 904.96 ,6541-Domiciliary Care,THIRD PARTY PAYMENTS,PRIVATE CONTRACTOR,REVENUE
Walsall Council,http://opendatacommunities.org/id/metropolitan-district-council/walsall ,WC145-694,31.12.2022,ADULT SOCIAL CARE,ADVANCE HEALTH CARE (UK) LTD,19/12/2022, 395.92 ,6541-Domiciliary Care,THIRD PARTY PAYMENTS,PRIVATE CONTRACTOR,REVENUE
Walsall Council,http://opendatacommunities.org/id/metropolitan-district-council/walsall ,WC145-695,31.12.2022,ADULT SOCIAL CARE,ADVANCE HEALTH CARE (UK) LTD,19/12/2022, 339.36 ,6541-Domiciliary Care,THIRD PARTY PAYMENTS,PRIVATE CONTRACTOR,REVENUE
Walsall Council,http://opendatacommunities.org/id/metropolitan-district-council/walsall ,WC145-696,31.12.2022,ADULT SOCIAL CARE,ADVANCE HEALTH CARE (UK) LTD,19/12/2022, 452.48 ,6541-Domiciliary Care,THIRD PARTY PAYMENTS,PRIVATE CONTRACTOR,REVENUE
Walsall Council,http://opendatacommunities.org/id/metropolitan-district-council/walsall ,WC145-697,31.12.2022,ADULT SOCIAL CARE,ADVANCE HEALTH CARE (UK) LTD,19/12/2022, 339.36 ,6541-Domiciliary Care,THIRD PARTY PAYMENTS,PRIVATE CONTRACTOR,REVENUE
Walsall Council,http://opendatacommunities.org/id/metropolitan-district-council/walsall ,WC145-698,31.12.2022,ADULT SOCIAL CARE,ADVANCE HEALTH CARE (UK) LTD,19/12/2022, 509.04 ,6541-Domiciliary Care,THIRD PARTY PAYMENTS,PRIVATE CONTRACTOR,REVENUE
Walsall Council,http://opendatacommunities.org/id/metropolitan-district-council/walsall ,WC145-699,31.12.2022,ADULT SOCIAL CARE,ADVANCE HEALTH CARE (UK) LTD,19/12/2022, 509.04 ,6541-Domiciliary Care,THIRD PARTY PAYMENTS,PRIVATE CONTRACTOR,REVENUE
Walsall Council,http://opendatacommunities.org/id/metropolitan-district-council/walsall ,WC145-700,31.12.2022,ADULT SOCIAL CARE,ADVANCE HEALTH CARE (UK) LTD,19/12/2022, 509.04 ,6541-Domiciliary Care,THIRD PARTY PAYMENTS,PRIVATE CONTRACTOR,REVENUE
Walsall Council,http://opendatacommunities.org/id/metropolitan-district-council/walsall ,WC145-701,31.12.2022,ADULT SOCIAL CARE,ADVANCE HEALTH CARE (UK) LTD,19/12/2022,-436.32 ,6541-Domiciliary Care,THIRD PARTY PAYMENTS,PRIVATE CONTRACTOR,REVENUE
Walsall Council,http://opendatacommunities.org/id/metropolitan-district-council/walsall ,WC145-702,31.12.2022,ADULT SOCIAL CARE,ADVANCE HEALTH CARE (UK) LTD,19/12/2022, 254.52 ,6541-Domiciliary Care,THIRD PARTY PAYMENTS,PRIVATE CONTRACTOR,REVENUE
Walsall Council,http://opendatacommunities.org/id/metropolitan-district-council/walsall ,WC145-703,31.12.2022,ADULT SOCIAL CARE,ADVANCE HEALTH CARE (UK) LTD,19/12/2022, 565.60 ,6541-Domiciliary Care,THIRD PARTY PAYMENTS,PRIVATE CONTRACTOR,REVENUE
Walsall Council,http://opendatacommunities.org/id/metropolitan-district-council/walsall ,WC145-704,31.12.2022,ADULT SOCIAL CARE,ADVANCE HEALTH CARE (UK) LTD,19/12/2022, 452.48 ,6541-Domiciliary Care,THIRD PARTY PAYMENTS,PRIVATE CONTRACTOR,REVENUE
Walsall Council,http://opendatacommunities.org/id/metropolitan-district-council/walsall ,WC145-705,31.12.2022,ADULT SOCIAL CARE,ADVANCE HEALTH CARE (UK) LTD,19/12/2022, 565.60 ,6541-Domiciliary Care,THIRD PARTY PAYMENTS,PRIVATE CONTRACTOR,REVENUE
Walsall Council,http://opendatacommunities.org/id/metropolitan-district-council/walsall ,WC145-706,31.12.2022,ADULT SOCIAL CARE,ADVANCE HEALTH CARE (UK) LTD,19/12/2022, 509.04 ,6541-Domiciliary Care,THIRD PARTY PAYMENTS,PRIVATE CONTRACTOR,REVENUE
Walsall Council,http://opendatacommunities.org/id/metropolitan-district-council/walsall ,WC145-707,31.12.2022,ADULT SOCIAL CARE,ADVANCE HEALTH CARE (UK) LTD,19/12/2022, 254.52 ,6541-Domiciliary Care,THIRD PARTY PAYMENTS,PRIVATE CONTRACTOR,REVENUE
Walsall Council,http://opendatacommunities.org/id/metropolitan-district-council/walsall ,WC145-708,31.12.2022,ADULT SOCIAL CARE,ADVANCE HEALTH CARE (UK) LTD,19/12/2022, 500.96 ,6541-Domiciliary Care,THIRD PARTY PAYMENTS,PRIVATE CONTRACTOR,REVENUE
Walsall Council,http://opendatacommunities.org/id/metropolitan-district-council/walsall ,WC145-709,31.12.2022,ADULT SOCIAL CARE,ADVANCE HEALTH CARE (UK) LTD,19/12/2022, 509.04 ,6541-Domiciliary Care,THIRD PARTY PAYMENTS,PRIVATE CONTRACTOR,REVENUE
Walsall Council,http://opendatacommunities.org/id/metropolitan-district-council/walsall ,WC145-710,31.12.2022,ADULT SOCIAL CARE,ADVANCE HEALTH CARE (UK) LTD,19/12/2022, 565.60 ,6541-Domiciliary Care,THIRD PARTY PAYMENTS,PRIVATE CONTRACTOR,REVENUE
Walsall Council,http://opendatacommunities.org/id/metropolitan-district-council/walsall ,WC145-711,31.12.2022,ADULT SOCIAL CARE,ADVANCE HEALTH CARE (UK) LTD,19/12/2022, 509.04 ,6541-Domiciliary Care,THIRD PARTY PAYMENTS,PRIVATE CONTRACTOR,REVENUE
Walsall Council,http://opendatacommunities.org/id/metropolitan-district-council/walsall ,WC145-712,31.12.2022,ADULT SOCIAL CARE,ADVANCE HEALTH CARE (UK) LTD,19/12/2022, 565.60 ,6541-Domiciliary Care,THIRD PARTY PAYMENTS,PRIVATE CONTRACTOR,REVENUE
Walsall Council,http://opendatacommunities.org/id/metropolitan-district-council/walsall ,WC145-713,31.12.2022,ADULT SOCIAL CARE,ADVANCE HEALTH CARE (UK) LTD,19/12/2022, 864.56 ,6541-Domiciliary Care,THIRD PARTY PAYMENTS,PRIVATE CONTRACTOR,REVENUE
Walsall Council,http://opendatacommunities.org/id/metropolitan-district-council/walsall ,WC145-714,31.12.2022,ADULT SOCIAL CARE,ADVANCE HEALTH CARE (UK) LTD,19/12/2022, 396.06 ,6541-Domiciliary Care,THIRD PARTY PAYMENTS,PRIVATE CONTRACTOR,REVENUE
Walsall Council,http://opendatacommunities.org/id/metropolitan-district-council/walsall ,WC145-715,31.12.2022,ADULT SOCIAL CARE,ADVANCE HEALTH CARE (UK) LTD,19/12/2022, 254.52 ,6541-Domiciliary Care,THIRD PARTY PAYMENTS,PRIVATE CONTRACTOR,REVENUE
Walsall Council,http://opendatacommunities.org/id/metropolitan-district-council/walsall ,WC145-716,31.12.2022,ADULT SOCIAL CARE,ADVANCE HEALTH CARE (UK) LTD,19/12/2022, 509.04 ,6541-Domiciliary Care,THIRD PARTY PAYMENTS,PRIVATE CONTRACTOR,REVENUE
Walsall Council,http://opendatacommunities.org/id/metropolitan-district-council/walsall ,WC145-717,31.12.2022,ADULT SOCIAL CARE,ADVANCE HEALTH CARE (UK) LTD,19/12/2022, 509.04 ,6541-Domiciliary Care,THIRD PARTY PAYMENTS,PRIVATE CONTRACTOR,REVENUE
Walsall Council,http://opendatacommunities.org/id/metropolitan-district-council/walsall ,WC145-718,31.12.2022,ADULT SOCIAL CARE,ADVANCE HEALTH CARE (UK) LTD,19/12/2022, 509.04 ,6541-Domiciliary Care,THIRD PARTY PAYMENTS,PRIVATE CONTRACTOR,REVENUE
Walsall Council,http://opendatacommunities.org/id/metropolitan-district-council/walsall ,WC145-719,31.12.2022,ADULT SOCIAL CARE,ADVANCE HEALTH CARE (UK) LTD,19/12/2022, 254.52 ,6541-Domiciliary Care,THIRD PARTY PAYMENTS,PRIVATE CONTRACTOR,REVENUE
Walsall Council,http://opendatacommunities.org/id/metropolitan-district-council/walsall ,WC145-720,31.12.2022,ADULT SOCIAL CARE,ADVANCE HEALTH CARE (UK) LTD,19/12/2022, 565.60 ,6541-Domiciliary Care,THIRD PARTY PAYMENTS,PRIVATE CONTRACTOR,REVENUE
Walsall Council,http://opendatacommunities.org/id/metropolitan-district-council/walsall ,WC145-721,31.12.2022,ADULT SOCIAL CARE,ADVANCE HEALTH CARE (UK) LTD,19/12/2022, 500.96 ,6541-Domiciliary Care,THIRD PARTY PAYMENTS,PRIVATE CONTRACTOR,REVENUE
Walsall Council,http://opendatacommunities.org/id/metropolitan-district-council/walsall ,WC145-722,31.12.2022,ADULT SOCIAL CARE,ADVANCE HEALTH CARE (UK) LTD,19/12/2022, 509.04 ,6541-Domiciliary Care,THIRD PARTY PAYMENTS,PRIVATE CONTRACTOR,REVENUE
Walsall Council,http://opendatacommunities.org/id/metropolitan-district-council/walsall ,WC145-723,31.12.2022,ADULT SOCIAL CARE,ADVANCE HEALTH CARE (UK) LTD,19/12/2022, 565.60 ,6541-Domiciliary Care,THIRD PARTY PAYMENTS,PRIVATE CONTRACTOR,REVENUE
Walsall Council,http://opendatacommunities.org/id/metropolitan-district-council/walsall ,WC145-724,31.12.2022,ADULT SOCIAL CARE,ADVANCE HEALTH CARE (UK) LTD,19/12/2022, 509.04 ,6541-Domiciliary Care,THIRD PARTY PAYMENTS,PRIVATE CONTRACTOR,REVENUE
Walsall Council,http://opendatacommunities.org/id/metropolitan-district-council/walsall ,WC145-725,31.12.2022,ADULT SOCIAL CARE,ADVANCE HEALTH CARE (UK) LTD,19/12/2022, 395.92 ,6541-Domiciliary Care,THIRD PARTY PAYMENTS,PRIVATE CONTRACTOR,REVENUE
Walsall Council,http://opendatacommunities.org/id/metropolitan-district-council/walsall ,WC145-726,31.12.2022,ADULT SOCIAL CARE,ADVANCE HEALTH CARE (UK) LTD,19/12/2022, 339.36 ,6541-Domiciliary Care,THIRD PARTY PAYMENTS,PRIVATE CONTRACTOR,REVENUE
Walsall Council,http://opendatacommunities.org/id/metropolitan-district-council/walsall ,WC145-727,31.12.2022,ADULT SOCIAL CARE,ADVANCE HEALTH CARE (UK) LTD,19/12/2022, 452.48 ,6541-Domiciliary Care,THIRD PARTY PAYMENTS,PRIVATE CONTRACTOR,REVENUE
Walsall Council,http://opendatacommunities.org/id/metropolitan-district-council/walsall ,WC145-728,31.12.2022,ADULT SOCIAL CARE,ADVANCE HEALTH CARE (UK) LTD,19/12/2022, 339.36 ,6541-Domiciliary Care,THIRD PARTY PAYMENTS,PRIVATE CONTRACTOR,REVENUE
Walsall Council,http://opendatacommunities.org/id/metropolitan-district-council/walsall ,WC145-729,31.12.2022,ADULT SOCIAL CARE,ADVANCE HEALTH CARE (UK) LTD,19/12/2022, 339.50 ,6541-Domiciliary Care,THIRD PARTY PAYMENTS,PRIVATE CONTRACTOR,REVENUE
Walsall Council,http://opendatacommunities.org/id/metropolitan-district-council/walsall ,WC145-730,31.12.2022,ADULT SOCIAL CARE,ADVANCE HEALTH CARE (UK) LTD,19/12/2022, 589.84 ,6541-Domiciliary Care,THIRD PARTY PAYMENTS,PRIVATE CONTRACTOR,REVENUE
Walsall Council,http://opendatacommunities.org/id/metropolitan-district-council/walsall ,WC145-731,31.12.2022,ADULT SOCIAL CARE,ADVANCE HEALTH CARE (UK) LTD,19/12/2022, 254.52 ,6541-Domiciliary Care,THIRD PARTY PAYMENTS,PRIVATE CONTRACTOR,REVENUE
Walsall Council,http://opendatacommunities.org/id/metropolitan-district-council/walsall ,WC145-732,31.12.2022,ADULT SOCIAL CARE,ADVANCE HEALTH CARE (UK) LTD,19/12/2022, 254.52 ,6541-Domiciliary Care,THIRD PARTY PAYMENTS,PRIVATE CONTRACTOR,REVENUE
Walsall Council,http://opendatacommunities.org/id/metropolitan-district-council/walsall ,WC145-733,31.12.2022,ADULT SOCIAL CARE,ADVANCE HEALTH CARE (UK) LTD,19/12/2022, 509.04 ,6541-Domiciliary Care,THIRD PARTY PAYMENTS,PRIVATE CONTRACTOR,REVENUE
Walsall Council,http://opendatacommunities.org/id/metropolitan-district-council/walsall ,WC145-734,31.12.2022,ADULT SOCIAL CARE,ADVANCE HEALTH CARE (UK) LTD,19/12/2022, 509.04 ,6541-Domiciliary Care,THIRD PARTY PAYMENTS,PRIVATE CONTRACTOR,REVENUE
Walsall Council,http://opendatacommunities.org/id/metropolitan-district-council/walsall ,WC145-735,31.12.2022,ADULT SOCIAL CARE,ADVANCE HEALTH CARE (UK) LTD,19/12/2022, 509.04 ,6541-Domiciliary Care,THIRD PARTY PAYMENTS,PRIVATE CONTRACTOR,REVENUE
Walsall Council,http://opendatacommunities.org/id/metropolitan-district-council/walsall ,WC145-736,31.12.2022,ADULT SOCIAL CARE,ADVANCE HEALTH CARE (UK) LTD,19/12/2022, 565.60 ,6541-Domiciliary Care,THIRD PARTY PAYMENTS,PRIVATE CONTRACTOR,REVENUE
Walsall Council,http://opendatacommunities.org/id/metropolitan-district-council/walsall ,WC145-737,31.12.2022,ADULT SOCIAL CARE,ADVANCE HEALTH CARE (UK) LTD,19/12/2022, 904.96 ,6541-Domiciliary Care,THIRD PARTY PAYMENTS,PRIVATE CONTRACTOR,REVENUE
Walsall Council,http://opendatacommunities.org/id/metropolitan-district-council/walsall ,WC145-738,31.12.2022,ADULT SOCIAL CARE,ADVANCE HEALTH CARE (UK) LTD,19/12/2022, 377.16 ,6541-Domiciliary Care,THIRD PARTY PAYMENTS,PRIVATE CONTRACTOR,REVENUE
Walsall Council,http://opendatacommunities.org/id/metropolitan-district-council/walsall ,WC145-739,31.12.2022,ADULT SOCIAL CARE,ADVANCE HEALTH CARE (UK) LTD,19/12/2022, 339.50 ,6541-Domiciliary Care,THIRD PARTY PAYMENTS,PRIVATE CONTRACTOR,REVENUE
Walsall Council,http://opendatacommunities.org/id/metropolitan-district-council/walsall ,WC145-740,31.12.2022,ADULT SOCIAL CARE,ADVANCE HEALTH CARE (UK) LTD,19/12/2022, 509.04 ,6541-Domiciliary Care,THIRD PARTY PAYMENTS,PRIVATE CONTRACTOR,REVENUE
Walsall Council,http://opendatacommunities.org/id/metropolitan-district-council/walsall ,WC145-741,31.12.2022,ADULT SOCIAL CARE,ADVANCE HEALTH CARE (UK) LTD,19/12/2022, 452.48 ,6541-Domiciliary Care,THIRD PARTY PAYMENTS,PRIVATE CONTRACTOR,REVENUE
Walsall Council,http://opendatacommunities.org/id/metropolitan-district-council/walsall ,WC145-742,31.12.2022,ADULT SOCIAL CARE,ADVANCE HEALTH CARE (UK) LTD,19/12/2022, 565.60 ,6541-Domiciliary Care,THIRD PARTY PAYMENTS,PRIVATE CONTRACTOR,REVENUE
Walsall Council,http://opendatacommunities.org/id/metropolitan-district-council/walsall ,WC145-743,31.12.2022,ADULT SOCIAL CARE,ADVANCE HEALTH CARE (UK) LTD,19/12/2022, 509.04 ,6541-Domiciliary Care,THIRD PARTY PAYMENTS,PRIVATE CONTRACTOR,REVENUE
Walsall Council,http://opendatacommunities.org/id/metropolitan-district-council/walsall ,WC145-744,31.12.2022,ADULT SOCIAL CARE,ADVANCE HEALTH CARE (UK) LTD,19/12/2022, 254.52 ,6541-Domiciliary Care,THIRD PARTY PAYMENTS,PRIVATE CONTRACTOR,REVENUE
Walsall Council,http://opendatacommunities.org/id/metropolitan-district-council/walsall ,WC145-745,31.12.2022,ADULT SOCIAL CARE,ADVANCE HEALTH CARE (UK) LTD,12/12/2022," 1,426.65 ",6541-Domiciliary Care,THIRD PARTY PAYMENTS,PRIVATE CONTRACTOR,REVENUE
Walsall Council,http://opendatacommunities.org/id/metropolitan-district-council/walsall ,WC145-746,31.12.2022,RESOURCES AND TRANSFORMATION CAPITAL,ADVANCED CONTRACTS (MIDLANDS) LTD,20/12/2022," 2,185.00 ",7300-Site Works Contractors,CAPITAL,"NEW CONSTRUCTION,CONVERSION & RENOVATION",CAPITAL
Walsall Council,http://opendatacommunities.org/id/metropolitan-district-council/walsall ,WC145-747,31.12.2022,ADULT SOCIAL CARE,ADVINIA CARE HOMES LTD - HAMMERWICH HALL CARE HOME,19/12/2022," 2,095.40 ",6541-Residential,THIRD PARTY PAYMENTS,PRIVATE CONTRACTOR,REVENUE
Walsall Council,http://opendatacommunities.org/id/metropolitan-district-council/walsall ,WC145-748,31.12.2022,ADULT SOCIAL CARE,ADVINIA CARE HOMES LTD - HAMMERWICH HALL CARE HOME,19/12/2022," 2,366.04 ",6541-Residential EMI,THIRD PARTY PAYMENTS,PRIVATE CONTRACTOR,REVENUE
Walsall Council,http://opendatacommunities.org/id/metropolitan-district-council/walsall ,WC145-749,31.12.2022,CHILDRENS CAPITAL,AFFORDABLE WARMTH SOLUTIONS CIC,22/12/2022,"-5,381.39 ",7100-Other Grants,CAPITAL,CAPITAL GRANTS,CAPITAL GRANTS
Walsall Council,http://opendatacommunities.org/id/metropolitan-district-council/walsall ,WC145-750,31.12.2022,CHILDRENS CAPITAL,AFFORDABLE WARMTH SOLUTIONS CIC,22/12/2022," 4,484.49 ",7100-Other Grants,CAPITAL,CAPITAL GRANTS,CAPITAL GRANTS
Walsall Council,http://opendatacommunities.org/id/metropolitan-district-council/walsall ,WC145-751,31.12.2022,CHILDRENS CAPITAL,AFFORDABLE WARMTH SOLUTIONS CIC,22/12/2022," 5,381.39 ",7100-Other Grants,CAPITAL,CAPITAL GRANTS,CAPITAL GRANTS
Walsall Council,http://opendatacommunities.org/id/metropolitan-district-council/walsall ,WC145-752,31.12.2022,CHILDRENS,AFGHAN COMMUNITY & WELFARE CENTRE,19/12/2022," 5,008.50 ",6211-Professional Fees & Services,SUPPLIES & SERVICES,SERVICES,REVENUE
Walsall Council,http://opendatacommunities.org/id/metropolitan-district-council/walsall ,WC145-753,31.12.2022,CHILDRENS CAPITAL,REDACTED,08/12/2022," 10,000.00 ",7100-Private Grants,CAPITAL,CAPITAL GRANTS,CAPITAL GRANTS
Walsall Council,http://opendatacommunities.org/id/metropolitan-district-council/walsall ,WC145-754,31.12.2022,RESOURCES AND TRANSFORMATION CAPITAL,AGILISYS LTD,01/12/2022," 12,334.52 ",7300-Consultants Fees,CAPITAL,"NEW CONSTRUCTION,CONVERSION & RENOVATION",CAPITAL
Walsall Council,http://opendatacommunities.org/id/metropolitan-district-council/walsall ,WC145-755,31.12.2022,RESOURCES AND TRANSFORMATION CAPITAL,AGILISYS LTD,07/12/2022," 2,775.00 ",7300-Consultants Fees,CAPITAL,"NEW CONSTRUCTION,CONVERSION & RENOVATION",CAPITAL
Walsall Council,http://opendatacommunities.org/id/metropolitan-district-council/walsall ,WC145-756,31.12.2022,RESOURCES AND TRANSFORMATION CAPITAL,AGILISYS LTD,07/12/2022," 14,300.00 ",7300-Consultants Fees,CAPITAL,"NEW CONSTRUCTION,CONVERSION & RENOVATION",CAPITAL
Walsall Council,http://opendatacommunities.org/id/metropolitan-district-council/walsall ,WC145-757,31.12.2022,RESOURCES AND TRANSFORMATION CAPITAL,AGILISYS LTD,09/12/2022," 5,500.00 ",7300-Consultants Fees,CAPITAL,"NEW CONSTRUCTION,CONVERSION & RENOVATION",CAPITAL
Walsall Council,http://opendatacommunities.org/id/metropolitan-district-council/walsall ,WC145-758,31.12.2022,RESOURCES AND TRANSFORMATION CAPITAL,AGILISYS LTD,09/12/2022," 9,750.00 ",7300-Consultants Fees,CAPITAL,"NEW CONSTRUCTION,CONVERSION & RENOVATION",CAPITAL
Walsall Council,http://opendatacommunities.org/id/metropolitan-district-council/walsall ,WC145-759,31.12.2022,RESOURCES AND TRANSFORMATION CAPITAL,AGILISYS LTD,09/12/2022," 11,250.00 ",7300-Consultants Fees,CAPITAL,"NEW CONSTRUCTION,CONVERSION & RENOVATION",CAPITAL
Walsall Council,http://opendatacommunities.org/id/metropolitan-district-council/walsall ,WC145-760,31.12.2022,RESOURCES AND TRANSFORMATION CAPITAL,AGILISYS LTD,12/12/2022," 44,775.00 ",7300-Consultants Fees,CAPITAL,"NEW CONSTRUCTION,CONVERSION & RENOVATION",CAPITAL
Walsall Council,http://opendatacommunities.org/id/metropolitan-district-council/walsall ,WC145-761,31.12.2022,RESOURCES AND TRANSFORMATION CAPITAL,AGILISYS LTD,12/12/2022," 74,605.79 ",7300-Consultants Fees,CAPITAL,"NEW CONSTRUCTION,CONVERSION & RENOVATION",CAPITAL
Walsall Council,http://opendatacommunities.org/id/metropolitan-district-council/walsall ,WC145-762,31.12.2022,ADULT SOCIAL CARE,REDACTED,07/12/2022," 3,146.40 ",6541-Direct Payment,THIRD PARTY PAYMENTS,PRIVATE CONTRACTOR,REVENUE
Walsall Council,http://opendatacommunities.org/id/metropolitan-district-council/walsall ,WC145-763,31.12.2022,ADULT SOCIAL CARE,REDACTED,07/12/2022, 487.90 ,6541-Direct Payment,THIRD PARTY PAYMENTS,PRIVATE CONTRACTOR,REVENUE
Walsall Council,http://opendatacommunities.org/id/metropolitan-district-council/walsall ,WC145-764,31.12.2022,ADULT SOCIAL CARE,REDACTED,07/12/2022, 278.60 ,6541-Direct Payment,THIRD PARTY PAYMENTS,PRIVATE CONTRACTOR,REVENUE
Walsall Council,http://opendatacommunities.org/id/metropolitan-district-council/walsall ,WC145-765,31.12.2022,CHILDRENS,ALDRIDGE & BARONS LIMITED,06/12/2022," 1,540.00 ",6241-Hire of Vehicle with Driver,TRANSPORT,DIRECT TRANSPORT COSTS,REVENUE
Walsall Council,http://opendatacommunities.org/id/metropolitan-district-council/walsall ,WC145-766,31.12.2022,CHILDRENS,ALDRIDGE & BARONS LIMITED,06/12/2022," 1,287.75 ",6241-Hire of Vehicle with Driver,TRANSPORT,DIRECT TRANSPORT COSTS,REVENUE
Walsall Council,http://opendatacommunities.org/id/metropolitan-district-council/walsall ,WC145-767,31.12.2022,CHILDRENS,ALDRIDGE & BARONS LIMITED,06/12/2022," 1,593.00 ",6241-Hire of Vehicle with Driver,TRANSPORT,DIRECT TRANSPORT COSTS,REVENUE
Walsall Council,http://opendatacommunities.org/id/metropolitan-district-council/walsall ,WC145-768,31.12.2022,CHILDRENS,ALDRIDGE & BARONS LIMITED,06/12/2022,"-1,822.40 ",6241-Hire of Vehicle with Driver,TRANSPORT,DIRECT TRANSPORT COSTS,REVENUE
Walsall Council,http://opendatacommunities.org/id/metropolitan-district-council/walsall ,WC145-769,31.12.2022,CHILDRENS,ALDRIDGE & BARONS LIMITED,06/12/2022," 2,115.00 ",6241-Hire of Vehicle with Driver,TRANSPORT,DIRECT TRANSPORT COSTS,REVENUE
Walsall Council,http://opendatacommunities.org/id/metropolitan-district-council/walsall ,WC145-770,31.12.2022,CHILDRENS,ALDRIDGE & BARONS LIMITED,06/12/2022," 2,300.00 ",6241-Hire of Vehicle with Driver,TRANSPORT,DIRECT TRANSPORT COSTS,REVENUE
Walsall Council,http://opendatacommunities.org/id/metropolitan-district-council/walsall ,WC145-771,31.12.2022,CHILDRENS,ALDRIDGE & BARONS LIMITED,06/12/2022," 1,950.00 ",6241-Hire of Vehicle with Driver,TRANSPORT,DIRECT TRANSPORT COSTS,REVENUE
Walsall Council,http://opendatacommunities.org/id/metropolitan-district-council/walsall ,WC145-772,31.12.2022,CHILDRENS,ALDRIDGE & BARONS LIMITED,06/12/2022," 2,522.10 ",6241-Hire of Vehicle with Driver,TRANSPORT,DIRECT TRANSPORT COSTS,REVENUE
Walsall Council,http://opendatacommunities.org/id/metropolitan-district-council/walsall ,WC145-773,31.12.2022,CHILDRENS,ALDRIDGE & BARONS LIMITED,06/12/2022," 2,124.75 ",6241-Hire of Vehicle with Driver,TRANSPORT,DIRECT TRANSPORT COSTS,REVENUE
Walsall Council,http://opendatacommunities.org/id/metropolitan-district-council/walsall ,WC145-774,31.12.2022,CHILDRENS,ALDRIDGE & BARONS LIMITED,06/12/2022," 1,755.00 ",6241-Hire of Vehicle with Driver,TRANSPORT,DIRECT TRANSPORT COSTS,REVENUE
Walsall Council,http://opendatacommunities.org/id/metropolitan-district-council/walsall ,WC145-775,31.12.2022,CHILDRENS,ALDRIDGE & BARONS LIMITED,06/12/2022," 1,938.40 ",6241-Hire of Vehicle with Driver,TRANSPORT,DIRECT TRANSPORT COSTS,REVENUE
Walsall Council,http://opendatacommunities.org/id/metropolitan-district-council/walsall ,WC145-776,31.12.2022,CHILDRENS,ALDRIDGE & BARONS LIMITED,06/12/2022," 1,670.00 ",6241-Hire of Vehicle with Driver,TRANSPORT,DIRECT TRANSPORT COSTS,REVENUE
Walsall Council,http://opendatacommunities.org/id/metropolitan-district-council/walsall ,WC145-777,31.12.2022,CHILDRENS,ALDRIDGE & BARONS LIMITED,06/12/2022," 2,250.00 ",6241-Hire of Vehicle with Driver,TRANSPORT,DIRECT TRANSPORT COSTS,REVENUE
Walsall Council,http://opendatacommunities.org/id/metropolitan-district-council/walsall ,WC145-778,31.12.2022,CHILDRENS,ALDRIDGE & BARONS LIMITED,06/12/2022," 1,080.00 ",6241-Hire of Vehicle with Driver,TRANSPORT,DIRECT TRANSPORT COSTS,REVENUE
Walsall Council,http://opendatacommunities.org/id/metropolitan-district-council/walsall ,WC145-779,31.12.2022,CHILDRENS,ALDRIDGE & BARONS LIMITED,06/12/2022," 1,539.50 ",6241-Hire of Vehicle with Driver,TRANSPORT,DIRECT TRANSPORT COSTS,REVENUE
Walsall Council,http://opendatacommunities.org/id/metropolitan-district-council/walsall ,WC145-780,31.12.2022,CHILDRENS,ALDRIDGE & BARONS LIMITED,06/12/2022," 2,165.70 ",6241-Hire of Vehicle with Driver,TRANSPORT,DIRECT TRANSPORT COSTS,REVENUE
Walsall Council,http://opendatacommunities.org/id/metropolitan-district-council/walsall ,WC145-781,31.12.2022,CHILDRENS,ALDRIDGE & BARONS LIMITED,06/12/2022," 2,700.00 ",6241-Hire of Vehicle with Driver,TRANSPORT,DIRECT TRANSPORT COSTS,REVENUE
Walsall Council,http://opendatacommunities.org/id/metropolitan-district-council/walsall ,WC145-782,31.12.2022,CHILDRENS,ALDRIDGE & BARONS LIMITED,06/12/2022," 1,674.00 ",6241-Hire of Vehicle with Driver,TRANSPORT,DIRECT TRANSPORT COSTS,REVENUE
Walsall Council,http://opendatacommunities.org/id/metropolitan-district-council/walsall ,WC145-783,31.12.2022,CHILDRENS,ALDRIDGE & BARONS LIMITED,06/12/2022," 2,070.00 ",6241-Hire of Vehicle with Driver,TRANSPORT,DIRECT TRANSPORT COSTS,REVENUE
Walsall Council,http://opendatacommunities.org/id/metropolitan-district-council/walsall ,WC145-784,31.12.2022,CHILDRENS,ALDRIDGE & BARONS LIMITED,06/12/2022," 1,500.00 ",6241-Hire of Vehicle with Driver,TRANSPORT,DIRECT TRANSPORT COSTS,REVENUE
Walsall Council,http://opendatacommunities.org/id/metropolitan-district-council/walsall ,WC145-785,31.12.2022,CHILDRENS,ALDRIDGE & BARONS LIMITED,06/12/2022," 2,379.00 ",6241-Hire of Vehicle with Driver,TRANSPORT,DIRECT TRANSPORT COSTS,REVENUE
Walsall Council,http://opendatacommunities.org/id/metropolitan-district-council/walsall ,WC145-786,31.12.2022,CHILDRENS,ALDRIDGE & BARONS LIMITED,06/12/2022," 1,689.80 ",6241-Hire of Vehicle with Driver,TRANSPORT,DIRECT TRANSPORT COSTS,REVENUE
Walsall Council,http://opendatacommunities.org/id/metropolitan-district-council/walsall ,WC145-787,31.12.2022,CHILDRENS,ALDRIDGE & BARONS LIMITED,06/12/2022," 2,332.80 ",6241-Hire of Vehicle with Driver,TRANSPORT,DIRECT TRANSPORT COSTS,REVENUE
Walsall Council,http://opendatacommunities.org/id/metropolitan-district-council/walsall ,WC145-788,31.12.2022,CHILDRENS,ALDRIDGE & BARONS LIMITED,06/12/2022," 2,100.00 ",6241-Hire of Vehicle with Driver,TRANSPORT,DIRECT TRANSPORT COSTS,REVENUE
Walsall Council,http://opendatacommunities.org/id/metropolitan-district-council/walsall ,WC145-789,31.12.2022,CHILDRENS,ALDRIDGE & BARONS LIMITED,06/12/2022," 1,433.70 ",6241-Hire of Vehicle with Driver,TRANSPORT,DIRECT TRANSPORT COSTS,REVENUE
Walsall Council,http://opendatacommunities.org/id/metropolitan-district-council/walsall ,WC145-790,31.12.2022,CHILDRENS,ALDRIDGE & BARONS LIMITED,06/12/2022," 1,435.50 ",6241-Hire of Vehicle with Driver,TRANSPORT,DIRECT TRANSPORT COSTS,REVENUE
Walsall Council,http://opendatacommunities.org/id/metropolitan-district-council/walsall ,WC145-791,31.12.2022,CHILDRENS,ALDRIDGE & BARONS LIMITED,06/12/2022, 891.00 ,6241-Hire of Vehicle with Driver,TRANSPORT,DIRECT TRANSPORT COSTS,REVENUE
Walsall Council,http://opendatacommunities.org/id/metropolitan-district-council/walsall ,WC145-792,31.12.2022,CHILDRENS,ALDRIDGE & BARONS LIMITED,29/12/2022," 2,146.00 ",6241-Hire of Vehicle with Driver,TRANSPORT,DIRECT TRANSPORT COSTS,REVENUE
Walsall Council,http://opendatacommunities.org/id/metropolitan-district-council/walsall ,WC145-793,31.12.2022,CHILDRENS,ALDRIDGE & BARONS LIMITED,29/12/2022," 3,033.00 ",6241-Hire of Vehicle with Driver,TRANSPORT,DIRECT TRANSPORT COSTS,REVENUE
